Workbook

Sheet LDC Info
Z3: 1 | AA3: Alectra Utilities Corporation-Brampton Rate Zone
Z4: 2 | AA4: Alectra Utilities Corporation-Enersource Rate Zone
Z5: 3 | AA5: Alectra Utilities Corporation-Horizon Utilities Rate Zone
Z6: 4 | AA6: Alectra Utilities Corporation-PowerStream Rate Zone
Z7: 5 | AA7: Alectra Utilities Corporation-Guelph Rate Zone
Z8: 6 | AA8: Algoma Power Inc.
Z9: 7 | AA9: Atikokan Hydro Inc.
Z10: 8 | AA10: Bluewater Power Distribution Corporation
Z11: 9 | AA11: Brantford Power Inc.
Z12: 10 | AA12: Burlington Hydro Inc.
Z13: 11 | AA13: Canadian Niagara Power Inc.
D14: Utility Name | E14: Oshawa PUC Networks Inc. | Z14: 12 | AA14: Centre Wellington Hydro Ltd.
Z15: 13 | AA15: Chapleau Public Utilities Corporation
D16: Assigned EB Number | E16: EB-2020-0048 | Z16: 14 | AA16: Cooperative Hydro Embrun Inc.
Z17: 15 | AA17: E.L.K. Energy Inc.
D18: Name of Contact and Title | E18: David Savage, Corporate Controller | Z18: 16 | AA18: Elexicon Energy Inc.-Whitby Rate Zone
Z19: 17 | AA19: Elexicon Energy Inc.-Veridian Rate Zone
D20: Phone Number | E20: 905-743-5219 | Z20: 18 | AA20: Energy+ Inc.
Z21: 19 | AA21: Entegrus Powerlines Inc.-For Entegrus-Main Rate Zone
D22: Email Address | E22: dsavage@opuc.on.ca | Z22: 20 | AA22: Entegrus Powerlines Inc.-For Former St. Thomas Energy Rate Zone
Z23: 21 | AA23: ENWIN Utilities Ltd.
D24: Test Year | E24: 2021 | Z24: 22 | AA24: EPCOR Electricity Distribution Ontario Inc.
Z25: 23 | AA25: ERTH Power Corporation - ERTH Power Main Rate Zone
D26: Bridge Year | E26: =IF(ISBLANK(E24), "", E24-1) -> 2020 | Z26: 24 | AA26: ERTH POWER CORPORATION – GODERICH RATE ZONE
Z27: 25 | AA27: Essex Powerlines Corporation
D28: Last Rebasing Year | E28: 2015 | Z28: 26 | AA28: Festival Hydro Inc.
Z29: 27 | AA29: Fort Frances Power Corporation
A30: Identify the accounting standard used for the test year | Z30: 28 | AA30: Greater Sudbury Hydro Inc.
E31: MIFRS | Z31: 29 | AA31: Grimsby Power Incorporated
Z32: 30 | AA32: Halton Hills Hydro Inc.
A33: ="Did "& E14 &" update its depreciation and capitalization policies?" -> Did Oshawa PUC Networks Inc. update its depreciation and capitalization policies? | Z33: 31 | AA33: Hearst Power Distribution Co. Ltd.
E34: Yes | Z34: 32 | AA34: Hydro 2000 Inc.
Z35: 33 | AA35: Hydro Hawkesbury Inc.
A36: If "yes" to cell E34, were the changes in policies reflected in a prior rebasing application? | Z36: 34 | AA36: Hydro One Networks Inc.
E37: Yes | Z37: 35 | AA37: Hydro One Networks Inc.-Former Haldimand County Hydro Inc. Service Area
Z38: 36 | AA38: Hydro One Networks Inc.-Former Norfolk Power Distribution Inc. Service Area
A39: ="When did "&E14&" update its actual depreciation and capitalization policies?" -> When did Oshawa PUC Networks Inc. update its actual depreciation and capitalization policies? | Z39: 37 | AA39: Hydro One Networks Inc.-Former Woodstock Hydro Services Inc. Service Area
E40: 2001-01-01 | F40: 2012 | Z40: 38 | AA40: Hydro One Remote Communites Inc.
Z41: 39 | AA41: Hydro Ottawa Limited
A42: Identify the year the applicant adopted IFRS for financial reporting purposes | Z42: 40 | AA42: InnPower Corporation
E43: 2012 | Z43: 41 | AA43: Kingston Hydro Corporation
Z44: 42 | AA44: Kitchener-Wilmot Hydro Inc.
Z45: 43 | AA45: Lakefront Utilities Inc.
A46: ="Is " & E14 & " applying for cost recovery for the test and/or future year(s) for Green Energy initiatives?" -> Is Oshawa PUC Networks Inc. applying for cost recovery for the test and/or future year(s) for Green Energy initiatives? | Z46: 44 | AA46: Lakeland Power Distribution Ltd.
E47: No | Z47: 45 | AA47: Lakeland Power Distribution Ltd.-Parry Sound Service Area
Z48: 46 | AA48: London Hydro Inc.
A49: ="Is " & E14 & " an embedded distributor?" -> Is Oshawa PUC Networks Inc. an embedded distributor? | E49: No | Z49: 47 | AA49: Milton Hydro Distribution Inc.
Z50: 48 | AA50: Newmarket-Tay Power Distribution Ltd.-For Former Midland Power Utility Rate Zone
Z51: 49 | AA51: Newmarket-Tay Power Distribution Ltd.-For Newmarket-Tay Power Main Rate Zone
B52: Notes | Z52: 50 | AA52: Niagara Peninsula Energy Inc.
Z53: 51 | AA53: Niagara-on-the-Lake Hydro Inc.
C54: Pale green cells represent input cells. | Z54: 52 | AA54: North Bay Hydro Distribution Limited - Espanola service territory
Z55: 53 | AA55: North Bay Hydro Distribution Limited - North Bay service territory
C56: Pale blue cells represent drop-down lists. The applicant should select the appropriate item from the drop-down list. | Z56: 54 | AA56: Northern Ontario Wires Inc.
Z57: 55 | AA57: Oakville Hydro Electricity Distribution Inc.
C58: White cells contain fixed values, automatically generated values or formulae. | N58: =IF(LEN($G58)>1, (SUMPRODUCT(--($C$81:$C$1003=$C58),--($A$81:$A$1003=$D58), --($B$81:$B$1003=$B58&"_TOTAL"), $L$1:$L$889)), "") ->  | O58: =IF(LEN($G58)>1, (SUMPRODUCT(--($C$81:$C$1003=$C58),--($A$81:$A$1003=$D58), --($B$81:$B$1003=$B58&"_TOTAL"), $M$1:$M$889)), "") ->  | Z58: 56 | AA58: Orangeville Hydro Limited
Z59: 57 | AA59: Orillia Power Distribution Corporation
Z60: 58 | AA60: Oshawa PUC Networks Inc.
Z61: 59 | AA61: Ottawa River Power Corporation
Z62: 60 | AA62: Peterborough Distribution Incorporated
Z63: 61 | AA63: PUC Distribution Inc.
Z64: 62 | AA64: Renfrew Hydro Inc.
Z65: 63 | AA65: Rideau St. Lawrence Distribution Inc.
Z66: 64 | AA66: Sioux Lookout Hydro Inc.
Z67: 65 | AA67: Synergy North Corporation-Kenora Rate Zone
Z68: 66 | AA68: Synergy North Corporation-Thunder Bay Rate Zone
Z69: 67 | AA69: Tillsonburg Hydro Inc.
Z70: 68 | AA70: Toronto Hydro-Electric System Limited
Z71: 69 | AA71: Wasaga Distribution Inc.
Z72: 70 | AA72: Waterloo North Hydro Inc.
Z73: 71 | AA73: Welland Hydro-Electric System Corp.
Z74: 72 | AA74: Wellington North Power Inc.
Z75: 73 | AA75: Westario Power Inc.

Sheet Index
A15: 1 | B15: LDC Information Sheet | E15: 20 | F15: App.2-G: Service Reliability Indicators
A16: 2 | B16: Index | E16: 21 | F16: App.2-H: Other Operating Revenue (TO BE UPDATED AT THE DRAFT RATE ORDER STAGE)
A17: 3 | B17: Cost of Service Application Flowchart | E17: 22 | F17: App.2-I: Load Forecast CDM Adjustment Workform
A18: 4 | B18: List of Key References | E18: 23 | F18: App.2-IA: Load Forecast Data Instructions
A19: 5 | B19: App.2-A: List of Requested Approvals | E19: 24 | F19: App.2-IB: Actual and Forecast Load and Customer Data
A20: 6 | B20: App.2-AA: Capital Projects Table | E20: 25 | F20: App.2-JA: OM&A Summary Analysis (TO BE UPDATED AT THE DRAFT RATE ORDER STAGE)
A21: 7 | B21: App.2-AB: Capital Expenditures (TO BE UPDATED AT THE DRAFT RATE ORDER STAGE) | E21: 26 | F21: App.2-JB: Recoverable OM&A Cost Driver Table
A22: 8 | B22: App. 2-AC: Customer Engagement Worksheet | E22: 27 | F22: App.2-JC: OM&A Programs Table
A23: 9 | B23: App.2-B: General Accounting Instructions | E23: 28 | F23: App.2-K: Employee Costs (TO BE UPDATED AT THE DRAFT RATE ORDER STAGE)
A24: 10 | B24: App.2-BA: Fixed Asset Continuity Schedule | E24: 29 | F24: App.2-L: Recoverable OM&A Cost per Customer and per FTE
A25: 11 | B25: Appendix 2-BB: Service Life Comparison | E25: 30 | F25: App.2-M: Regulatory Costs Schedule (TO BE UPDATED AT THE DRAFT RATE ORDER STAGE)
A26: 12 | B26: App.2-C_DepExp: Depreciation and Amortization Expense | E26: 31 | F26: App.2-N: Shared Services and Corporate Cost Allocation
A27: 13 | B27: App.2-D: Overhead Expenses | E27: 32 | F27: App.2-OA: Capital Structure and Cost of Capital
A28: 14 | B28: App.2-EA: Account 1575 PP&E Deferral Account (2015 IFRS Adopters) - CONTACT OEB STAFF IF TAB REQUIRED | E28: 33 | F28: App.2-OB: Debt Instruments
A29: 15 | B29: App.2-EB: Account 1576 - Accounting Changes Under CGAAP (2012 Changes) - CONTACT OEB STAFF IF TAB REQUIRED | E29: 34 | F29: App.2-Q: Cost of Serving Embedded Distributor(s)
A30: 16 | B30: App.2-EC: Account 1576 - Accounting Changes Under CGAAP (2013 Changes) - CONTACT OEB STAFF IF TAB REQUIRED | E30: 35 | F30: App.2-R: Loss Factors
A31: 17 | B31: App.2-FA: Renewable Generation Connection Investment Summary (TO BE UPDATED AT THE DRAFT RATE ORDER STAGE) | E31: 36 | F31: App.2-S: Stranded Meter Treatment- CONTACT OEB STAFF IF TAB REQUIRED
A32: 18 | B32: App.2-FB: Calculation of Renewable Generation Connection Direct Benefits/Provincial Amount: Renewable Enabling Improvement Investments (TO BE UPDATED AT THE DRAFT RATE ORDER STAGE) | E32: 37 | F32: App.2-Y: Transition to MIFRS Summary Impact - CONTACT OEB STAFF IF TAB REQUIRED
A33: 19 | B33: App.2-FC: Calculation of Renewable Generation Connection Direct Benefits/Provincial Amount: Renewable Expansion Investments (TO BE UPDATED AT THE DRAFT RATE ORDER STAGE) | E33: 38 | F33: App.2-YA: One-Time Incremental IFRS Transition Costs - CONTACT OEB STAFF IF TAB REQUIRED
E34: 39 | F34: App.2-ZA: Commodity Expense
E35: 40 | F35: App.2-ZB: Cost of Power
A42: Note: | B42: Appendices for the Tariff of Rates and Charges at Current and Proposed Rates, and for the Bill Impacts are now in a separate spreadsheet model. These appendices were formerly 2-Z and 2-W.

Sheet COS Flowchart
B4: Cost of Service Rate Application Schematic
B6: The Cost of Service Rate Application Schematic is a flowchart that is included as a guide for the components of an application. The schematic demonstrates how demand and costs interrelate to derive the revenue requirement and how the revenue requirement is allocated between classes and through fixed/variable splits to derive rates that will be compensatory for the annual revenue requirement, based on the the forecasted demand. There is no form to be filled out; therefore, this Schedule is not required to be filed.

Sheet List of Key References
B2: List of Key References
A4: A list of key references for understanding the Filing Requirements has been embedded in the document below. To access the list of references and associated hyperlinks double-click the icon below.

Sheet App.2-A_Requested_Approvals
G1: File Number: | H1: =EBNUMBER -> EB-2020-0048
G2: Exhibit:
G3: Tab:
G4: Schedule:
G5: Page:
G7: Date:
B9: Appendix 2-A
B10: List of Requested Approvals
B12: The distributor must fill out the following sheet with the complete list of specific approvals requested and relevant section(s) of the legislation must be provided. All approvals, including accounting orders (deferral and variance accounts) new rate classes, revised specific service charges or retail service charges which the applicant is seeking, must be separately identified, as well being clearly documented in the appropriate sections of the application.
B14: Additional requests may be added by copying and pasting blank input rows, as needed.
B16: If additional requests arise, or requested approvals are removed, during the processing of the application, the distributor should update this list.
B18: =CONCATENATE('LDC Info'!E14," is seeking the following approvals in this application:") -> Oshawa PUC Networks Inc. is seeking the following approvals in this application:
B20: 1 | F20: Approval to charge distribution rates effective January 1, 2021 to recover a service revenue requirement of $28,650,063. The schedule of proposed rates is set out in Exhibit 8.
B22: 2 | F22: Approval of the Distribution System Plan (“DSP”) as outlined in Exhibit 2.
B24: 3 | F24: Approval to adjust the Retail Transmission Rates – Network and Connection as detailed in Exhibit 8.
B26: 4 | F26: Approval of the proposed loss factors as detailed in Exhibit 8.
B28: 5 | F28: Approval to continue to use the Transformer Allowance as described in Exhibit 8.
B30: 6 | F30: Approval to charge the Smart Metering Entity Charge, Wholesale Market Service Rate, Rural or Remote Electricity Rate Protection Charge, Standard Supply Service Charge, and microFIT monthly service charge as detailed in Exhibit 8.
B32: 7 | F32: Approval to charge Retail Service Charges as detailed in Exhibit 8.
B34: 8 | F34: Approval of a 1-year rate rider for the disposition of the Lost Revenue Adjustment Mechanism Variance Account (“LRAMVA”) for lost revenue as presented in Exhibits 4 and 9 of this Application.
B36: 9 | F36: Approval to charge the Board’s updated Pole Attachment Charge, effective January 1, 2021.
B38: 10 | F38: Approval to continue the use of Account 1509 - Impacts Arising from the COVID-19 Emergency, and its three sub-accounts, for the test year.

Sheet App.2-AA_Capital Projects
H1: File Number: | I1: =EBNUMBER -> EB-2020-0048
H2: Exhibit:
H3: Tab:
H4: Schedule:
H5: Page:
H7: Date:
A9: Appendix 2-AA
A10: Capital Projects Table
A13: Projects | B13: =C13-1 -> 2015 | C13: =D13-1 -> 2016 | D13: =E13-1 -> 2017 | E13: =F13-1 -> 2018 | F13: =BridgeYear - 1 -> 2019 | G13: =BridgeYear & " Bridge Year" -> 2020 Bridge Year | H13: =TestYear & " Test Year" -> 2021 Test Year
A14: Reporting Basis | B14: MIFRS | C14: MIFRS | D14: MIFRS | E14: MIFRS | F14: MIFRS | G14: MIFRS | H14: MIFRS
A15: System Access
A16: Expansions | B16: 774109.51 | C16: -318665.1937 | D16: 928873.68 | E16: -47918.84 | F16: 1891799.38 | G16: 1662014 | H16: 1662014
A17: Connections | B17: 307044.73 | C17: 567799.7633 | D17: -393552.99 | E17: -420820.49 | F17: 620237.71 | G17: 231550 | H17: 231550
A18: Revenue Metering | B18: 433621.76 | C18: 549305.0053 | D18: 247460.14 | E18: 530591.12 | F18: 453065.82 | G18: 223000 | H18: 223000
A19: MIST Metering | B19: 79367.1 | C19: 144012 | D19: 116087.79 | E19: 101585.43 | F19: 207537.38
A20: Remote Disconnect/Reconnect Metering | B20: 78174.31 | C20: 54328.31 | D20: -35063.32
A21: Third Party Relocations | B21: 1397285.625 | C21: 1397543.757 | D21: -186994.95 | E21: -791199.91 | F21: 1704082.61 | G21: 1110000 | H21: 1365000
A22: AMI System Upgrade | G22: 605000 | H22: 386600
A24: Sub-Total System Access | B24: =SUM(B16:B23) -> 3069603.035 | C24: =SUM(C16:C23) -> 2394323.642 | D24: 676810.35 | E24: -627762.69 | F24: 4876722.9 | G24: 3831564 | H24: 3868164
A25: System Renewal
A26: Reactive/ Emergency Plant Replacement | B26: 1097162.242 | C26: 1141696.07 | D26: 1228046.9 | E26: 1010142.95 | F26: 1664881.76 | G26: 1190000 | H26: 1111800
A27: Overhead Line Renewal | B27: 2872933.667 | C27: 1394679.03 | D27: 1746845.42 | E27: 1134682.12 | F27: 2978279.78 | G27: 3142190 | H27: 1981000
A28: Underground Line Renewal | B28: 756602.17 | C28: 1195360.27 | D28: 696086.72 | E28: 1121337.55 | F28: 870483.01 | G28: 1545000 | H28: 1353500
A29: Station Renewal | B29: 144226.54 | C29: 111101.9 | D29: 964477.65 | E29: 470407.36
A30: MS14 Metalclad Switchgear Replacment | B30: 1632383.19
A31: Pole Replacement Program | D31: 423443.91 | E31: 213793.24 | F31: 250774.75 | G31: 400000 | H31: 400000
A32: Porcelain Switch and Insulator Replacement Program | G32: 550000 | H32: 550000
A33: Vault Transformenr Replacement Program | G33: 162000 | H33: 162000
A34: 44kV Quick Sleeve Replacement Program | G34: 100000 | H34: 100000
A35: Relay replacement Program | G35: 40000 | H35: 40000
A36: MS10 T2 Replacement | G36: 1000000
A37: Municipal Substation Switchgear Replacement Program | H37: 1800000
A39: Sub-Total | B39: =SUM(B26:B38) -> 6503307.808 | C39: 3842837.27 | D39: 5058900.6 | E39: 3950363.22 | F39: 5764419.3 | G39: 8129190 | H39: 7498300
A40: System Service
A41: Downtown Automation | B41: 712331 | C41: 498800.5
A42: Downtown UG Self-Healing Grid | E42: 531433.28
A43: OH Automated Self Healing Switches | D43: 646328.68 | E43: 261496.14 | F43: 3593.1 | G43: 50000 | H43: 200000
A44: Neutral Reactors | C44: 692153 | D44: 206431.73 | E44: 11590.03
A45: Distribution System Supply Optimization | C45: 24167.06 | D45: 37343.47 | E45: 40651.52 | F45: 68587.95
A46: Smart Fault Indicators | B46: 9774.07 | C46: 237.65 | D46: 51142.55 | E46: 28216.75 | F46: 24704.23
A47: Non-electric Fence | F47: 245250.58
A48: MS9 Substation Construction | E48: 7600859.18 | F48: -281342
A49: Enfield Contribution to HONI | F49: 4136704.74
A50: MS9 and Enfield Feeders | F50: 7455780.31 | G50: 1140400
A51: Operational Technology (GIS,OMS,ODS,SCADA) | G51: 257500 | H51: 267500
A52: Smart Grid | G52: 335000 | H52: 350000
A53: Municipal Substation Transformer Monitoring and Telemetry | G53: 150000 | H53: 150000
A54: Repair, Improvements and Upgrades of OT and Smart Grid Infrastructure | G54: 25000 | H54: 41000
A55: Ground Grid Upgrades | G55: 100000 | H55: 100000
A56: Voltage Monitoring (Grid Monitoring and Automation) | G56: 450000
A58: Sub-Total | B58: =SUM(B41:B57) -> 722105.07 | C58: 1215358.21 | D58: 941246.43 | E58: 8474246.9 | F58: 11653278.91 | G58: 2507900 | H58: 1108500
A59: General Plant
A60: Fleet | B60: 460652.46 | C60: 132337.92 | D60: 503172.6 | E60: 368394 | F60: 340672 | G60: 545000 | H60: 530000
A61: Facilities | B61: 108414.53 | C61: 218640.13 | D61: 49309.44 | E61: 110787 | F61: 106367 | G61: 565000 | H61: 100000
A62: Major Tools & Equipment | B62: 54337.64 | C62: 51357.7 | E62: 126810.39 | F62: 62006.47 | G62: 100000 | H62: 100000
A63: Office IT & Equipment Upgrades | B63: 104671.89 | C63: 79975.91 | D63: 187535.48 | E63: 282572.45 | F63: 126790.84 | G63: 87000 | H63: 89000
A64: Operational Technology (GIS, MAS) | B64: 8070.63 | D64: 81906.6 | E64: 9017.94 | F64: 41620
A65: OMS Implementation and Enhancements | B65: 251533.3 | C65: 1000607.12 | D65: 51933.16
A66: ODS Replacement and Enhancement | E66: 360506.94 | F66: 59515.2
A67: Back-up Control Room and Associated IT Infrastructure | G67: 200000
A68: Back-Up Generator Replacement | G68: 205000
A69: Information Technology General | G69: 282000 | H69: 419500
A70: Customer Self-Serve Online Portal (Green Button Dashboard) | G70: 140000
A71: Customer Information System (CIS) Acquisition | H71: 736000
A73: Sub-Total | B73: =SUM(B60:B72) -> 987680.45 | C73: 1482918.78 | D73: 873857.28 | E73: 1258088.72 | F73: 736971.51 | G73: 2124000 | H73: 1974500
A74: Miscellaneous | B74: 572214.69 | C74: 261249.8721 | D74: 325517.79 | E74: -97827 | F74: 204922.03 | G74: 0 | H74: 0
A75: Total | B75: =SUM(B74,B73,B58,B39,B24) -> 11854911.05 | C75: 9196687.775 | D75: 7876332.45 | E75: 12957109.15 | F75: 23236314.65 | G75: 16592654 | H75: =SUM(H74,H73,H58,H39,H24) -> 14449464
A76: Less Renewable Generation Facility Assets and Other Non-Rate-Regulated Utility Assets (input as negative)
A77: Total | B77: =B75+B76 -> 11854911.05 | C77: =C75+C76 -> 9196687.775 | D77: 7876332.45 | E77: 12957109.15 | F77: 23236314.65 | G77: 16592654 | H77: 14449464
A79: Notes:
A81: 1 Please provide a breakdown of the major components of each capital project undertaken in each year. Please ensure that all projects below the materiality threshold are included in the miscellaneous line. Add more projects as required.
A82: 2 The applicant should group projects appropriately and avoid presentations that result in classification of significant components of the capital budget in the miscellaneous category.

Sheet App.2-AB_Capital Expenditures
AE1: File Number: | AG1: =EBNUMBER -> EB-2020-0048
AE2: Exhibit:
AE3: Tab:
AE4: Schedule:
A5: TO BE UPDATED AT THE DRAFT RATE ORDER STAGE | AE5: Page:
AE7: Date:
A9: Appendix 2-AB
A10: Table 2 - Capital Expenditure Summary from Chapter 5 Consolidated Distribution System Plan Filing Requirements
A11: First year of Forecast Period:
A12: =TestYear -> 2021
A13: CATEGORY | B13: Historical Period (previous plan1 & actual) | AC13: Forecast Period (planned)
B14: =E14-1 -> 2012 | E14: =H14-1 -> 2013 | H14: =K14-1 -> 2014 | K14: =N14-1 -> 2015 | N14: =Q14-1 -> 2016 | Q14: =T14-1 -> 2017 | T14: =W14-1 -> 2018 | W14: =Z14-1 -> 2019 | Z14: =AC14-1 -> 2020 | AC14: =A12 -> 2021 | AD14: =AC14+1 -> 2022 | AE14: =AD14+1 -> 2023 | AF14: =AE14+1 -> 2024 | AG14: =AF14+1 -> 2025
B15: Plan | C15: Actual | D15: Var | E15: Plan | F15: Actual | G15: Var | H15: Plan | I15: Actual | J15: Var | K15: Plan | L15: Actual | M15: Var | N15: Plan | O15: Actual | P15: Var | Q15: Plan | R15: Actual | S15: Var | T15: Plan | U15: Actual | V15: Var | W15: Plan | X15: Actual | Y15: Var | Z15: Plan | AA15: Actual2 | AB15: Var
B16: $ '000 | D16: % | E16: $ '000 | G16: % | H16: $ '000 | J16: % | K16: $ '000 | M16: % | N16: $ '000 | P16: % | Q16: $ '000 | S16: % | T16: $ '000 | V16: % | W16: $ '000 | Y16: % | Z16: $ '000 | AB16: % | AC16: $ '000
A17: System Access | D17: =IF(ISERROR((C17-B17)/B17),"--",(C17-B17)/B17) -> -- | G17: =IF(ISERROR((F17-E17)/E17),"--",(F17-E17)/E17) -> -- | J17: =IF(ISERROR((I17-H17)/H17),"--",(I17-H17)/H17) -> -- | K17: 8595 | L17: 6236 | M17: =IF(ISERROR((L17-K17)/K17),"--",(L17-K17)/K17) -> -0.2744618965 | N17: 3740 | O17: 3206.76 | P17: =IF(ISERROR((O17-N17)/N17),"--",(O17-N17)/N17) -> -0.1425775401 | Q17: 3150 | R17: 1792.92 | S17: =IF(ISERROR((R17-Q17)/Q17),"--",(R17-Q17)/Q17) -> -0.4308190476 | T17: 3435 | U17: 3438.23 | V17: =IF(ISERROR((U17-T17)/T17),"--",(U17-T17)/T17) -> 0.0009403202329 | W17: 3455 | X17: 10318.22 | Y17: =IF(ISERROR((X17-W17)/W17),"--",(X17-W17)/W17) -> 1.986460203 | Z17: 5790 | AA17: 1637.08893 | AB17: =IF(ISERROR((AA17-Z17)/Z17),"--",(AA17-Z17)/Z17) -> -0.7172557979 | AC17: 5911 | AD17: 4895.266574 | AE17: 4499.427035 | AF17: 4629.335764 | AG17: 4644.619144
A18: System Renewal | D18: =IF(ISERROR((C18-B18)/B18),"--",(C18-B18)/B18) -> -- | G18: =IF(ISERROR((F18-E18)/E18),"--",(F18-E18)/E18) -> -- | J18: =IF(ISERROR((I18-H18)/H18),"--",(I18-H18)/H18) -> -- | K18: 5943 | L18: 7233 | M18: =IF(ISERROR((L18-K18)/K18),"--",(L18-K18)/K18) -> 0.2170620899 | N18: 4932 | O18: 4192.79 | P18: =IF(ISERROR((O18-N18)/N18),"--",(O18-N18)/N18) -> -0.1498803731 | Q18: 4472 | R18: 5475.4 | S18: =IF(ISERROR((R18-Q18)/Q18),"--",(R18-Q18)/Q18) -> 0.2243738819 | T18: 4761 | U18: 3778.57 | V18: =IF(ISERROR((U18-T18)/T18),"--",(U18-T18)/T18) -> -0.2063495064 | W18: 4851 | X18: 6524.2 | Y18: =IF(ISERROR((X18-W18)/W18),"--",(X18-W18)/W18) -> 0.3449185735 | Z18: 8129 | AA18: 3938.56726 | AB18: =IF(ISERROR((AA18-Z18)/Z18),"--",(AA18-Z18)/Z18) -> -0.5154917874 | AC18: 7497.5 | AD18: 9311 | AE18: 8797 | AF18: 8884 | AG18: 8818
A19: System Service | D19: -- | G19: -- | J19: -- | K19: 1068 | L19: 722 | M19: -0.3239700375 | N19: 1380 | O19: 1192.39 | P19: -0.1359492754 | Q19: 420 | R19: 941.25 | S19: 1.241071429 | T19: 10455 | U19: 8514.25 | V19: -0.1856288857 | W19: 15763 | X19: 11620.78 | Y19: -0.2627811965 | Z19: 2508 | AA19: 1145.57768 | AB19: -0.5432305901 | AC19: 1109 | AD19: 799 | AE19: 1383 | AF19: 886 | AG19: 995
A20: General Plant | D20: -- | G20: -- | J20: -- | K20: 1675 | L20: 988 | M20: -0.4101492537 | N20: 1180 | O20: 1447.84 | P20: 0.2269830508 | Q20: 755 | R20: 873.86 | S20: 0.1574304636 | T20: 888.7 | U20: 1298.59 | V20: 0.4612242602 | W20: 510 | X20: 704.47 | Y20: 0.3813137255 | Z20: 2124 | AA20: 223.47768 | AB20: -0.8947845198 | AC20: 1975 | AD20: 851 | AE20: 794 | AF20: 875 | AG20: 713
A21: TOTAL EXPENDITURE | B21: =SUM(B17:B20) -> 0 | C21: =SUM(C17:C20) -> 0 | D21: -- | E21: =SUM(E17:E20) -> 0 | F21: =SUM(F17:F20) -> 0 | G21: -- | H21: =SUM(H17:H20) -> 0 | I21: =SUM(I17:I20) -> 0 | J21: -- | K21: =SUM(K17:K20) -> 17281 | L21: =SUM(L17:L20) -> 15179 | M21: -0.1216364794 | N21: =SUM(N17:N20) -> 11232 | O21: =SUM(O17:O20) -> 10039.78 | P21: -0.106144943 | Q21: 8797 | R21: 9083.43 | S21: 0.03255996362 | T21: 19539.7 | U21: 17029.64 | V21: -0.1284594953 | W21: 24579 | X21: 29167.67 | Y21: 0.1866906709 | Z21: 18551 | AA21: 6944.71155 | AB21: -0.6256421999 | AC21: 16492.5 | AD21: 15856.26657 | AE21: 15473.42703 | AF21: 15274.33576 | AG21: =SUM(AG17:AG20) -> 15170.61914
A22: Capital Contributions | D22: -- | G22: -- | J22: -- | K22: -4911 | L22: -3324 | M22: -0.3231521075 | N22: -1455 | O22: -843 | P22: -0.4206185567 | Q22: -1075 | R22: -1207 | S22: 0.1227906977 | T22: -1095 | U22: -4072.53 | V22: 2.719205479 | W22: -1105 | X22: -5931 | Y22: 4.367420814 | Z22: -1958 | AA22: -410.6 | AB22: -0.7902962206 | AC22: -2043.4 | AD22: -1692.266574 | AE22: -1555.427035 | AF22: -1600.335764 | AG22: -1605.619144
A23: Net Capital Expenditures | D23: -- | G23: -- | J23: -- | K23: =SUM(K21:K22) -> 12370 | L23: =L21+L22 -> 11855 | M23: -0.04163298302 | N23: =SUM(N21:N22) -> 9777 | O23: =O21+O22 -> 9196.78 | P23: -0.05934540248 | Q23: 7722 | R23: 7876.43 | S23: 0.019998705 | T23: 18444.7 | U23: 12957.11 | V23: -0.2975158176 | W23: =SUM(W21:W22) -> 23474 | X23: =X21+X22 -> 23236.67 | Y23: -0.01011033484 | Z23: =Z21+Z22 -> 16593 | AA23: =AA21+AA22 -> 6534.11155 | AB23: -0.6062127674 | AC23: =AC21+AC22 -> 14449.1 | AD23: =AD21+AD22 -> 14164 | AE23: 13918 | AF23: 13674 | AG23: 13565
A24: System O&M | D24: -- | G24: -- | J24: -- | K24: 2634.297574 | L24: 2797 | M24: 0.06176311591 | N24: 2859.661858 | O24: 3017 | P24: 0.0550198413 | Q24: 2998.965718 | R24: 2724 | S24: -0.09168684929 | T24: 3015.220944 | U24: 3154 | V24: 0.04602616461 | W24: 2877.866116 | X24: 3015 | Y24: 0.04765123823 | Z24: 3270.614352 | AA24: 1183.8 | AB24: -0.6380496529 | AC24: 3168.448434 | AD24: 3231.817403 | AE24: 3296.453751 | AF24: 3362.382826 | AG24: 3429.630482
A26: Notes to the Table:
A27: 1. Historical “previous plan” data is not required unless a plan has previously been filed. However, use the last OEB-approved, at least on a Total (Capital) Expenditure basis for the last cost of service rebasing year, and the applicant should include their planned budget in each subsequent historical year up to and including the Bridge Year.
A28: 2. Indicate the number of months of 'actual' data included in the last year of the Historical Period (normally a 'bridge' year):
A30: Explanatory Notes on Variances (complete only if applicable)
A31: Notes on shifts in forecast vs. historical budgets by category
A32: 2020 Actual contains 6 months data (June YTD)
A34: Notes on year over year Plan vs. Actual variances for Total Expenditures
A37: Notes on Plan vs. Actual variance trends for individual expenditure categories

Sheet Hidden_CAPEX (hidden)
A1: Utility Name | B1: EB Number | C1: Test Year | D1: Bridge Year | E1: Last Rebasing Year | F1: Category | G1: Year | H1: Plan | I1: Actual
A2: ='LDC Info'!$E$14 -> Oshawa PUC Networks Inc. | B2: =EBNUMBER -> EB-2020-0048 | C2: =TestYear -> 2021 | D2: =BridgeYear -> 2020 | E2: =RebaseYear -> 2015 | F2: System Access | G2: ='App.2-AB_Capital Expenditures'!B14 -> 2012 | H2: ='App.2-AB_Capital Expenditures'!B17 -> 0 | I2: ='App.2-AB_Capital Expenditures'!C17 -> 0
A3: ='LDC Info'!$E$14 -> Oshawa PUC Networks Inc. | B3: EB-2020-0048 | C3: 2021 | D3: 2020 | E3: 2015 | F3: System Renewal | G3: ='App.2-AB_Capital Expenditures'!B14 -> 2012 | H3: ='App.2-AB_Capital Expenditures'!B18 -> 0 | I3: ='App.2-AB_Capital Expenditures'!C18 -> 0
A4: ='LDC Info'!$E$14 -> Oshawa PUC Networks Inc. | B4: EB-2020-0048 | C4: 2021 | D4: 2020 | E4: 2015 | F4: System Service | G4: ='App.2-AB_Capital Expenditures'!B14 -> 2012 | H4: ='App.2-AB_Capital Expenditures'!B19 -> 0 | I4: ='App.2-AB_Capital Expenditures'!C19 -> 0
A5: ='LDC Info'!$E$14 -> Oshawa PUC Networks Inc. | B5: EB-2020-0048 | C5: 2021 | D5: 2020 | E5: 2015 | F5: General Plant | G5: ='App.2-AB_Capital Expenditures'!B14 -> 2012 | H5: ='App.2-AB_Capital Expenditures'!B20 -> 0 | I5: ='App.2-AB_Capital Expenditures'!C20 -> 0
A6: ='LDC Info'!$E$14 -> Oshawa PUC Networks Inc. | B6: EB-2020-0048 | C6: 2021 | D6: 2020 | E6: 2015 | F6: Total Expenditure | G6: ='App.2-AB_Capital Expenditures'!B14 -> 2012 | H6: ='App.2-AB_Capital Expenditures'!B21 -> 0 | I6: ='App.2-AB_Capital Expenditures'!C21 -> 0
A7: ='LDC Info'!$E$14 -> Oshawa PUC Networks Inc. | B7: EB-2020-0048 | C7: 2021 | D7: 2020 | E7: 2015 | F7: Capital Contributions | G7: ='App.2-AB_Capital Expenditures'!B14 -> 2012 | H7: ='App.2-AB_Capital Expenditures'!B22 -> 0 | I7: ='App.2-AB_Capital Expenditures'!C22 -> 0
A8: ='LDC Info'!$E$14 -> Oshawa PUC Networks Inc. | B8: EB-2020-0048 | C8: 2021 | D8: 2020 | E8: 2015 | F8: Net Capital Expenditures | G8: ='App.2-AB_Capital Expenditures'!B14 -> 2012 | H8: ='App.2-AB_Capital Expenditures'!B23 -> 0 | I8: ='App.2-AB_Capital Expenditures'!C23 -> 0
A9: ='LDC Info'!$E$14 -> Oshawa PUC Networks Inc. | B9: EB-2020-0048 | C9: 2021 | D9: 2020 | E9: 2015 | F9: System O&M | G9: ='App.2-AB_Capital Expenditures'!B14 -> 2012 | H9: ='App.2-AB_Capital Expenditures'!B24 -> 0 | I9: ='App.2-AB_Capital Expenditures'!C24 -> 0
A10: ='LDC Info'!$E$14 -> Oshawa PUC Networks Inc. | B10: EB-2020-0048 | C10: 2021 | D10: 2020 | E10: 2015 | F10: System Access | G10: ='App.2-AB_Capital Expenditures'!E14 -> 2013 | H10: ='App.2-AB_Capital Expenditures'!E17 -> 0 | I10: ='App.2-AB_Capital Expenditures'!F17 -> 0
A11: ='LDC Info'!$E$14 -> Oshawa PUC Networks Inc. | B11: EB-2020-0048 | C11: 2021 | D11: 2020 | E11: 2015 | F11: System Renewal | G11: ='App.2-AB_Capital Expenditures'!E14 -> 2013 | H11: ='App.2-AB_Capital Expenditures'!E18 -> 0 | I11: ='App.2-AB_Capital Expenditures'!F18 -> 0
A12: ='LDC Info'!$E$14 -> Oshawa PUC Networks Inc. | B12: EB-2020-0048 | C12: 2021 | D12: 2020 | E12: 2015 | F12: System Service | G12: ='App.2-AB_Capital Expenditures'!E14 -> 2013 | H12: ='App.2-AB_Capital Expenditures'!E19 -> 0 | I12: ='App.2-AB_Capital Expenditures'!F19 -> 0
A13: ='LDC Info'!$E$14 -> Oshawa PUC Networks Inc. | B13: EB-2020-0048 | C13: 2021 | D13: 2020 | E13: 2015 | F13: General Plant | G13: ='App.2-AB_Capital Expenditures'!E14 -> 2013 | H13: ='App.2-AB_Capital Expenditures'!E20 -> 0 | I13: ='App.2-AB_Capital Expenditures'!F20 -> 0
A14: ='LDC Info'!$E$14 -> Oshawa PUC Networks Inc. | B14: EB-2020-0048 | C14: 2021 | D14: 2020 | E14: 2015 | F14: Total Expenditure | G14: ='App.2-AB_Capital Expenditures'!E14 -> 2013 | H14: ='App.2-AB_Capital Expenditures'!E21 -> 0 | I14: ='App.2-AB_Capital Expenditures'!F21 -> 0
A15: ='LDC Info'!$E$14 -> Oshawa PUC Networks Inc. | B15: EB-2020-0048 | C15: 2021 | D15: 2020 | E15: 2015 | F15: Capital Contributions | G15: ='App.2-AB_Capital Expenditures'!E14 -> 2013 | H15: ='App.2-AB_Capital Expenditures'!E22 -> 0 | I15: ='App.2-AB_Capital Expenditures'!F22 -> 0
A16: ='LDC Info'!$E$14 -> Oshawa PUC Networks Inc. | B16: EB-2020-0048 | C16: 2021 | D16: 2020 | E16: 2015 | F16: Net Capital Expenditures | G16: ='App.2-AB_Capital Expenditures'!E14 -> 2013 | H16: ='App.2-AB_Capital Expenditures'!E23 -> 0 | I16: ='App.2-AB_Capital Expenditures'!F23 -> 0
A17: ='LDC Info'!$E$14 -> Oshawa PUC Networks Inc. | B17: EB-2020-0048 | C17: 2021 | D17: 2020 | E17: 2015 | F17: System O&M | G17: ='App.2-AB_Capital Expenditures'!E14 -> 2013 | H17: ='App.2-AB_Capital Expenditures'!E24 -> 0 | I17: ='App.2-AB_Capital Expenditures'!F24 -> 0
A18: ='LDC Info'!$E$14 -> Oshawa PUC Networks Inc. | B18: EB-2020-0048 | C18: 2021 | D18: 2020 | E18: 2015 | F18: System Access | G18: ='App.2-AB_Capital Expenditures'!H14 -> 2014 | H18: ='App.2-AB_Capital Expenditures'!H17 -> 0 | I18: ='App.2-AB_Capital Expenditures'!I17 -> 0
A19: ='LDC Info'!$E$14 -> Oshawa PUC Networks Inc. | B19: EB-2020-0048 | C19: 2021 | D19: 2020 | E19: 2015 | F19: System Renewal | G19: ='App.2-AB_Capital Expenditures'!H14 -> 2014 | H19: ='App.2-AB_Capital Expenditures'!H18 -> 0 | I19: ='App.2-AB_Capital Expenditures'!I18 -> 0
A20: ='LDC Info'!$E$14 -> Oshawa PUC Networks Inc. | B20: EB-2020-0048 | C20: 2021 | D20: 2020 | E20: 2015 | F20: System Service | G20: ='App.2-AB_Capital Expenditures'!H14 -> 2014 | H20: ='App.2-AB_Capital Expenditures'!H19 -> 0 | I20: ='App.2-AB_Capital Expenditures'!I19 -> 0
A21: ='LDC Info'!$E$14 -> Oshawa PUC Networks Inc. | B21: EB-2020-0048 | C21: 2021 | D21: 2020 | E21: 2015 | F21: General Plant | G21: ='App.2-AB_Capital Expenditures'!H14 -> 2014 | H21: ='App.2-AB_Capital Expenditures'!H20 -> 0 | I21: ='App.2-AB_Capital Expenditures'!I20 -> 0
A22: ='LDC Info'!$E$14 -> Oshawa PUC Networks Inc. | B22: EB-2020-0048 | C22: 2021 | D22: 2020 | E22: 2015 | F22: Total Expenditure | G22: ='App.2-AB_Capital Expenditures'!H14 -> 2014 | H22: ='App.2-AB_Capital Expenditures'!H21 -> 0 | I22: ='App.2-AB_Capital Expenditures'!I21 -> 0
A23: ='LDC Info'!$E$14 -> Oshawa PUC Networks Inc. | B23: EB-2020-0048 | C23: 2021 | D23: 2020 | E23: 2015 | F23: Capital Contributions | G23: ='App.2-AB_Capital Expenditures'!H14 -> 2014 | H23: ='App.2-AB_Capital Expenditures'!H22 -> 0 | I23: ='App.2-AB_Capital Expenditures'!I22 -> 0
A24: ='LDC Info'!$E$14 -> Oshawa PUC Networks Inc. | B24: EB-2020-0048 | C24: 2021 | D24: 2020 | E24: 2015 | F24: Net Capital Expenditures | G24: ='App.2-AB_Capital Expenditures'!H14 -> 2014 | H24: ='App.2-AB_Capital Expenditures'!H23 -> 0 | I24: ='App.2-AB_Capital Expenditures'!I23 -> 0
A25: ='LDC Info'!$E$14 -> Oshawa PUC Networks Inc. | B25: EB-2020-0048 | C25: 2021 | D25: 2020 | E25: 2015 | F25: System O&M | G25: ='App.2-AB_Capital Expenditures'!H14 -> 2014 | H25: ='App.2-AB_Capital Expenditures'!H24 -> 0 | I25: ='App.2-AB_Capital Expenditures'!I24 -> 0
A26: ='LDC Info'!$E$14 -> Oshawa PUC Networks Inc. | B26: EB-2020-0048 | C26: 2021 | D26: 2020 | E26: 2015 | F26: System Access | G26: ='App.2-AB_Capital Expenditures'!K14 -> 2015 | H26: ='App.2-AB_Capital Expenditures'!K17 -> 8595 | I26: ='App.2-AB_Capital Expenditures'!L17 -> 6236
A27: ='LDC Info'!$E$14 -> Oshawa PUC Networks Inc. | B27: EB-2020-0048 | C27: 2021 | D27: 2020 | E27: 2015 | F27: System Renewal | G27: ='App.2-AB_Capital Expenditures'!K14 -> 2015 | H27: ='App.2-AB_Capital Expenditures'!K18 -> 5943 | I27: ='App.2-AB_Capital Expenditures'!L18 -> 7233
A28: ='LDC Info'!$E$14 -> Oshawa PUC Networks Inc. | B28: EB-2020-0048 | C28: 2021 | D28: 2020 | E28: 2015 | F28: System Service | G28: ='App.2-AB_Capital Expenditures'!K14 -> 2015 | H28: ='App.2-AB_Capital Expenditures'!K19 -> 1068 | I28: ='App.2-AB_Capital Expenditures'!L19 -> 722
A29: ='LDC Info'!$E$14 -> Oshawa PUC Networks Inc. | B29: EB-2020-0048 | C29: 2021 | D29: 2020 | E29: 2015 | F29: General Plant | G29: ='App.2-AB_Capital Expenditures'!K14 -> 2015 | H29: ='App.2-AB_Capital Expenditures'!K20 -> 1675 | I29: ='App.2-AB_Capital Expenditures'!L20 -> 988
A30: ='LDC Info'!$E$14 -> Oshawa PUC Networks Inc. | B30: EB-2020-0048 | C30: 2021 | D30: 2020 | E30: 2015 | F30: Total Expenditure | G30: ='App.2-AB_Capital Expenditures'!K14 -> 2015 | H30: ='App.2-AB_Capital Expenditures'!K21 -> 17281 | I30: ='App.2-AB_Capital Expenditures'!L21 -> 15179
A31: ='LDC Info'!$E$14 -> Oshawa PUC Networks Inc. | B31: EB-2020-0048 | C31: 2021 | D31: 2020 | E31: 2015 | F31: Capital Contributions | G31: ='App.2-AB_Capital Expenditures'!K14 -> 2015 | H31: ='App.2-AB_Capital Expenditures'!K22 -> -4911 | I31: ='App.2-AB_Capital Expenditures'!L22 -> -3324
A32: ='LDC Info'!$E$14 -> Oshawa PUC Networks Inc. | B32: EB-2020-0048 | C32: 2021 | D32: 2020 | E32: 2015 | F32: Net Capital Expenditures | G32: ='App.2-AB_Capital Expenditures'!K14 -> 2015 | H32: ='App.2-AB_Capital Expenditures'!K23 -> 12370 | I32: ='App.2-AB_Capital Expenditures'!L23 -> 11855
A33: ='LDC Info'!$E$14 -> Oshawa PUC Networks Inc. | B33: EB-2020-0048 | C33: 2021 | D33: 2020 | E33: 2015 | F33: System O&M | G33: ='App.2-AB_Capital Expenditures'!K14 -> 2015 | H33: ='App.2-AB_Capital Expenditures'!K24 -> 2634.297574 | I33: ='App.2-AB_Capital Expenditures'!L24 -> 2797
A34: ='LDC Info'!$E$14 -> Oshawa PUC Networks Inc. | B34: =EBNUMBER -> EB-2020-0048 | C34: =TestYear -> 2021 | D34: =BridgeYear -> 2020 | E34: =RebaseYear -> 2015 | F34: System Access | G34: ='App.2-AB_Capital Expenditures'!N14 -> 2016 | H34: ='App.2-AB_Capital Expenditures'!N17 -> 3740 | I34: ='App.2-AB_Capital Expenditures'!O17 -> 3206.76
A35: ='LDC Info'!$E$14 -> Oshawa PUC Networks Inc. | B35: EB-2020-0048 | C35: 2021 | D35: 2020 | E35: 2015 | F35: System Renewal | G35: ='App.2-AB_Capital Expenditures'!N14 -> 2016 | H35: ='App.2-AB_Capital Expenditures'!N18 -> 4932 | I35: ='App.2-AB_Capital Expenditures'!O18 -> 4192.79
A36: ='LDC Info'!$E$14 -> Oshawa PUC Networks Inc. | B36: EB-2020-0048 | C36: 2021 | D36: 2020 | E36: 2015 | F36: System Service | G36: ='App.2-AB_Capital Expenditures'!N14 -> 2016 | H36: ='App.2-AB_Capital Expenditures'!N19 -> 1380 | I36: ='App.2-AB_Capital Expenditures'!O19 -> 1192.39
A37: ='LDC Info'!$E$14 -> Oshawa PUC Networks Inc. | B37: EB-2020-0048 | C37: 2021 | D37: 2020 | E37: 2015 | F37: General Plant | G37: ='App.2-AB_Capital Expenditures'!N14 -> 2016 | H37: ='App.2-AB_Capital Expenditures'!N20 -> 1180 | I37: ='App.2-AB_Capital Expenditures'!O20 -> 1447.84
A38: ='LDC Info'!$E$14 -> Oshawa PUC Networks Inc. | B38: EB-2020-0048 | C38: 2021 | D38: 2020 | E38: 2015 | F38: Total Expenditure | G38: ='App.2-AB_Capital Expenditures'!N14 -> 2016 | H38: ='App.2-AB_Capital Expenditures'!N21 -> 11232 | I38: ='App.2-AB_Capital Expenditures'!O21 -> 10039.78
A39: ='LDC Info'!$E$14 -> Oshawa PUC Networks Inc. | B39: EB-2020-0048 | C39: 2021 | D39: 2020 | E39: 2015 | F39: Capital Contributions | G39: ='App.2-AB_Capital Expenditures'!N14 -> 2016 | H39: ='App.2-AB_Capital Expenditures'!N22 -> -1455 | I39: ='App.2-AB_Capital Expenditures'!O22 -> -843
A40: ='LDC Info'!$E$14 -> Oshawa PUC Networks Inc. | B40: EB-2020-0048 | C40: 2021 | D40: 2020 | E40: 2015 | F40: Net Capital Expenditures | G40: ='App.2-AB_Capital Expenditures'!N14 -> 2016 | H40: ='App.2-AB_Capital Expenditures'!N23 -> 9777 | I40: ='App.2-AB_Capital Expenditures'!O23 -> 9196.78
A41: ='LDC Info'!$E$14 -> Oshawa PUC Networks Inc. | B41: EB-2020-0048 | C41: 2021 | D41: 2020 | E41: 2015 | F41: System O&M | G41: ='App.2-AB_Capital Expenditures'!N14 -> 2016 | H41: ='App.2-AB_Capital Expenditures'!N24 -> 2859.661858 | I41: ='App.2-AB_Capital Expenditures'!O24 -> 3017
A42: ='LDC Info'!$E$14 -> Oshawa PUC Networks Inc. | B42: EB-2020-0048 | C42: 2021 | D42: 2020 | E42: 2015 | F42: System Access | G42: ='App.2-AB_Capital Expenditures'!Q14 -> 2017 | H42: ='App.2-AB_Capital Expenditures'!Q17 -> 3150 | I42: ='App.2-AB_Capital Expenditures'!R17 -> 1792.92
A43: ='LDC Info'!$E$14 -> Oshawa PUC Networks Inc. | B43: EB-2020-0048 | C43: 2021 | D43: 2020 | E43: 2015 | F43: System Renewal | G43: ='App.2-AB_Capital Expenditures'!Q14 -> 2017 | H43: ='App.2-AB_Capital Expenditures'!Q18 -> 4472 | I43: ='App.2-AB_Capital Expenditures'!R18 -> 5475.4
A44: ='LDC Info'!$E$14 -> Oshawa PUC Networks Inc. | B44: EB-2020-0048 | C44: 2021 | D44: 2020 | E44: 2015 | F44: System Service | G44: ='App.2-AB_Capital Expenditures'!Q14 -> 2017 | H44: ='App.2-AB_Capital Expenditures'!Q19 -> 420 | I44: ='App.2-AB_Capital Expenditures'!R19 -> 941.25
A45: ='LDC Info'!$E$14 -> Oshawa PUC Networks Inc. | B45: EB-2020-0048 | C45: 2021 | D45: 2020 | E45: 2015 | F45: General Plant | G45: ='App.2-AB_Capital Expenditures'!Q14 -> 2017 | H45: ='App.2-AB_Capital Expenditures'!Q20 -> 755 | I45: ='App.2-AB_Capital Expenditures'!R20 -> 873.86
A46: ='LDC Info'!$E$14 -> Oshawa PUC Networks Inc. | B46: EB-2020-0048 | C46: 2021 | D46: 2020 | E46: 2015 | F46: Total Expenditure | G46: ='App.2-AB_Capital Expenditures'!Q14 -> 2017 | H46: ='App.2-AB_Capital Expenditures'!Q21 -> 8797 | I46: ='App.2-AB_Capital Expenditures'!R21 -> 9083.43
A47: ='LDC Info'!$E$14 -> Oshawa PUC Networks Inc. | B47: EB-2020-0048 | C47: 2021 | D47: 2020 | E47: 2015 | F47: Capital Contributions | G47: ='App.2-AB_Capital Expenditures'!Q14 -> 2017 | H47: ='App.2-AB_Capital Expenditures'!Q22 -> -1075 | I47: ='App.2-AB_Capital Expenditures'!R22 -> -1207
A48: ='LDC Info'!$E$14 -> Oshawa PUC Networks Inc. | B48: EB-2020-0048 | C48: 2021 | D48: 2020 | E48: 2015 | F48: Net Capital Expenditures | G48: ='App.2-AB_Capital Expenditures'!Q14 -> 2017 | H48: ='App.2-AB_Capital Expenditures'!Q23 -> 7722 | I48: ='App.2-AB_Capital Expenditures'!R23 -> 7876.43
A49: ='LDC Info'!$E$14 -> Oshawa PUC Networks Inc. | B49: EB-2020-0048 | C49: 2021 | D49: 2020 | E49: 2015 | F49: System O&M | G49: ='App.2-AB_Capital Expenditures'!Q14 -> 2017 | H49: ='App.2-AB_Capital Expenditures'!Q24 -> 2998.965718 | I49: ='App.2-AB_Capital Expenditures'!R24 -> 2724
A50: ='LDC Info'!$E$14 -> Oshawa PUC Networks Inc. | B50: EB-2020-0048 | C50: 2021 | D50: 2020 | E50: 2015 | F50: System Access | G50: ='App.2-AB_Capital Expenditures'!T14 -> 2018 | H50: ='App.2-AB_Capital Expenditures'!T17 -> 3435 | I50: ='App.2-AB_Capital Expenditures'!U17 -> 3438.23
A51: ='LDC Info'!$E$14 -> Oshawa PUC Networks Inc. | B51: EB-2020-0048 | C51: 2021 | D51: 2020 | E51: 2015 | F51: System Renewal | G51: ='App.2-AB_Capital Expenditures'!T14 -> 2018 | H51: ='App.2-AB_Capital Expenditures'!T18 -> 4761 | I51: ='App.2-AB_Capital Expenditures'!U18 -> 3778.57
A52: ='LDC Info'!$E$14 -> Oshawa PUC Networks Inc. | B52: EB-2020-0048 | C52: 2021 | D52: 2020 | E52: 2015 | F52: System Service | G52: ='App.2-AB_Capital Expenditures'!T14 -> 2018 | H52: ='App.2-AB_Capital Expenditures'!T19 -> 10455 | I52: ='App.2-AB_Capital Expenditures'!U19 -> 8514.25
A53: ='LDC Info'!$E$14 -> Oshawa PUC Networks Inc. | B53: EB-2020-0048 | C53: 2021 | D53: 2020 | E53: 2015 | F53: General Plant | G53: ='App.2-AB_Capital Expenditures'!T14 -> 2018 | H53: ='App.2-AB_Capital Expenditures'!T20 -> 888.7 | I53: ='App.2-AB_Capital Expenditures'!U20 -> 1298.59
A54: ='LDC Info'!$E$14 -> Oshawa PUC Networks Inc. | B54: EB-2020-0048 | C54: 2021 | D54: 2020 | E54: 2015 | F54: Total Expenditure | G54: ='App.2-AB_Capital Expenditures'!T14 -> 2018 | H54: ='App.2-AB_Capital Expenditures'!T21 -> 19539.7 | I54: ='App.2-AB_Capital Expenditures'!U21 -> 17029.64
A55: ='LDC Info'!$E$14 -> Oshawa PUC Networks Inc. | B55: EB-2020-0048 | C55: 2021 | D55: 2020 | E55: 2015 | F55: Capital Contributions | G55: ='App.2-AB_Capital Expenditures'!T14 -> 2018 | H55: ='App.2-AB_Capital Expenditures'!T22 -> -1095 | I55: ='App.2-AB_Capital Expenditures'!U22 -> -4072.53
A56: ='LDC Info'!$E$14 -> Oshawa PUC Networks Inc. | B56: EB-2020-0048 | C56: 2021 | D56: 2020 | E56: 2015 | F56: Net Capital Expenditures | G56: ='App.2-AB_Capital Expenditures'!T14 -> 2018 | H56: ='App.2-AB_Capital Expenditures'!T23 -> 18444.7 | I56: ='App.2-AB_Capital Expenditures'!U23 -> 12957.11
A57: ='LDC Info'!$E$14 -> Oshawa PUC Networks Inc. | B57: EB-2020-0048 | C57: 2021 | D57: 2020 | E57: 2015 | F57: System O&M | G57: ='App.2-AB_Capital Expenditures'!T14 -> 2018 | H57: ='App.2-AB_Capital Expenditures'!T24 -> 3015.220944 | I57: ='App.2-AB_Capital Expenditures'!U24 -> 3154
A58: ='LDC Info'!$E$14 -> Oshawa PUC Networks Inc. | B58: EB-2020-0048 | C58: 2021 | D58: 2020 | E58: 2015 | F58: System Access | G58: ='App.2-AB_Capital Expenditures'!W14 -> 2019 | H58: ='App.2-AB_Capital Expenditures'!W17 -> 3455 | I58: ='App.2-AB_Capital Expenditures'!X17 -> 10318.22
A59: ='LDC Info'!$E$14 -> Oshawa PUC Networks Inc. | B59: EB-2020-0048 | C59: 2021 | D59: 2020 | E59: 2015 | F59: System Renewal | G59: ='App.2-AB_Capital Expenditures'!W14 -> 2019 | H59: ='App.2-AB_Capital Expenditures'!W18 -> 4851 | I59: ='App.2-AB_Capital Expenditures'!X18 -> 6524.2
A60: ='LDC Info'!$E$14 -> Oshawa PUC Networks Inc. | B60: EB-2020-0048 | C60: 2021 | D60: 2020 | E60: 2015 | F60: System Service | G60: ='App.2-AB_Capital Expenditures'!W14 -> 2019 | H60: ='App.2-AB_Capital Expenditures'!W19 -> 15763 | I60: ='App.2-AB_Capital Expenditures'!X19 -> 11620.78
A61: ='LDC Info'!$E$14 -> Oshawa PUC Networks Inc. | B61: EB-2020-0048 | C61: 2021 | D61: 2020 | E61: 2015 | F61: General Plant | G61: ='App.2-AB_Capital Expenditures'!W14 -> 2019 | H61: ='App.2-AB_Capital Expenditures'!W20 -> 510 | I61: ='App.2-AB_Capital Expenditures'!X20 -> 704.47
A62: ='LDC Info'!$E$14 -> Oshawa PUC Networks Inc. | B62: EB-2020-0048 | C62: 2021 | D62: 2020 | E62: 2015 | F62: Total Expenditure | G62: ='App.2-AB_Capital Expenditures'!W14 -> 2019 | H62: ='App.2-AB_Capital Expenditures'!W21 -> 24579 | I62: ='App.2-AB_Capital Expenditures'!X21 -> 29167.67
A63: ='LDC Info'!$E$14 -> Oshawa PUC Networks Inc. | B63: EB-2020-0048 | C63: 2021 | D63: 2020 | E63: 2015 | F63: Capital Contributions | G63: ='App.2-AB_Capital Expenditures'!W14 -> 2019 | H63: ='App.2-AB_Capital Expenditures'!W22 -> -1105 | I63: ='App.2-AB_Capital Expenditures'!X22 -> -5931
A64: ='LDC Info'!$E$14 -> Oshawa PUC Networks Inc. | B64: EB-2020-0048 | C64: 2021 | D64: 2020 | E64: 2015 | F64: Net Capital Expenditures | G64: ='App.2-AB_Capital Expenditures'!W14 -> 2019 | H64: ='App.2-AB_Capital Expenditures'!W23 -> 23474 | I64: ='App.2-AB_Capital Expenditures'!X23 -> 23236.67
A65: ='LDC Info'!$E$14 -> Oshawa PUC Networks Inc. | B65: EB-2020-0048 | C65: 2021 | D65: 2020 | E65: 2015 | F65: System O&M | G65: ='App.2-AB_Capital Expenditures'!W14 -> 2019 | H65: ='App.2-AB_Capital Expenditures'!W24 -> 2877.866116 | I65: ='App.2-AB_Capital Expenditures'!X24 -> 3015
A66: ='LDC Info'!$E$14 -> Oshawa PUC Networks Inc. | B66: =EBNUMBER -> EB-2020-0048 | C66: =TestYear -> 2021 | D66: =BridgeYear -> 2020 | E66: =RebaseYear -> 2015 | F66: System Access | G66: ='App.2-AB_Capital Expenditures'!Z14 -> 2020 | H66: ='App.2-AB_Capital Expenditures'!Z17 -> 5790 | I66: ='App.2-AB_Capital Expenditures'!AA17 -> 1637.08893
A67: ='LDC Info'!$E$14 -> Oshawa PUC Networks Inc. | B67: EB-2020-0048 | C67: 2021 | D67: 2020 | E67: 2015 | F67: System Renewal | G67: ='App.2-AB_Capital Expenditures'!Z14 -> 2020 | H67: ='App.2-AB_Capital Expenditures'!Z18 -> 8129 | I67: ='App.2-AB_Capital Expenditures'!AA18 -> 3938.56726
A68: ='LDC Info'!$E$14 -> Oshawa PUC Networks Inc. | B68: EB-2020-0048 | C68: 2021 | D68: 2020 | E68: 2015 | F68: System Service | G68: ='App.2-AB_Capital Expenditures'!Z14 -> 2020 | H68: ='App.2-AB_Capital Expenditures'!Z19 -> 2508 | I68: ='App.2-AB_Capital Expenditures'!AA19 -> 1145.57768
A69: ='LDC Info'!$E$14 -> Oshawa PUC Networks Inc. | B69: EB-2020-0048 | C69: 2021 | D69: 2020 | E69: 2015 | F69: General Plant | G69: ='App.2-AB_Capital Expenditures'!Z14 -> 2020 | H69: ='App.2-AB_Capital Expenditures'!Z20 -> 2124 | I69: ='App.2-AB_Capital Expenditures'!AA20 -> 223.47768
A70: ='LDC Info'!$E$14 -> Oshawa PUC Networks Inc. | B70: EB-2020-0048 | C70: 2021 | D70: 2020 | E70: 2015 | F70: Total Expenditure | G70: ='App.2-AB_Capital Expenditures'!Z14 -> 2020 | H70: ='App.2-AB_Capital Expenditures'!Z21 -> 18551 | I70: ='App.2-AB_Capital Expenditures'!AA21 -> 6944.71155
A71: ='LDC Info'!$E$14 -> Oshawa PUC Networks Inc. | B71: EB-2020-0048 | C71: 2021 | D71: 2020 | E71: 2015 | F71: Capital Contributions | G71: ='App.2-AB_Capital Expenditures'!Z14 -> 2020 | H71: ='App.2-AB_Capital Expenditures'!Z22 -> -1958 | I71: ='App.2-AB_Capital Expenditures'!AA22 -> -410.6
A72: ='LDC Info'!$E$14 -> Oshawa PUC Networks Inc. | B72: EB-2020-0048 | C72: 2021 | D72: 2020 | E72: 2015 | F72: Net Capital Expenditures | G72: ='App.2-AB_Capital Expenditures'!Z14 -> 2020 | H72: ='App.2-AB_Capital Expenditures'!Z23 -> 16593 | I72: ='App.2-AB_Capital Expenditures'!AA23 -> 6534.11155
A73: ='LDC Info'!$E$14 -> Oshawa PUC Networks Inc. | B73: EB-2020-0048 | C73: 2021 | D73: 2020 | E73: 2015 | F73: System O&M | G73: ='App.2-AB_Capital Expenditures'!Z14 -> 2020 | H73: ='App.2-AB_Capital Expenditures'!Z24 -> 3270.614352 | I73: ='App.2-AB_Capital Expenditures'!AA24 -> 1183.8
A74: ='LDC Info'!$E$14 -> Oshawa PUC Networks Inc. | B74: EB-2020-0048 | C74: 2021 | D74: 2020 | E74: 2015 | F74: System Access | G74: ='App.2-AB_Capital Expenditures'!AC14 -> 2021 | H74: ='App.2-AB_Capital Expenditures'!AC17 -> 5911
A75: ='LDC Info'!$E$14 -> Oshawa PUC Networks Inc. | B75: EB-2020-0048 | C75: 2021 | D75: 2020 | E75: 2015 | F75: System Renewal | G75: ='App.2-AB_Capital Expenditures'!AC14 -> 2021 | H75: ='App.2-AB_Capital Expenditures'!AC18 -> 7497.5
A76: ='LDC Info'!$E$14 -> Oshawa PUC Networks Inc. | B76: EB-2020-0048 | C76: 2021 | D76: 2020 | E76: 2015 | F76: System Service | G76: ='App.2-AB_Capital Expenditures'!AC14 -> 2021 | H76: ='App.2-AB_Capital Expenditures'!AC19 -> 1109
A77: ='LDC Info'!$E$14 -> Oshawa PUC Networks Inc. | B77: EB-2020-0048 | C77: 2021 | D77: 2020 | E77: 2015 | F77: General Plant | G77: ='App.2-AB_Capital Expenditures'!AC14 -> 2021 | H77: ='App.2-AB_Capital Expenditures'!AC20 -> 1975
A78: ='LDC Info'!$E$14 -> Oshawa PUC Networks Inc. | B78: EB-2020-0048 | C78: 2021 | D78: 2020 | E78: 2015 | F78: Total Expenditure | G78: ='App.2-AB_Capital Expenditures'!AC14 -> 2021 | H78: ='App.2-AB_Capital Expenditures'!AC21 -> 16492.5
A79: ='LDC Info'!$E$14 -> Oshawa PUC Networks Inc. | B79: EB-2020-0048 | C79: 2021 | D79: 2020 | E79: 2015 | F79: Capital Contributions | G79: ='App.2-AB_Capital Expenditures'!AC14 -> 2021 | H79: ='App.2-AB_Capital Expenditures'!AC22 -> -2043.4
A80: ='LDC Info'!$E$14 -> Oshawa PUC Networks Inc. | B80: EB-2020-0048 | C80: 2021 | D80: 2020 | E80: 2015 | F80: Net Capital Expenditures | G80: ='App.2-AB_Capital Expenditures'!AC14 -> 2021 | H80: ='App.2-AB_Capital Expenditures'!AC23 -> 14449.1
A81: ='LDC Info'!$E$14 -> Oshawa PUC Networks Inc. | B81: EB-2020-0048 | C81: 2021 | D81: 2020 | E81: 2015 | F81: System O&M | G81: ='App.2-AB_Capital Expenditures'!AC14 -> 2021 | H81: ='App.2-AB_Capital Expenditures'!AC24 -> 3168.448434
A82: ='LDC Info'!$E$14 -> Oshawa PUC Networks Inc. | B82: EB-2020-0048 | C82: 2021 | D82: 2020 | E82: 2015 | F82: System Access | G82: ='App.2-AB_Capital Expenditures'!AD14 -> 2022 | H82: ='App.2-AB_Capital Expenditures'!AD17 -> 4895.266574
A83: ='LDC Info'!$E$14 -> Oshawa PUC Networks Inc. | B83: EB-2020-0048 | C83: 2021 | D83: 2020 | E83: 2015 | F83: System Renewal | G83: ='App.2-AB_Capital Expenditures'!AD14 -> 2022 | H83: ='App.2-AB_Capital Expenditures'!AD18 -> 9311
A84: ='LDC Info'!$E$14 -> Oshawa PUC Networks Inc. | B84: EB-2020-0048 | C84: 2021 | D84: 2020 | E84: 2015 | F84: System Service | G84: ='App.2-AB_Capital Expenditures'!AD14 -> 2022 | H84: ='App.2-AB_Capital Expenditures'!AD19 -> 799
A85: ='LDC Info'!$E$14 -> Oshawa PUC Networks Inc. | B85: EB-2020-0048 | C85: 2021 | D85: 2020 | E85: 2015 | F85: General Plant | G85: ='App.2-AB_Capital Expenditures'!AD14 -> 2022 | H85: ='App.2-AB_Capital Expenditures'!AD20 -> 851
A86: ='LDC Info'!$E$14 -> Oshawa PUC Networks Inc. | B86: EB-2020-0048 | C86: 2021 | D86: 2020 | E86: 2015 | F86: Total Expenditure | G86: ='App.2-AB_Capital Expenditures'!AD14 -> 2022 | H86: ='App.2-AB_Capital Expenditures'!AD21 -> 15856.26657
A87: ='LDC Info'!$E$14 -> Oshawa PUC Networks Inc. | B87: EB-2020-0048 | C87: 2021 | D87: 2020 | E87: 2015 | F87: Capital Contributions | G87: ='App.2-AB_Capital Expenditures'!AD14 -> 2022 | H87: ='App.2-AB_Capital Expenditures'!AD22 -> -1692.266574
A88: ='LDC Info'!$E$14 -> Oshawa PUC Networks Inc. | B88: EB-2020-0048 | C88: 2021 | D88: 2020 | E88: 2015 | F88: Net Capital Expenditures | G88: ='App.2-AB_Capital Expenditures'!AD14 -> 2022 | H88: ='App.2-AB_Capital Expenditures'!AD23 -> 14164
A89: ='LDC Info'!$E$14 -> Oshawa PUC Networks Inc. | B89: EB-2020-0048 | C89: 2021 | D89: 2020 | E89: 2015 | F89: System O&M | G89: ='App.2-AB_Capital Expenditures'!AD14 -> 2022 | H89: ='App.2-AB_Capital Expenditures'!AD24 -> 3231.817403
A90: ='LDC Info'!$E$14 -> Oshawa PUC Networks Inc. | B90: EB-2020-0048 | C90: 2021 | D90: 2020 | E90: 2015 | F90: System Access | G90: ='App.2-AB_Capital Expenditures'!AE14 -> 2023 | H90: ='App.2-AB_Capital Expenditures'!AE17 -> 4499.427035
A91: ='LDC Info'!$E$14 -> Oshawa PUC Networks Inc. | B91: EB-2020-0048 | C91: 2021 | D91: 2020 | E91: 2015 | F91: System Renewal | G91: ='App.2-AB_Capital Expenditures'!AE14 -> 2023 | H91: ='App.2-AB_Capital Expenditures'!AE18 -> 8797
A92: ='LDC Info'!$E$14 -> Oshawa PUC Networks Inc. | B92: EB-2020-0048 | C92: 2021 | D92: 2020 | E92: 2015 | F92: System Service | G92: ='App.2-AB_Capital Expenditures'!AE14 -> 2023 | H92: ='App.2-AB_Capital Expenditures'!AE19 -> 1383
A93: ='LDC Info'!$E$14 -> Oshawa PUC Networks Inc. | B93: EB-2020-0048 | C93: 2021 | D93: 2020 | E93: 2015 | F93: General Plant | G93: ='App.2-AB_Capital Expenditures'!AE14 -> 2023 | H93: ='App.2-AB_Capital Expenditures'!AE20 -> 794
A94: ='LDC Info'!$E$14 -> Oshawa PUC Networks Inc. | B94: EB-2020-0048 | C94: 2021 | D94: 2020 | E94: 2015 | F94: Total Expenditure | G94: ='App.2-AB_Capital Expenditures'!AE14 -> 2023 | H94: ='App.2-AB_Capital Expenditures'!AE21 -> 15473.42703
A95: ='LDC Info'!$E$14 -> Oshawa PUC Networks Inc. | B95: EB-2020-0048 | C95: 2021 | D95: 2020 | E95: 2015 | F95: Capital Contributions | G95: ='App.2-AB_Capital Expenditures'!AE14 -> 2023 | H95: ='App.2-AB_Capital Expenditures'!AE22 -> -1555.427035
A96: ='LDC Info'!$E$14 -> Oshawa PUC Networks Inc. | B96: EB-2020-0048 | C96: 2021 | D96: 2020 | E96: 2015 | F96: Net Capital Expenditures | G96: ='App.2-AB_Capital Expenditures'!AE14 -> 2023 | H96: ='App.2-AB_Capital Expenditures'!AE23 -> 13918
A97: ='LDC Info'!$E$14 -> Oshawa PUC Networks Inc. | B97: EB-2020-0048 | C97: 2021 | D97: 2020 | E97: 2015 | F97: System O&M | G97: ='App.2-AB_Capital Expenditures'!AE14 -> 2023 | H97: ='App.2-AB_Capital Expenditures'!AE24 -> 3296.453751
A98: ='LDC Info'!$E$14 -> Oshawa PUC Networks Inc. | B98: =EBNUMBER -> EB-2020-0048 | C98: =TestYear -> 2021 | D98: =BridgeYear -> 2020 | E98: =RebaseYear -> 2015 | F98: System Access | G98: ='App.2-AB_Capital Expenditures'!AF14 -> 2024 | H98: ='App.2-AB_Capital Expenditures'!AF17 -> 4629.335764
A99: ='LDC Info'!$E$14 -> Oshawa PUC Networks Inc. | B99: EB-2020-0048 | C99: 2021 | D99: 2020 | E99: 2015 | F99: System Renewal | G99: ='App.2-AB_Capital Expenditures'!AF14 -> 2024 | H99: ='App.2-AB_Capital Expenditures'!AF18 -> 8884
A100: ='LDC Info'!$E$14 -> Oshawa PUC Networks Inc. | B100: EB-2020-0048 | C100: 2021 | D100: 2020 | E100: 2015 | F100: System Service | G100: ='App.2-AB_Capital Expenditures'!AF14 -> 2024 | H100: ='App.2-AB_Capital Expenditures'!AF19 -> 886
A101: ='LDC Info'!$E$14 -> Oshawa PUC Networks Inc. | B101: EB-2020-0048 | C101: 2021 | D101: 2020 | E101: 2015 | F101: General Plant | G101: ='App.2-AB_Capital Expenditures'!AF14 -> 2024 | H101: ='App.2-AB_Capital Expenditures'!AF20 -> 875
A102: ='LDC Info'!$E$14 -> Oshawa PUC Networks Inc. | B102: EB-2020-0048 | C102: 2021 | D102: 2020 | E102: 2015 | F102: Total Expenditure | G102: ='App.2-AB_Capital Expenditures'!AF14 -> 2024 | H102: ='App.2-AB_Capital Expenditures'!AF21 -> 15274.33576
A103: ='LDC Info'!$E$14 -> Oshawa PUC Networks Inc. | B103: EB-2020-0048 | C103: 2021 | D103: 2020 | E103: 2015 | F103: Capital Contributions | G103: ='App.2-AB_Capital Expenditures'!AF14 -> 2024 | H103: ='App.2-AB_Capital Expenditures'!AF22 -> -1600.335764
A104: ='LDC Info'!$E$14 -> Oshawa PUC Networks Inc. | B104: EB-2020-0048 | C104: 2021 | D104: 2020 | E104: 2015 | F104: Net Capital Expenditures | G104: ='App.2-AB_Capital Expenditures'!AF14 -> 2024 | H104: ='App.2-AB_Capital Expenditures'!AF23 -> 13674
A105: ='LDC Info'!$E$14 -> Oshawa PUC Networks Inc. | B105: EB-2020-0048 | C105: 2021 | D105: 2020 | E105: 2015 | F105: System O&M | G105: ='App.2-AB_Capital Expenditures'!AF14 -> 2024 | H105: ='App.2-AB_Capital Expenditures'!AF24 -> 3362.382826
A106: ='LDC Info'!$E$14 -> Oshawa PUC Networks Inc. | B106: EB-2020-0048 | C106: 2021 | D106: 2020 | E106: 2015 | F106: System Access | G106: ='App.2-AB_Capital Expenditures'!AG14 -> 2025 | H106: ='App.2-AB_Capital Expenditures'!AG17 -> 4644.619144
A107: ='LDC Info'!$E$14 -> Oshawa PUC Networks Inc. | B107: EB-2020-0048 | C107: 2021 | D107: 2020 | E107: 2015 | F107: System Renewal | G107: ='App.2-AB_Capital Expenditures'!AG14 -> 2025 | H107: ='App.2-AB_Capital Expenditures'!AG18 -> 8818
A108: ='LDC Info'!$E$14 -> Oshawa PUC Networks Inc. | B108: EB-2020-0048 | C108: 2021 | D108: 2020 | E108: 2015 | F108: System Service | G108: ='App.2-AB_Capital Expenditures'!AG14 -> 2025 | H108: ='App.2-AB_Capital Expenditures'!AG19 -> 995
A109: ='LDC Info'!$E$14 -> Oshawa PUC Networks Inc. | B109: EB-2020-0048 | C109: 2021 | D109: 2020 | E109: 2015 | F109: General Plant | G109: ='App.2-AB_Capital Expenditures'!AG14 -> 2025 | H109: ='App.2-AB_Capital Expenditures'!AG20 -> 713
A110: ='LDC Info'!$E$14 -> Oshawa PUC Networks Inc. | B110: EB-2020-0048 | C110: 2021 | D110: 2020 | E110: 2015 | F110: Total Expenditure | G110: ='App.2-AB_Capital Expenditures'!AG14 -> 2025 | H110: ='App.2-AB_Capital Expenditures'!AG21 -> 15170.61914
A111: ='LDC Info'!$E$14 -> Oshawa PUC Networks Inc. | B111: EB-2020-0048 | C111: 2021 | D111: 2020 | E111: 2015 | F111: Capital Contributions | G111: ='App.2-AB_Capital Expenditures'!AG14 -> 2025 | H111: ='App.2-AB_Capital Expenditures'!AG22 -> -1605.619144
A112: ='LDC Info'!$E$14 -> Oshawa PUC Networks Inc. | B112: EB-2020-0048 | C112: 2021 | D112: 2020 | E112: 2015 | F112: Net Capital Expenditures | G112: ='App.2-AB_Capital Expenditures'!AG14 -> 2025 | H112: ='App.2-AB_Capital Expenditures'!AG23 -> 13565
A113: ='LDC Info'!$E$14 -> Oshawa PUC Networks Inc. | B113: EB-2020-0048 | C113: 2021 | D113: 2020 | E113: 2015 | F113: System O&M | G113: ='App.2-AB_Capital Expenditures'!AG14 -> 2025 | H113: ='App.2-AB_Capital Expenditures'!AG24 -> 3429.630482

Sheet App.2-AC_Customer Engagement
B1: File Number: | C1: =EBNUMBER -> EB-2020-0048
B2: Exhibit:
B3: Tab:
B4: Schedule:
B5: Page:
B7: Date:
A9: Appendix 2-AC
A10: Customer Engagement Activities Summary
A12: Provide a list of customer engagement activities | B12: Provide a list of customer needs and preferences identified through each engagement activity | C12: Actions taken to respond to identified needs and preferences. If no action was taken, explain why.
A13: 3rd Party Customer Engagement Investments
A14: Residential & Small Business Customer Survey 2018 (telephone) | B14: The primary purpose of the Annual Customer Satisfaction survey is to gather information about satisfaction, customer affinity, feelings about outages and bills. Respondents are given an open-ended question to provide suggestions for improvement. For Fall 2018 additional questions around preferred method for LDC to communicate with customers when there is a billing issue or an unplanned outage. Respondents were asked about their satisfaction with their access to services and their priority rating for 12 operational issues. | C14: Questions used in the telephone survey about communication preferences, satisfaction with access to services, and priority ratings were replicated in the Taking A.I.M. online process. Feedback and insights are used to shape the COS 5 year plan. Following the 2018 survey: a Self Service Hub for customers was created in 2019. Targets for various activities were increased: for example OP's standard for new connections is 100% in 2 days, while the OEB standard is 90% in 5 days, OP's grade of service standard in 2018 was 90%, 92% in 2019 and 93% for 2020. The OEB standard is 65%.
A15: Residential & Small Business Customer Survey 2017 (telephone) | B15: In addition to the primary purpose of the Annual Customer Satisfaction survey, feedback about the role technology plays in achieving higher levels of service for customers and making the LDC more efficient were asked. Respondents were asked to assign an importance level for 10 customer relevant technologically enabled operational items. | C15: Data from the survey show Oshawa Power customers as having about the same level of preference for using the telephone to get information as other LDCs in southern Ontario. The data also shows there are customers willing to utilize technology. These findings help determine what enhancements could/should be made to the website and its self-service options. Following the 2017 survey, online forms such as: move in/out, account transfer forms, report vandalism and others was added to the website.
A16: Residential & Small Business Customer Survey 2014 (telephone) | B16: In addition to the primary purpose of the Annual Customer Satisfaction survey, Oshawa Power took the opportunity to learn more about respondent expectations as they relate to Outages and Outage Management. | C16: Oshawa Power survey respondents rate OP just as favourably as found in the UtilityPULSE database for other LDCs, as it relates to having a standard of reliability that meets their expectation. OP used the 2014 survey to gain further insight into the effects of outages. In addition, OP asked respondents to provide a priority level for 10 operational items. Items such as: burying overhead wires, investing in tree trimming, developing a smartphone application, etc. Findings are used to determine timing of operational changes. One of the ways communication was enhanced was to embrace social media. In 2015 OP started using Twitter, Facebook and Linkedin.
A17: Large Commercial Customer survey 2018 | B17: This survey was designed to gather information about satisfaction, billings, outages and company image. More importantly the survey asked telephone survey respondents to provide a priority rating for 17 items. | C17: The Key Account strategy was changed, see Power Quality & Reliability below, and Quarterly Key Account Meetings with OPUC’s 30 largest customers below.
A18: Electricity Safety survey 2016 | B18: This is a standardized survey to engage consumers in Oshawa Power community about electricity safety. | C18: This was a baseline survey, Oshawa results were compared with the results from 34 LDCs. Internal discussions lead to "reminders" going out to customers.
A19: Electricity Safety survey 2018 | B19: Second run to engage consumers about electricity safety. | C19: Oshawa Power's score of 85 was higher than the average score of 82 for 33 Ontario LDCs.
A20: Electricity Safety education 2018 | B20: The goal is to provide on-going educational support regarding electricity safety; findings from the 2016 and 2018 surveys showed a need for more education. | C20: In order to help educate, Oshawa installed an interactive electricity safety quiz, with supporting explainer videos, on line - available 24/7. https://www.opuc.on.ca/test-your-electrical-safety/ In 2018 Oshawa Power also created 5 live action safety videos that demostrated and communicated key safety messages. These were posted on website and shared through social media.
A21: UtilityPULSE facilitated review of Customer Engagement activities 2018 | B21: The purpose of this session was to: - Conduct a review of current CE activities - Leverage CE activities for gathering feedback - Identify ways to get the best from internal resources - Ensure understanding of requirements to support COS application | C21: Clarification of roles and responsibilities between internal resources, corporate resources and third party resources as they relate to various customer engagement activities. Project time-table was also established. UtilityPULSE also lead a discussio about current industry & customer trends. Action was taken to leverage OP's investment in the annual telephone customer survey to capture additional customer feedback. Topic areas for online surveys were identified.
A22: Taking AIM (Applied Insights Methodology): Oshawa Power's COS DSP online survey 2019 | B22: A complementary methodology (online) to gather information, to inform, go gather feedback, to cOPture insights, to gain wisdom from customer respondents. One of the goals of the online survey is to collect specific feedback for the COS application. Another goal with a well constructed survey is to enhance the organization's credibility in the eyes of the respondent. The survey had seven segments, called "Chapters". | C22: Data, information and insights are to be used to help shape the COS DSP plan being submitted to the OEB.
A23: Taking AIM (Applied Insights Methodology): Oshawa Power's COS DSP online survey - Chapter 1 2019 "About your Oshawa Power" | B23: Chapter survey 1 is designed to gauge the level of respondent disposition, i.e., positive or negative, towards Oshawa Power as a company. Respondents would be introduced to important concepts such as: Make Your Voice Count and Wisdom from Customers. This was a Level 1 (Informing & Information Gathering) & 2 (Gathering Feedback) engagement survey which is about raising awareness, providing education, and Capturing perceptions. The primary goal of the Taking A.I.M. process is to break down a large complex topics into smaller more manageable pieces. | C23: OP is very highly rated as a trusted and trustworthy company. Findings from the online survey Chapter 1 are compared with other sources of data i.e., telephone to determine to what degree, if any, numerical results should be adjusted. No adjustments were made or needed to online survey data.
A24: Taking AIM (Applied Insights Methodology): Oshawa Power's COS DSP online survey - Chapter 2 2019 "The Electricity Industry and Oshawa Power's role in it" | B24: Chapter survey 2 is designed to help educate respondents about how the electricity system works in Ontario and Oshawa Power's role in it. | C24: The vast majority of LDC customers view their bill as a total amount, with few actually knowing that Oshawa Power doesnot receive the full amount. By knowing more about the industry the belief is, respondents should be able to provide better information. Information received shows Oshawa Power getting high marks for " quickly handling outages and restoring power" and "having a standard of reliabiity that meets with customer expectations"
A25: Taking AIM (Applied Insights Methodology): Oshawa Power's COS DSP online survey - Chapter 3 2019 "Customer priorities, which are the important ones?" | B25: Chapter survey 3 is about gaining a better understanding of customer priorities which affects costs. This was a Level 2 (Gathering Feedback) and Level 3 (Capturing Insights by Involving Stakeholders) engagement survey. This survey also introduced respondents to a concept called Help Us Decide. To ensure the list of priorities was comprehensive, respondents were give an open-ended question to allow for the inclusion of more priority planning items. | C25: Respondents were asked to assign an importance level to 15 operational items which affect costs. Results from the online survey coupled with results from the 2018 telephone survey question regarding 'Priority Planning' are used to determine which items have more support by the customer base. Findings include, from respondent feedback, there is tremendous amount of support for continuously improving the safety and reliability of the electricity network and for reducing response times to outages. And most importantly remaining focused on keeping costs low.
A26: Taking AIM (Applied Insights Methodology): Oshawa Power's COS DSP online survey - Chapter 4 2019 "Customer insights about billing and outages" | B26: Chapter survey 4 is about billing and outages. This is a Level 2 and Level 3 engagement survey. Bills & blackouts (outages) are known as the "Killer B's" - a very important topic for customers. Barriers to moving to e-bills were ranked by respondents. | C26: Survey results do not support a need to raise current standards are they relate to: accurately billing customers, standard of reliability, or quickly handling outages. OP learned that the 2 major barriers for moving customers to e-bills was "some customers do not have access to the internet" and "some customers are not comfortable with technology". OP also learned that customers much prefer telephone notification for push type of communications over other means. This later finding means that the COS DSP plan has to take into account future technological changes to service.
A27: Taking AIM (Applied Insights Methodology): Oshawa Power's COS DSP online survey - Chapter 5 2019 "Facilities and General Plant Capital investments" | B27: Chapter survey 5 is about prioritizing capital investments in a potential new facility and in the General Plant budget. This is a Level 2 and Level 3 engagement survey. | C27: Data received shows there are some respondents who simply will not support any increase, but the majority of customers will when that increase is reasonable. As it relates to a new facility and re-locating, there is majority support for doing so - however, there will be critics. These findings will affect decisions made around OP's facility.
A28: Taking AIM (Applied Insights Methodology): Oshawa Power's COS DSP online survey - Chapter 6 2019 "Gathering insights about customer care operational improvements" | B28: Chapter survey 6 is about identifying priorities and testing concepts as they relate to subjects such as: communication, customer care operations, satisfaction with information provided on things such as electricity safety, and facilities. This is a Level 3 and Level 4 (Gaining Wisdom by Participating with People) engagement survey. | C28: Findings include a desire for more communication. Respondents were asked which Customer Care operational items that OP ought to work on over the next 5 years. Findings also show very little support for extending office hours. These findings will help shape the COS application.
A29: Taking AIM (Applied Insights Methodology): Oshawa Power's COS DSP online survey - Chapter 7 2019 "Distribution System Plan Capital investments" | B29: Chapter survey 7 is about specific DSP topics, specifically investments in system renewal and system service. This survey is a Level 3 and Level 4 engagement survey. | C29: Respondents were asked difficult questions with no easy answers. None-the-less, the majority of respondents supported investments at or higher than the level of cost recommended by Oshawa Power. Customer comments indicate that it is important for the COS DSP plan being submitted to the OEB continue to exhibit Oshawa Power's pragmatism and willingness to keep cots low.
A30: Customer and Community Engagement - Gaining Wisdom by Participating with People
A31: Enhancing Trust & Credibility through Stakeholder Empowerment | B31: Making it easier for customers to get information or resolve issues is the goal of Level 5 engagement. | C31: These items are reviewed internally and changed as required. More will be added at a time and pace desired by customers but after COS application has been completed. OP has revamped its website to include items to assist customers for dealing with issues, providing information/feeback, or finding information. Ensuring the website was mobile friendly and that it includes such things as a Forms Section and TOU status bar. Also, launched in 2017 was Customer Service Open Houses. While each open house event has a specific theme, these are an important opportunity to connect with customers.
A32: - Consulting with others regarding regional planning issues | B32: We have attended 7 meetings in an 18 month period ending in November 2019 to provide input and expertise for regional planning issues, power reliability and/or quality The following are the events we have attended in terms of regional planning: 1. 05/17/18 Hydro One - GTA East Outage Conference – Eric/Roger 2. 12/04/18 Hydro One - GTA East Outage Conference – Eric/Roger 3. 02/20/19 GTA East Regional Planning Meeting – Preliminary Discussion Needs Assessment (NA) – Eric 4. 05/16/19 Hydro One - GTA East Outage Conference – Eric/Roger 5. 06/24/19 GTA East Regional Planning Meeting – Kick Off Meeting Needs Assessment - Eric 6. 08/07/19 GTA East Regional Planning Meeting for NA – Eric/Matt 7. 11/28/19 Hydro One - GTA East Outage Conference – Eric/Roger Please also refer to the following link regarding regional planning documents for reference: https://www.hydroone.com/about/corporate-information/regional-plans/gta-east | C32: OP's operational plan is adjusted based on identified needs.
A33: - Working with others to educate and promote conservation (CDM) | B33: Prior to the CDM framework being shut down in March 2019, meetings were held with various community groups to promote energy conservation. | C33: Materials provided were adjusted as necessary for the community meetings.
A34: - Electricity safety in the community | B34: Improve electricity safety knowledge by working with the Electrical Safety Authority and other safety organizations. | C34: Participating in meetings, coupled with results from the Electricity Safety Surveys, have resulted in the installation of an electricity safety quiz with explainer videos on OP's website In 2018 Oshawa Power created 5 live action safety videos that demostrated and communicated key safety messages. These were posted on website and shared through social media. Also, an Annual Contractor Safety Day was launched in 2018.
A35: -Community emergency preparedness | B35: Supporting emergency preparedness activities with communities, police and fire. | C35: OP has develop a community preparedness plan in partnership with the City of Oshawa. Police and Fire have designated telephone number to access OP professional personnel. In the last 24 months Police or Fire have requested emergency assistance from OP 151 times.
A36: - Power quality and reliability | B36: Large commercial customers require special attention especially as they relate to power quality and reliability. OP meets with these customers, as a minimum, bi-annually. | C36: OP is out in the field on a monthly basis meeting with key accounts to discuss programs, incentives and account options. Their bills are reviewed every month and any anomoly will result in a phone call to find out what has changed to cause the bill to flucuate.
A37: - Quarterly Key Account Meetings with OPUC’s 30 largest customers. - Individual customer service sessions with any business seeking to reduce their energy cost. | B37: The following list of customer needs and preferences have been identified through our outreach and engagement with our large commercial sector: Assistance in understanding dynamic policy eligibilities and updates; for example changes to OREC; Assistance opting in/out of the Industrial Conservation Initiative; Assistance understanding trends with regard to electricity pricing and how the pricing is represented on provincially mandated bill templates; Assistance with regard to energy-related grant programs and incentives such as Net Metering, Provincial program cancellations and new Federal programs; Collaboration with regard to OPUCN’s emergency preparedness and response planning; and, Assistance with interpreting technologies that can assist with bill mitigation. | C37: OPUCN responded to the identified needs in the following ways: OPUCN regulatory staff held personal meetings, issued official letters and followed-up with personal communications regarding the OREC eligibility. Staff have also offered to present to customer executive teams to facilitate their understanding of policy changes. OPUCN runs a detailed outreach and engagement process for the ICI each year, which involves personal outreach, analysis of past performance in the ICI program and communications to prevent missed deadlines. OPUCN provides access to data systems such as Kinetiq to customers struggling to understand their consumption and demand. We are also working to implement dashboards for key clients. OPUCN proactively reached-out to key accounts with a listing of incentive programs for which they were eligible. Every large commercial customer has a designated telephone number to access OP professional personnel. OPUCN regularly responds to questions about bill-mitigating technologies such as batteries and CHPs, based on unique inquiries submitted. It is estimated that OPUCN hosts approximately 130 customer touch-points per year.
A38: - Forming partnerships, alliances | B38: Reducing costs and improving service is achieved through partnerships and buying arrangements. | C38: Oshawa Power is working with neighbouring utilities to create cost savings and efficiencies through a joint purchasing agreement.
A39: - Participating in various industry associations | B39: Actively participate in the EDA, and other associations such as The Uitlities Standards Forum (USF),OEB Activity and Program Based Benchmarking Workshops, EDA Market Renewal Program (MRP) Committee, IESO Crisis Management Support Team (CMST), Infrastructure Health and Safety Association (IHSA) - Seat on the Board, We are also part of the Harris Users Forum; the purpose is to keep up-to-date on new ideas, trends and emerging issues. | C39: OEB Activity and Program Based Benchmarking Workshops EDA Market Renewal Program (MRP) Committee IESO Crisis Management Support Team (CMST) Infrastructure Health and Safety Association (IHSA) - Seat on the Board. The main benefit of participating in these Committees and panels is to keep up to date on new processes/regulations that are being introduced to the industry and to have input on industry changes. The Uitlities Standards Forum (USF). We are a part of the Regulatory, Engineering, Customer Service and IT forums. Benefits from being a part of USF: - Detailed discussions on emerging topics from the OEB and IESO on industry changes - Personally have participated in two working groups: RRR reporting and USofA accounts - The group develops templates and best practice guides which I have personally used. For example, best practices for tracking RRR metrics, templates for customer notices, common principles for accounting deferral and variance accounts. We are also part of the Harris Users Forum
A40: - Working with local Chambers of Commerce | B40: Ensuring small business are getting information, especially about energy conservation, is the reason we support Chambers in our geographic area. | C40: Chambers are contacted in advance of any meeting to determine what issues or concerns have been raised by Chamber membership which would be addressed by OP at the meeting.
A41: - Engaging customers - Social Media | B41: Though OP posts information to its base of "social media" users | C41: Twitter and Facebook social media postings were made to encourage participation in the Oshawa Power COS DSP online survey.
A42: - Engaging customers - Contests | B42: Helping to make OP more efficient by moving more customers to e-billing was done through a contest and refreshing CSR training to encourage enrollment | C42: OPT has ran 1 contest and applied CSR training over the past 24 months which have resulted in 5,266 people on ebills.
A43: Gathering Feedback via Consultation
A44: - Regular Customer Satisfaction Survey via UtilityPULSE | B44: Gauging customer satisfaction levels, issues with outages and/or billing, and giving respondents an "open space" for comment is the purpose of the annual survey. OP's ratings are compared to an Ontario benchmark and a National benchmark. | C44: OP's coresurvey contains supplemental questions to help determine what kinds of change could//should be made. See Taking A.I.M. report for more details. For Fall 2018, OP included supplemental questions to gain a better understanding of customer priorities. Following the survey, a Self Service Hub for customers was launched in 2019.
A45: - Electrical contractors | B45: The goal is to keep contractors up-to-date on conservation incentives and opportunities. In addition to address any concern contractors have with OP | C45: In 2018 Oshawa Power hosted their first Developer Conference in June and also hosted Contractor Safety Day in November. In 2019 Oshawa Power expanded on Contractor Safety and partnered with ORCGA and hosted a larger event in November. The attendance more than doubled from 2018. Also, Oshawa Power created a "Contractor's Corner" on the website for contractors and builders in 2018.
A46: - Internal committee meetings with other LDCs | B46: Sharing of best practices with the goal to be more efficient. | C46: From a communications training course Oshawa Power was able to gain insight from PUC Services Inc about their customer engagement campaigns and in turn Oshawa Power shared their experiences with Lakefront Utilities. Time was saved as ideas were shared.
A47: - Vegetation management | B47: In OP's territory vegetation management is important because about 6% of outages are caused by issues with vegetation. Also, vegetation management can be a controversial issue with customers. | C47: While outages due to vegetation management is low when compared to rural type LDCs, to ensure customers have access to information we have our tree trimming schedule online https://www.opuc.on.ca/residential/tree-trimming/
A48: - Community outreach | B48: Giving information and getting feedback on issues and concerns is the purpose of town-hall, community events, tradeshows and on-site type meetings. | C48: Information is collected and reviewed internally. Oshawa Power learned of different communication methods to reach different demographics of Oshawa customers. Oshawa Power realized a lack of knowledge amongst customers about assistance and budget programs. Oshawa Power created easy to read handouts for customers. They have been posted to website, distributed at public events, available in lobby and mailed directly to customers who requested them.
A49: - Community outreach - COS/DSP | B49: OP conducted 4 public meetings to gain a better understanding of customer issues and needs. | C49: The message heard from customers is strong that they do not want to see unnessesary increases. The OP team is diligently working throught the plan to ensure the lowest costs and most reliability.
A50: - Community outreach - Telephone Townhall | B50: OP conducted a telephone townhall, with about 9,800 people connecting during the session. 189 people entered queue to ask questions. This very successful outreach session could have gone on for much longer than 1 hour. | C50: Oshawa Power learned the importance of where they are located and size of location is high amongst their customer base as well as planning from the future efficiently. Future communications will be shared with customers regarding any changes in the operations location.
A51: Outreach to Commercial Customers | B51: Invitations extended to 2 local Rotary Clubs, the Chamber of Commerce, and local mulitcultural clubs to present to them information about our DSP and rate impacts | C51: Only response received was from the Chamber of Commerce and they offered for us to have a full page advertisment in their monthly newsletter that is sent to all members
A52: Informing & Information Gathering
A53: - Providing information | B53: Providing customers with up-to-date information about energy conservation programs, changes in TOU or rates, and other important subjects are supported through bill inserts, a bi-annual newsletter and Auto-dialer IVR messaging. For example, IVR technology, i.e., pre-recorded out-bound message, was used to encourage participation in the online Oshawa Power COS DSP Survey. | C53: Each "push" type of communication invites customers to contact us, which gives us an additional opportunity to provide information or to solve a problem. OP had a noticeable increase in the number of people completing the online Oshawa Power COs DSP survey. In total 1,240 customer respondents completed the survey.
A54: - Accessing information | B54: Customers will, at their own time and convenience, want to get information. The OP website is one way to get information on a number of items 24/7. | C54: In 2018 OP website was improved and it was made mobile-friendly. More changes and additional self serve options were impplemented in 2019 to allow customers to communicate with Oshawa Power at their convenience.
A55: - Accessing personal account information | B55: The goal of the Self Service Centre is to provide a portal of personalized information, for every customer, about, for example, energy consumption. Notices in newsletters are used to encourage participation. | C55: Self Service options will continue to evolve based on customers' needs and feedback. We are currently working on a project to install Silverblaze, which is a customer service portal, expectations are it will be live in 2020.
A56: - Complaint escalation | B56: The goal is to make it easy and efficient for customers to have their problems solved. Sometime complaints will be escalated. | C56: Call complaints escalate from CSR > Team Lead > Supervisor > Manager Email complaints get forwarded from the contactus email account to Supervisor for resolution with a response within 1 business day. Social Media –Google, Facebook and Twitter are forwarded from SM Manager to Customer Service Supervisor/Manager OEB complaints are sent to Supervisor/Manager via email where we log into an OEB portal for review and resolution within 2 business days for any Consumer Relation Complaint. Customer complaints are typically collection and billing related. The customer service team attempts to resolve the complaint/concern without stating policy and rules. The OEB has been consistently changing the Customer Service rules over the past while. EB-2017-0183
A57: Operational changes
A58: Email Distribution Platform | B58: Through results from Customer Satisfaction Surveys that stated that customers wanted different ways to communicate with us and the growing demand on email communication it was identified to create a more efficient email solution | C58: Techonology was introduced that prioritzes incoming emails inquires, distributes them inconjunction with the telephone queue to the pool of available customer service agents evenly. Provided accurate reporting on volume and handle time to aid in team coaching to ensure customer satisfaction
A59: Customer Service Load Balancing | B59: Prior to 2018 the only class of customer service employee was full time. Through succesful labour negotiations a new class of employee was introduced as part time. | C59: Part time customer service employees have been hired. PT employees allow for the business to schedule based on customer demand to cover peaks and valleys of incoming volume. This created more employee availability when the customer needed it.
A60: Digital presence & Community Outreach | B60: Through Customer Satisfaction Surveys the feedback was given that customers wanted a more current and interactive website, a stronger social media presence, a stronger community presence from their utility. | C60: A Marketing and Communications Analyst position was created to address the customers' immediate needs and to build on Oshawa Power's brand in the community and be accessible to the customer. Updated website and social media content in continous and the utility is out in a public forum 7-12 times a year. The utility interacts with the media and community partners to help share messages and reach the Oshawa ratepayers.
A61: Technology Solutions | B61: Where appropriate processes can be streamlined and automated that would meet the needs of the customers quicker and create internal efficiencies. | C61: Technology solutions like the Outage Management System (OMS), and the data warehousing solution PI have created immediate customer effiiciencies. The OMS informs a customer immediately of a power outage by social media feed and automatic outbound phone call. Additionally it auto-dispatches a crew to the exact location of outage so power is restored sooner.
A73: Note: Use "ALT-ENTER" to go to the next line within a cell

Sheet App.2-B_Acctg Instructions
A1: General Instructions to MIFRS Appendices
A2: Types of Schedules to File
A4: The purpose of this tab is to provide general instructions. The specific instructions to each appendix are listed in footnotes of each appendix.
A6: The typical applicant is expected to have made capitalization and depreciation policy changes under CGAAP as permitted by the OEB on January 1, 2012 or mandated by the OEB by January 1, 2013, and adopted IFRS for reporting purposes on January 1, 2015 (transition date January 1, 2014). Most distributors filing for 2021 rates have rebased with these accounting changes reflected in a prior rebasing application. If that is the case, information relating to pre-accounting policy changes is not generally required. Most distributors may have rebased under MIFRS. If that is the case, information related to the accounting standard used prior to IFRS is not generally required. The information to be provided by applicants will depend on when the accounting policy changes were made and when they last rebased. In general, applicants should provide the following information in the appendices:
E9: Reflecting Accounting Policy Changes in Current Application | G9: Reflected Accounting Policy Changes in Prior Application3 | H9: Rebased under MIFRS in Prior Application3
E10: Accounting Policy Changes in 2012 and Adopted IFRS in 2015 | F10: Accounting Policy Changes in 2013 and Adopted IFRS in 2015 | G10: Adopted IFRS in 2015 | H10: IFRS Since 2015
B11: 2021 | C11: Test | E11: MIFRS | F11: MIFRS | G11: MIFRS | H11: MIFRS
A12: Information to be filed in 2019 CoS Application | B12: 2020 | C12: Bridge | E12: MIFRS | F12: MIFRS | G12: MIFRS | H12: MIFRS
B13: 2019 | C13: Bridge | E13: MIFRS | F13: MIFRS | G13: MIFRS | H13: MIFRS
B14: 2018 | C14: Bridge | E14: MIFRS | F14: MIFRS | G14: MIFRS | H14: MIFRS
B15: 2017 | C15: Historical | E15: MIFRS | F15: MIFRS | G15: MIFRS | H15: MIFRS
B16: 2016 | C16: Historical | E16: MIFRS | F16: MIFRS | G16: MIFRS | H16: MIFRS
B17: 2015 | C17: Historical | E17: MIFRS and Revised CGAAP1 | F17: MIFRS and Revised CGAAP1 | G17: MIFRS and Revised CGAAP1 | H17: N/A
B18: 2014 | C18: Historical | E18: Revised CGAAP | F18: CGAAP and Revised CGAAP2 | G18: N/A | H18: N/A
B19: 2013 | C19: Historical | E19: CGAAP and Revised CGAAP2 | F19: N/A | G19: N/A | H19: N/A
A21: 1) For the transition year (2014), the applicant may file two appendices, one under Revised CGAAP and one under MIFRS, depending on the materiality of impacts. See the specific instructions under each appendix below for further details.
A22: 2) For applicants that are reflecting accounting policy changes for the first time in a rebasing application, the applicant must file two appendices in the year that the applicant implemented changes to its capitalization and depreciation policies (2012 or 2013), one before and one after the policy changes.
A23: 3) Applicants should provide CGAAP and Revised CGAAP schedules (i.e. as indicated in the first two columns of the above table) to support balances in Account 1576 if the account has yet to be disposed of.
A26: Appendix 2-BA - Fixed Asset Schedule
A28: Applicants are to provide Appendix 2-BA in accordance with the years and corresponding accounting standards noted in the above table to provide a year over year continuity in fixed assets.
A29: If this is the first application where the applicant is rebasing under MIFRS, the applicant should file two appendices, one under Revised CGAAP and one under MIFRS for the transition year (2014), if the change between Revised CGAAP and MIFRS is material. If the change from the accounting standards is not material, the applicant may choose to only provide one appendix under MIFRS. However, the applicant must also indicate the fixed asset net book value balance under Revised CGAAP, the total dollar value of the change and explain why it is not material.
A33: The applicant must establish the continuity of historical cost for gross assets and accumulated depreciation by asset class by ensuring that the opening balance in the year agrees to the closing balance in the prior year.
A36: Appendix 2-Cx - Depreciation and Amortization
A38: Applicants are to provide Appendix 2-C in accordance with the years and corresponding accounting standards listed in the above table.
A39: Appendix 2-C is to be used under all of the scenarios presented in the table above. In the appendix, the applicant will need to indicate which scenario applies. The appendix is to be duplicated for each year and for each accounting standard required as per the above table.
A40: Depreciation accounting policy changes were mandated by the OEB by January 1, 2013. In general, no further changes to an applicant's depreciation policy (i.e. assets' service lives) are expected after the OEB mandated changes by January 1, 2013, unless a change is determined to be necessary in accordance with the depreciation review required under IFRS. If the applicant has made any changes to its depreciation policy subsequent to the OEB mandated changes, for the year of the change, applicants must quantify the change in depreciation. If there are significant changes to multiple asset classes, the applicant must complete Appendix 2-C before and after the change. Applicants must also explain the nature of the change, the reason for the change, quantify the impact of the change.
A42: Appendix 2-E - Account 1575, IFRS-CGAAP Transitional PP&E Amounts (2-EA), Account 1576, Accounting Changes Under CGAAP (2-EB, 2-EC) CONTACT OEB STAFF IF TAB REQUIRED
A44: 1) For an applicant that has a balance in Account 1576 to dispose:
A45: · | B45: If an applicant changed capitalization and depreciation policies effective January 1, 2012, the applicant must complete Appendix 2-EB
A46: · | B46: If an applicant changed capitalization and depreciation policies effective January 1, 2013, the applicant must complete Appendix 2-EC
A48: 2) For an applicant that has a balance in Account 1575 to dispose:
A49: · | B49: The applicant must complete 2-EA
A50: If the applicant did not make any further PP&E accounting policy changes beyond the capitalization and depreciation policy changes as mandated by the OEB by January 1, 2013 (i.e. no further changes made on transition to IFRS), the applicant must indicate this and does not need to complete Appendix 2-EA.
A54: Appendix 2-Y - Summary of Impacts to Revenue Requirement from Transition to MIFRS CONTACT OEB STAFF IF TAB REQUIRED
A56: Applicants must complete Appendix 2-Y if this is the first rebasing application under MIFRS. An applicant must provide a summary of the dollar impacts of MIFRS to each component of the revenue requirement (e.g. rate base, operating costs, etc.), including the overall impact on the proposed revenue requirement. Accordingly, the applicant must identify financial differences and resulting revenue requirement impacts arising from the adoption of MIFRS as compared to CGAAP. If the applicant is reflecting the changes in capitalization and depreciation policies for the first time in a rebasing application as well, then a comparison between MIFRS and CGAAP before the change in accounting policies should be completed. If the applicant changed capitalization and depreciation policies and reflected these changes in a prior rebasing application, then a comparison between MIFRS and CGAAP after the change in accounting policies should be completed.

Sheet App.2-BA_Fixed Asset Cont
L1: File Number: | M1: =EBNUMBER -> EB-2020-0048
L2: Exhibit:
L3: Tab:
L4: Schedule:
L5: Page:
L7: Date:
A9: Appendix 2-BA
A10: Fixed Asset Continuity Schedule 1
E12: Accounting Standard | F12: MIFRS
E13: Year | F13: 2021
D15: Cost | J15: Accumulated Depreciation
A16: CCA Class 2 | B16: OEB Account 3 | C16: Description 3 | D16: Opening Balance | E16: Additions 4 | F16: Disposals 6 | G16: Closing Balance | I16: Opening Balance | J16: Additions | K16: Disposals 6 | L16: Closing Balance | M16: Net Book Value
B17: 1609 | C17: Capital Contributions Paid | D17: 4136704.74 | F17: 0 | G17: =D17+E17+F17 -> 4136704.74 | I17: -165468.19 | J17: -82734.1 | K17: 0 | L17: =I17+J17+K17 -> -248202.29 | M17: =G17+L17 -> 3888502.45
A18: 12 | B18: 1611 | C18: Computer Software (Formally known as Account 1925) | D18: 2648223.43 | E18: 200000 | F18: 0 | G18: =D18+E18+F18 -> 2848223.43 | I18: -2055793.48 | J18: -232890.72 | K18: 0 | L18: =I18+J18+K18 -> -2288684.2 | M18: =G18+L18 -> 559539.23
A19: CEC | B19: 1612 | C19: Land Rights (Formally known as Account 1906) | D19: 0 | E19: 0 | F19: 0 | G19: =D19+E19+F19 -> 0 | I19: 0 | J19: 0 | K19: 0 | L19: =I19+J19+K19 -> 0 | M19: =G19+L19 -> 0
A20: N/A | B20: 1805 | C20: Land | D20: 293875.47 | E20: 0 | F20: 0 | G20: =D20+E20+F20 -> 293875.47 | I20: 0 | J20: 0 | K20: 0 | L20: =I20+J20+K20 -> 0 | M20: =G20+L20 -> 293875.47
A21: 47 | B21: 1808 | C21: Buildings | D21: 6036004.7 | E21: 100000 | F21: 0 | G21: =D21+E21+F21 -> 6136004.7 | I21: -758721.0428 | J21: -109428.8161 | K21: 0 | L21: =I21+J21+K21 -> -868149.8589 | M21: =G21+L21 -> 5267854.841
A22: 13 | B22: 1810 | C22: Leasehold Improvements | D22: 0 | E22: 0 | F22: 0 | G22: 0 | I22: 0 | J22: 0 | K22: 0 | L22: 0 | M22: 0
A23: 47 | B23: 1815 | C23: Transformer Station Equipment >50 kV | D23: 0 | E23: 0 | F23: 0 | G23: 0 | I23: 0 | J23: 0 | K23: 0 | L23: 0 | M23: 0
A24: 47 | B24: 1820 | C24: Distribution Station Equipment <50 kV | D24: 27060796.6 | E24: 1880300 | F24: -125000 | G24: 28816096.6 | I24: -10015834.06 | J24: -628741.0901 | K24: 113125 | L24: -10531450.15 | M24: 18284646.45
A25: 47 | B25: 1825 | C25: Storage Battery Equipment | D25: 0 | E25: 0 | F25: 0 | G25: 0 | I25: 0 | J25: 0 | K25: 0 | L25: 0 | M25: 0
A26: 47 | B26: 1830 | C26: Poles, Towers & Fixtures | D26: 53540749.05 | E26: 2709830.015 | F26: -750000 | G26: 55500579.06 | I26: -15296170.15 | J26: -1007784.011 | K26: 678750 | L26: -15625204.16 | M26: 39875374.9
A27: 47 | B27: 1835 | C27: Overhead Conductors & Devices | D27: 27168451.92 | E27: 2274547.553 | F27: -950000 | G27: 28492999.47 | I27: -8690941.227 | J27: -509195.0377 | K27: 859750 | L27: -8340386.264 | M27: 20152613.21
A28: 47 | B28: 1840 | C28: Underground Conduit | D28: 0 | E28: 0 | F28: 0 | G28: 0 | I28: 0 | J28: 0 | K28: 0 | L28: 0 | M28: 0
A29: 47 | B29: 1845 | C29: Underground Conductors & Devices | D29: 61616732.83 | E29: 4028875.351 | F29: -750000 | G29: 64895608.18 | I29: -19536714.66 | J29: -1327104.346 | K29: 678750 | L29: -20185069.01 | M29: 44710539.17
A30: 47 | B30: 1850 | C30: Line Transformers | D30: 68317543.38 | E30: 2431968.102 | F30: -100000 | G30: 70649511.48 | I30: -34278130.26 | J30: -1220212.71 | K30: 90500 | L30: -35407842.97 | M30: 35241668.51
A31: 47 | B31: 1855 | C31: Services (Overhead & Underground) | D31: 0 | E31: 0 | F31: 0 | G31: 0 | I31: 0 | J31: 0 | K31: 0 | L31: 0 | M31: 0
A32: 47 | B32: 1860 | C32: Meters | D32: 13973650.38 | E32: 303300 | F32: -200000 | G32: 14076950.38 | I32: -9452443.334 | J32: -707907.354 | K32: 181000 | L32: -9979350.688 | M32: 4097599.692
A33: 47 | B33: 1860 | C33: Meters (Smart Meters) | D33: 480900 | E33: 371700 | F33: 0 | G33: 852600 | I33: 0 | J33: 0 | K33: 0 | L33: 0 | M33: 852600
A34: N/A | B34: 1905 | C34: Land | D34: 0 | E34: 0 | F34: 0 | G34: 0 | I34: 0 | J34: 0 | K34: 0 | L34: 0 | M34: 0
A35: 47 | B35: 1908 | C35: Buildings & Fixtures | D35: 0 | F35: 0 | G35: 0 | I35: 0 | J35: 0 | K35: 0 | L35: 0 | M35: 0
A36: 13 | B36: 1910 | C36: Leasehold Improvements | D36: 1377704.57 | E36: 100000 | F36: 0 | G36: 1477704.57 | I36: -1208217.617 | J36: -132360.33 | K36: 0 | L36: -1340577.947 | M36: 137126.6233
A37: 8 | B37: 1915 | C37: Office Furniture & Equipment (10 years) | E37: 0 | F37: 0 | G37: 0 | J37: 0 | K37: 0 | L37: 0 | M37: 0
A38: 8 | B38: 1915 | C38: Office Furniture & Equipment (5 years) | D38: 800128.92 | E38: 0 | F38: 0 | G38: 800128.92 | I38: -712419.15 | J38: 0 | K38: 0 | L38: -712419.15 | M38: 87709.77
A39: 10 | B39: 1920 | C39: Computer Equipment - Hardware | D39: 4055726.29 | E39: 1412000 | F39: 0 | G39: 5467726.29 | I39: -3018494.27 | J39: -576274.95 | K39: 0 | L39: -3594769.22 | M39: 1872957.07
A40: 45 | B40: 1920 | C40: Computer Equip.-Hardware(Post Mar. 22/04) | D40: 0 | E40: 0 | F40: 0 | G40: 0 | I40: 0 | J40: 0 | K40: 0 | L40: 0 | M40: 0
A41: 50 | B41: 1920 | C41: Computer Equip.-Hardware(Post Mar. 19/07) | D41: 0 | E41: 0 | F41: 0 | G41: 0 | I41: 0 | J41: 0 | K41: 0 | L41: 0 | M41: 0
A42: 10 | B42: 1930 | C42: Transportation Equipment | D42: 5601218.97 | E42: 530000 | F42: -50000 | G42: 6081218.97 | I42: -3613930.75 | J42: -419194.49 | K42: 45250 | L42: -3987875.24 | M42: 2093343.73
A43: 8 | B43: 1935 | C43: Stores Equipment | D43: 90766.83 | E43: 0 | F43: 0 | G43: 90766.83 | I43: -45849.43629 | J43: -26886.95629 | K43: 0 | L43: -72736.39257 | M43: 18030.43743
A44: 8 | B44: 1940 | C44: Tools, Shop & Garage Equipment | D44: 2793042.1 | E44: 0 | F44: 0 | G44: 2793042.1 | I44: -2761165.697 | J44: -73011.37357 | K44: 0 | L44: -2834177.071 | M44: -41134.9707
A45: 8 | B45: 1945 | C45: Measurement & Testing Equipment | D45: 1313544.732 | E45: 0 | F45: 0 | G45: 1313544.732 | I45: -817346.78 | J45: -42872.005 | K45: 0 | L45: -860218.785 | M45: 453325.947
A46: 8 | B46: 1950 | C46: Power Operated Equipment | D46: 0 | E46: 0 | F46: 0 | G46: 0 | I46: 0 | J46: 0 | K46: 0 | L46: 0 | M46: 0
A47: 8 | B47: 1955 | C47: Communications Equipment | D47: 861287.33 | E47: 150000 | F47: 0 | G47: 1011287.33 | I47: -486890.16 | J47: -67070.21 | K47: 0 | L47: -553960.37 | M47: 457326.96
A48: 8 | B48: 1955 | C48: Communication Equipment (Smart Meters) | D48: 0 | E48: 0 | F48: 0 | G48: 0 | I48: 0 | J48: 0 | K48: 0 | L48: 0 | M48: 0
A49: 8 | B49: 1960 | C49: Miscellaneous Equipment | D49: 242997.65 | E49: 0 | F49: 0 | G49: 242997.65 | I49: -105552.38 | J49: 0 | K49: 0 | L49: -105552.38 | M49: 137445.27
A50: 47 | B50: 1970 | C50: Load Management Controls Customer Premises | D50: 107034.76 | E50: 0 | F50: 0 | G50: 107034.76 | I50: -107034.76 | J50: 0 | K50: 0 | L50: -107034.76 | M50: 0
A51: 47 | B51: 1975 | C51: Load Management Controls Utility Premises | D51: 2366233.854 | E51: 0 | F51: 0 | G51: 2366233.854 | I51: -1665404.079 | J51: -169673.529 | K51: 0 | L51: -1835077.608 | M51: 531156.2461
A52: 47 | B52: 1980 | C52: System Supervisor Equipment | D52: 293582.38 | E52: 0 | F52: 0 | G52: 293582.38 | I52: -293582.38 | J52: 0 | K52: 0 | L52: -293582.38 | M52: 0
A53: 47 | B53: 1985 | C53: Miscellaneous Fixed Assets | D53: 0 | E53: 0 | F53: 0 | G53: 0 | I53: 0 | J53: 0 | K53: 0 | L53: 0 | M53: 0
A54: 47 | B54: 1990 | C54: Other Tangible Property | D54: 0 | E54: 0 | F54: 0 | G54: 0 | I54: 0 | J54: 0 | K54: 0 | L54: 0 | M54: 0
A55: 47 | B55: 1995 | C55: Contributions & Grants | D55: -49648615.93 | F55: 0 | G55: -49648615.93 | I55: 14787357.97 | J55: 1116345.005 | K55: 0 | L55: 15903702.97 | M55: -33744912.96
A56: 47 | B56: 2440 | C56: Deferred Revenue5 | D56: -1958056.545 | E56: -2043056.91 | G56: -4001113.455 | I56: 21756 | J56: 66213 | K56: 0 | L56: =I56+J56+K56 -> 87969 | M56: =G56+L56 -> -3913144.455
B57: 2005 | C57: Property Under Finance Lease7 | G57: 0 | L57: 0 | M57: 0
C58: Sub-Total | D58: =SUM(D17:D57) -> 233570228.4 | E58: =SUM(E17:E57) -> 14449464.11 | F58: =SUM(F17:F57) -> -2925000 | G58: =SUM(G17:G57) -> 245094692.5 | I58: =SUM(I17:I57) -> -100276989.9 | J58: =SUM(J17:J57) -> -6150784.023 | K58: =SUM(K17:K57) -> 2647125 | L58: =SUM(L17:L57) -> -103780648.9 | M58: =SUM(M17:M57) -> 141314043.6
C59: Less Socialized Renewable Energy Generation Investments (input as negative) | G59: =D59+E59+F59 -> 0 | L59: =I59+J59+K59 -> 0 | M59: =G59+L59 -> 0
C60: Less Other Non Rate-Regulated Utility Assets (input as negative) | G60: 0 | L60: =I60+J60+K60 -> 0 | M60: 0
C61: Total PP&E | D61: =SUM(D58:D60) -> 233570228.4 | E61: =SUM(E58:E60) -> 14449464.11 | F61: =SUM(F58:F60) -> -2925000 | G61: =SUM(G58:G60) -> 245094692.5 | I61: =SUM(I58:I60) -> -100276989.9 | J61: =SUM(J58:J60) -> -6150784.023 | K61: =SUM(K58:K60) -> 2647125 | L61: =SUM(L58:L60) -> -103780648.9 | M61: =SUM(M58:M60) -> 141314043.6
C62: Depreciation Expense adj. from gain or loss on the retirement of assets (pool of like assets), if applicable6
C63: Total | J63: =J61+J62 -> -6150784.023
I65: Less: Fully Allocated Depreciation
A66: 10 | C66: Transportation | I66: Transportation
A67: 8 | C67: Stores Equipment | I67: Stores Equipment
A68: 47 | C68: Deferred Revenue | I68: Deferred Revenue | K68: 66213
I69: Net Depreciation | K69: =J63-K66-K67-K68 -> -6216997.023
C70: ADDITIONAL YEARS BELOW
A71: Notes:
A72: 1 | B72: Tables in the format outlined above covering all fixed asset accounts should be submitted for the Test Year, Bridge Year and all relevant historical years. At a minimum , the applicant must provide data for the earlier of: 1) all historical years back to its last rebasing; or 2) at least three years of historical actuals, in addition to Bridge Year and Test Year forecasts.
A73: 2 | B73: The "CCA Class" for fixed assets should generally agree with the CCA Class used for tax purposes in Tax Returns. Fixed Assets sub-components may be used where the underlying asset components are classified under multiple CCA Classes for tax purposes. If an applicant uses any different classes from those shown in the table, an explanation should be provided. (also see note 3).
A74: 3 | B74: The table may need to be customized for a utility's asset categories or for any new asset accounts announced or authorized by the OEB.
A75: 4 | B75: The additions in column (E) must not include construction work in progress (CWIP).
A76: 5 | B76: Effective on the date of IFRS adoption, customer contributions will no longer be recorded in Account 1995 Contributions & Grants, but will be recorded in Account 2440, Deferred Revenues. Amortization of deferred revenue will be removed from the depreciation expense shown on this fixed asset continuity schedule as it should be included as income in Appendix 2-H Other Revenues.
A77: 6 | B77: The applicant must ensure that all asset disposals have been clearly identified in the Chapter 2 Appendices for all historic, bridge and test years. Where a distributor for general financial reporting purposes under IFRS has accounted for the amount of gain or loss on the retirement of assets in a pool of like assets as a charge or credit to income, for reporting and rate application filings, the distributor shall reclassify such gains and losses as depreciation expense, and disclose the amount separately.
A78: 7 | B78: This account includes the amount recorded under finance leases for plant leased from others and used by the utility in its utility operations.
A81: Appendix 2-BA
A82: Fixed Asset Continuity Schedule 1
E84: Accounting Standard | F84: MIFRS
E85: Year | F85: 2020
D87: Cost | J87: Accumulated Depreciation
A88: CCA Class 2 | B88: OEB Account 3 | C88: Description 3 | D88: Opening Balance | E88: Additions 4 | F88: Disposals 6 | G88: Closing Balance | I88: Opening Balance | J88: Additions | K88: Disposals 6 | L88: Closing Balance | M88: Net Book Value
B89: 1609 | C89: Capital Contributions Paid | D89: 4136704.74 | E89: 0 | F89: 0 | G89: =D89+E89+F89 -> 4136704.74 | I89: -82734.09 | J89: -82734.1 | K89: 0 | L89: =I89+J89+K89 -> -165468.19 | M89: =G89+L89 -> 3971236.55
A90: 12 | B90: 1611 | C90: Computer Software (Formally known as Account 1925) | D90: 2348223.43 | E90: 300000 | F90: 0 | G90: =D90+E90+F90 -> 2648223.43 | I90: -1688166.5 | J90: -367626.98 | K90: 0 | L90: =I90+J90+K90 -> -2055793.48 | M90: =G90+L90 -> 592429.95
A91: CEC | B91: 1612 | C91: Land Rights (Formally known as Account 1906) | D91: 0 | E91: 0 | F91: 0 | G91: =D91+E91+F91 -> 0 | I91: 0 | J91: 0 | K91: 0 | L91: =I91+J91+K91 -> 0 | M91: =G91+L91 -> 0
A92: N/A | B92: 1805 | C92: Land | D92: 293875.47 | E92: 0 | F92: 0 | G92: =D92+E92+F92 -> 293875.47 | I92: 0 | J92: 0 | K92: 0 | L92: =I92+J92+K92 -> 0 | M92: =G92+L92 -> 293875.47
A93: 47 | B93: 1808 | C93: Buildings | D93: 5711004.7 | E93: 325000 | F93: 0 | G93: =D93+E93+F93 -> 6036004.7 | I93: -652092.84 | J93: -106628.2028 | K93: 0 | L93: =I93+J93+K93 -> -758721.0428 | M93: =G93+L93 -> 5277283.657
A94: 13 | B94: 1810 | C94: Leasehold Improvements | D94: 0 | E94: 0 | F94: 0 | G94: 0 | I94: 0 | J94: 0 | K94: 0 | L94: 0 | M94: 0
A95: 47 | B95: 1815 | C95: Transformer Station Equipment >50 kV | D95: 0 | E95: 0 | F95: 0 | G95: 0 | I95: 0 | J95: 0 | K95: 0 | L95: 0 | M95: 0
A96: 47 | B96: 1820 | C96: Distribution Station Equipment <50 kV | D96: 27046196.6 | E96: 139600 | F96: -125000 | G96: 27060796.6 | I96: -9524184.57 | J96: -604774.4887 | K96: 113125 | L96: -10015834.06 | M96: 17044962.55
A97: 47 | B97: 1825 | C97: Storage Battery Equipment | D97: 0 | E97: 0 | F97: 0 | G97: 0 | I97: 0 | J97: 0 | K97: 0 | L97: 0 | M97: 0
A98: 47 | B98: 1830 | C98: Poles, Towers & Fixtures | D98: 50321584.67 | E98: 3969164.379 | F98: -750000 | G98: 53540749.05 | I98: -15040339.62 | J98: -934580.532 | K98: 678750 | L98: -15296170.15 | M98: 38244578.9
A99: 47 | B99: 1835 | C99: Overhead Conductors & Devices | D99: 25691580.75 | E99: 2426871.165 | F99: -950000 | G99: 27168451.92 | I99: -9090520.98 | J99: -460170.2468 | K99: 859750 | L99: -8690941.227 | M99: 18477510.69
A100: 47 | B100: 1840 | C100: Underground Conduit | D100: 0 | E100: 0 | F100: 0 | G100: 0 | I100: 0 | J100: 0 | K100: 0 | L100: 0 | M100: 0
A101: 47 | B101: 1845 | C101: Underground Conductors & Devices | D101: 58204657.48 | E101: 4162075.351 | F101: -750000 | G101: =D101+E101+F101 -> 61616732.83 | I101: -18895872.26 | J101: -1319592.404 | K101: 678750 | L101: =I101+J101+K101 -> -19536714.66 | M101: =G101+L101 -> 42080018.17
A102: 47 | B102: 1850 | C102: Line Transformers | D102: 64189443.25 | E102: 4228100.126 | F102: -100000 | G102: 68317543.38 | I102: -33233709.11 | J102: -1134921.148 | K102: 90500 | L102: -34278130.26 | M102: 34039413.12
A103: 47 | B103: 1855 | C103: Services (Overhead & Underground) | D103: 0 | E103: 0 | F103: 0 | G103: 0 | I103: 0 | J103: 0 | K103: 0 | L103: 0 | M103: 0
A104: 47 | B104: 1860 | C104: Meters | D104: 13761150.38 | E104: 412500 | F104: -200000 | G104: 13973650.38 | I104: -8772861.91 | J104: -860581.424 | K104: 181000 | L104: -9452443.334 | M104: 4521207.046
A105: 47 | B105: 1860 | C105: Meters (Smart Meters) | D105: 0 | E105: 480900 | F105: 0 | G105: 480900 | I105: 0 | J105: 0 | K105: 0 | L105: 0 | M105: 480900
A106: N/A | B106: 1905 | C106: Land | D106: 0 | E106: 0 | F106: 0 | G106: 0 | I106: 0 | J106: 0 | K106: 0 | L106: 0 | M106: 0
A107: 47 | B107: 1908 | C107: Buildings & Fixtures | D107: 0 | F107: 0 | G107: 0 | I107: 0 | J107: 0 | K107: 0 | L107: 0 | M107: 0
A108: 13 | B108: 1910 | C108: Leasehold Improvements | D108: 1097704.57 | E108: 280000 | F108: 0 | G108: 1377704.57 | I108: -1131292.23 | J108: -76925.38667 | K108: 0 | L108: -1208217.617 | M108: 169486.9533
A109: 8 | B109: 1915 | C109: Office Furniture & Equipment (10 years) | E109: 0 | F109: 0 | G109: 0 | I109: 0 | J109: 0 | K109: 0 | L109: 0 | M109: 0
A110: 8 | B110: 1915 | C110: Office Furniture & Equipment (5 years) | D110: 800128.92 | E110: 0 | F110: 0 | G110: 800128.92 | I110: -712419.15 | J110: 0 | K110: 0 | L110: -712419.15 | M110: 87709.77
A111: 10 | B111: 1920 | C111: Computer Equipment - Hardware | D111: 3084226.29 | E111: 971500 | F111: 0 | G111: 4055726.29 | I111: -2676362.76 | J111: -342131.51 | K111: 0 | L111: -3018494.27 | M111: 1037232.02
A112: 45 | B112: 1920 | C112: Computer Equip.-Hardware(Post Mar. 22/04) | D112: 0 | E112: 0 | F112: 0 | G112: 0 | I112: 0 | J112: 0 | K112: 0 | L112: 0 | M112: 0
A113: 50 | B113: 1920 | C113: Computer Equip.-Hardware(Post Mar. 19/07) | D113: 0 | E113: 0 | F113: 0 | G113: 0 | I113: 0 | J113: 0 | K113: 0 | L113: 0 | M113: 0
A114: 10 | B114: 1930 | C114: Transportation Equipment | D114: 5106218.97 | E114: 545000 | F114: -50000 | G114: 5601218.97 | I114: -3242182.76 | J114: -416997.99 | K114: 45250 | L114: -3613930.75 | M114: 1987288.22
A115: 8 | B115: 1935 | C115: Stores Equipment | D115: 30766.83 | E115: 60000 | F115: 0 | G115: 90766.83 | I115: -24962.48 | J115: -20886.95629 | K115: 0 | L115: -45849.43629 | M115: 44917.39371
A116: 8 | B116: 1940 | C116: Tools, Shop & Garage Equipment | D116: 2793042.1 | E116: 0 | F116: 0 | G116: 2793042.1 | I116: -2675307.73 | J116: -85857.96714 | K116: 0 | L116: -2761165.697 | M116: 31876.40287
A117: 8 | B117: 1945 | C117: Measurement & Testing Equipment | D117: 1313544.732 | E117: 0 | F117: 0 | G117: 1313544.732 | I117: -766268.34 | J117: -51078.44 | K117: 0 | L117: -817346.78 | M117: 496197.952
A118: 8 | B118: 1950 | C118: Power Operated Equipment | D118: 0 | E118: 0 | F118: 0 | G118: 0 | I118: 0 | J118: 0 | K118: 0 | L118: 0 | M118: 0
A119: 8 | B119: 1955 | C119: Communications Equipment | D119: 611287.33 | E119: 250000 | F119: 0 | G119: 861287.33 | I119: -439719.95 | J119: -47170.21 | K119: 0 | L119: -486890.16 | M119: 374397.17
A120: 8 | B120: 1955 | C120: Communication Equipment (Smart Meters) | D120: 0 | E120: 0 | F120: 0 | G120: 0 | I120: 0 | J120: 0 | K120: 0 | L120: 0 | M120: 0
A121: 8 | B121: 1960 | C121: Miscellaneous Equipment | D121: 242997.65 | E121: 0 | F121: 0 | G121: 242997.65 | I121: -105552.38 | J121: 0 | K121: 0 | L121: -105552.38 | M121: 137445.27
A122: 47 | B122: 1970 | C122: Load Management Controls Customer Premises | D122: 107034.76 | E122: 0 | F122: 0 | G122: 107034.76 | I122: -107034.76 | J122: 0 | K122: 0 | L122: -107034.76 | M122: 0
A123: 47 | B123: 1975 | C123: Load Management Controls Utility Premises | D123: 2366233.854 | E123: 0 | F123: 0 | G123: 2366233.854 | I123: -1500682.74 | J123: -164721.339 | K123: 0 | L123: -1665404.079 | M123: 700829.7751
A124: 47 | B124: 1980 | C124: System Supervisor Equipment | D124: 293582.38 | E124: 0 | F124: 0 | G124: 293582.38 | I124: -293582.38 | J124: 0 | K124: 0 | L124: -293582.38 | M124: 0
A125: 47 | B125: 1985 | C125: Miscellaneous Fixed Assets | D125: 0 | E125: 0 | F125: 0 | G125: 0 | I125: 0 | J125: 0 | K125: 0 | L125: 0 | M125: 0
A126: 47 | B126: 1990 | C126: Other Tangible Property | D126: 0 | E126: 0 | F126: 0 | G126: 0 | I126: 0 | J126: 0 | K126: 0 | L126: 0 | M126: 0
A127: 47 | B127: 1995 | C127: Contributions & Grants | D127: -49648615.93 | F127: 0 | G127: -49648615.93 | I127: 13674086.82 | J127: 1113271.149 | K127: 0 | L127: 14787357.97 | M127: -34861257.96
A128: 47 | B128: 2440 | C128: Deferred Revenue5 | D128: 0 | E128: -1958056.545 | G128: -1958056.545 | I128: 0 | J128: 21756 | K128: 0 | L128: 21756 | M128: -1936300.545
B129: 2005 | C129: Property Under Finance Lease7 | G129: 0 | L129: 0 | M129: 0
C130: Sub-Total | D130: =SUM(D89:D129) -> 219902573.9 | E130: =SUM(E89:E129) -> 16592654.48 | F130: =SUM(F89:F129) -> -2925000 | G130: =SUM(G89:G129) -> 233570228.4 | I130: =SUM(I89:I129) -> -96981762.72 | J130: =SUM(J89:J129) -> -5942352.177 | K130: =SUM(K89:K129) -> 2647125 | L130: =SUM(L89:L129) -> -100276989.9 | M130: =SUM(M89:M129) -> 133293238.5
C131: Less Socialized Renewable Energy Generation Investments (input as negative) | G131: =D131+E131+F131 -> 0 | L131: =I131+J131+K131 -> 0 | M131: =G131+L131 -> 0
C132: Less Other Non Rate-Regulated Utility Assets (input as negative) | G132: =D132+E132+F132 -> 0 | L132: =I132+J132+K132 -> 0 | M132: =G132+L132 -> 0
C133: Total PP&E | D133: =SUM(D130:D132) -> 219902573.9 | E133: =SUM(E130:E132) -> 16592654.48 | F133: =SUM(F130:F132) -> -2925000 | G133: =SUM(G130:G132) -> 233570228.4 | I133: =SUM(I130:I132) -> -96981762.72 | J133: =SUM(J130:J132) -> -5942352.177 | K133: =SUM(K130:K132) -> 2647125 | L133: =SUM(L130:L132) -> -100276989.9 | M133: =SUM(M130:M132) -> 133293238.5
C134: Depreciation Expense adj. from gain or loss on the retirement of assets (pool of like assets), if applicable6
C135: Total | J135: =J133+J134 -> -5942352.177
I137: Less: Fully Allocated Depreciation
A138: 10 | C138: Transportation | I138: Transportation
A139: 8 | C139: Stores Equipment | I139: Stores Equipment
A140: 47 | C140: Deferred Revenue | I140: Deferred Revenue | K140: 21756
I141: Net Depreciation | K141: =J135-K138-K139-K140 -> -5964108.177
A144: Appendix 2-BA
A145: Fixed Asset Continuity Schedule 1
E147: Accounting Standard | F147: MIFRS
E148: Year | F148: 2019
D150: Cost | J150: Accumulated Depreciation
A151: CCA Class 2 | B151: OEB Account 3 | C151: Description 3 | D151: Opening Balance | E151: Additions 4 | F151: Disposals 6 | G151: Closing Balance | I151: Opening Balance | J151: Additions | K151: Disposals 6 | L151: Closing Balance | M151: Net Book Value
B152: 1609 | C152: Capital Contributions Paid | D152: 0 | E152: 4136704.74 | F152: 0 | G152: =D152+E152+F152 -> 4136704.74 | J152: -82734.09 | K152: 0 | L152: =I152+J152+K152 -> -82734.09 | M152: =G152+L152 -> 4053970.65
A153: 12 | B153: 1611 | C153: Computer Software (Formally known as Account 1925) | D153: 2383019.87 | E153: 175657.92 | F153: -210454.36 | G153: =D153+E153+F153 -> 2348223.43 | I153: -1698422.07 | J153: -200198.79 | K153: 210454.36 | L153: =I153+J153+K153 -> -1688166.5 | M153: =G153+L153 -> 660056.93
A154: CEC | B154: 1612 | C154: Land Rights (Formally known as Account 1906) | D154: 0 | E154: 0 | F154: 0 | G154: =D154+E154+F154 -> 0 | I154: 0 | J154: 0 | K154: 0 | L154: =I154+J154+K154 -> 0 | M154: =G154+L154 -> 0
A155: N/A | B155: 1805 | C155: Land | D155: 293875.47 | E155: 0 | F155: 0 | G155: =D155+E155+F155 -> 293875.47 | I155: 0 | J155: 0 | K155: 0 | L155: =I155+J155+K155 -> 0 | M155: =G155+L155 -> 293875.47
A156: 47 | B156: 1808 | C156: Buildings | D156: 5314250.76 | E156: 396753.94 | F156: 0 | G156: =D156+E156+F156 -> 5711004.7 | I156: -582187.55 | J156: -69905.29 | K156: 0 | L156: =I156+J156+K156 -> -652092.84 | M156: =G156+L156 -> 5058911.86
A157: 13 | B157: 1810 | C157: Leasehold Improvements | D157: 0 | E157: 0 | F157: 0 | G157: 0 | I157: 0 | J157: 0 | K157: 0 | L157: 0 | M157: 0
A158: 47 | B158: 1815 | C158: Transformer Station Equipment >50 kV | D158: 0 | E158: 0 | F158: 0 | G158: 0 | I158: 0 | J158: 0 | K158: 0 | L158: 0 | M158: 0
A159: 47 | B159: 1820 | C159: Distribution Station Equipment <50 kV | D159: 27521921.33 | E159: -52040.17 | F159: -423684.56 | G159: 27046196.6 | I159: -9354727.84 | J159: -572634.57 | K159: 403177.84 | L159: -9524184.57 | M159: 17522012.03
A160: 47 | B160: 1825 | C160: Storage Battery Equipment | D160: 0 | E160: 0 | F160: 0 | G160: 0 | I160: 0 | J160: 0 | K160: 0 | L160: 0 | M160: 0
A161: 47 | B161: 1830 | C161: Poles, Towers & Fixtures | D161: 45900692.18 | E161: 7579625.88 | F161: -3158733.39 | G161: 50321584.67 | I161: -16592904.83 | J161: -866268.54 | K161: 2418833.75 | L161: -15040339.62 | M161: 35281245.05
A162: 47 | B162: 1835 | C162: Overhead Conductors & Devices | D162: 24175734.73 | E162: 2494435.16 | F162: -978589.14 | G162: 25691580.75 | I162: -9484576.64 | J162: -324490.58 | K162: 718546.24 | L162: -9090520.98 | M162: 16601059.77
A163: 47 | B163: 1840 | C163: Underground Conduit | D163: 0 | F163: 0 | G163: 0 | I163: 0 | J163: 0 | K163: 0 | L163: 0 | M163: 0
A164: 47 | B164: 1845 | C164: Underground Conductors & Devices | D164: 45983665.48 | E164: 8146716.13 | F164: 4074275.87 | G164: 58204657.48 | I164: -14370786.36 | J164: -1389601.79 | K164: -3135484.11 | L164: -18895872.26 | M164: 39308785.22
A165: 47 | B165: 1850 | C165: Line Transformers | D165: 61207795.54 | E165: 4594038.27 | F165: -1612390.56 | G165: 64189443.25 | I165: -33661138.96 | J165: -1152831.21 | K165: 1580261.06 | L165: -33233709.11 | M165: 30955734.14
A166: 47 | B166: 1855 | C166: Services (Overhead & Underground) | D166: 0 | E166: 0 | F166: 0 | G166: 0 | I166: 0 | J166: 0 | K166: 0 | L166: 0 | M166: 0
A167: 47 | B167: 1860 | C167: Meters | D167: 13315520.81 | E167: 1071722.53 | F167: -626092.96 | G167: 13761150.38 | I167: -8272939.92 | J167: -1003434.58 | K167: 503512.59 | L167: -8772861.91 | M167: 4988288.47
A168: 47 | B168: 1860 | C168: Meters (Smart Meters) | E168: 0 | F168: 0 | G168: 0 | I168: 0 | J168: 0 | K168: 0 | L168: 0 | M168: 0
A169: N/A | B169: 1905 | C169: Land | D169: 0 | E169: 0 | F169: 0 | G169: 0 | I169: 0 | J169: 0 | K169: 0 | L169: 0 | M169: 0
A170: 47 | B170: 1908 | C170: Buildings & Fixtures | D170: 0 | E170: 0 | F170: 0 | G170: 0 | I170: 0 | J170: 0 | K170: 0 | L170: 0 | M170: 0
A171: 13 | B171: 1910 | C171: Leasehold Improvements | D171: 1097704.57 | E171: 0 | F171: 0 | G171: 1097704.57 | I171: -1093661 | J171: -37631.23 | K171: 0 | L171: -1131292.23 | M171: -33587.66001
A172: 8 | B172: 1915 | C172: Office Furniture & Equipment (10 years) | G172: 0 | I172: 0 | L172: 0 | M172: 0
A173: 8 | B173: 1915 | C173: Office Furniture & Equipment (5 years) | D173: 785630.35 | E173: 17505.81 | F173: -3007.24 | G173: 800128.92 | I173: -713462.27 | J173: -12057.19 | K173: 13100.31 | L173: -712419.15 | M173: 87709.77
A174: 10 | B174: 1920 | C174: Computer Equipment - Hardware | D174: 3234250.07 | E174: 148153.61 | F174: -298177.39 | G174: 3084226.29 | I174: -2781713.89 | J174: -192826.26 | K174: 298177.39 | L174: -2676362.76 | M174: 407863.53
A175: 45 | B175: 1920 | C175: Computer Equip.-Hardware(Post Mar. 22/04) | E175: 0 | F175: 0 | G175: 0 | I175: 0 | J175: 0 | K175: 0 | L175: 0 | M175: 0
A176: 50 | B176: 1920 | C176: Computer Equip.-Hardware(Post Mar. 19/07) | G176: 0 | I176: 0 | L176: 0 | M176: 0
A177: 10 | B177: 1930 | C177: Transportation Equipment | D177: 4969389.79 | E177: 340672.28 | F177: -203843.1 | G177: 5106218.97 | I177: -3063498.79 | J177: -382527.07 | K177: 203843.1 | L177: -3242182.76 | M177: 1864036.21
A178: 8 | B178: 1935 | C178: Stores Equipment | D178: 24516 | E178: 6250.83 | F178: 0 | G178: 30766.83 | I178: -24516 | J178: -446.48 | K178: 0 | L178: -24962.48 | M178: 5804.35
A179: 8 | B179: 1940 | C179: Tools, Shop & Garage Equipment | D179: 2745564.26 | E179: 105949.13 | F179: -58471.29 | G179: 2793042.1 | I179: -2578753.51 | J179: -155001.51 | K179: 58447.29 | L179: -2675307.73 | M179: 117734.37
A180: 8 | B180: 1945 | C180: Measurement & Testing Equipment | D180: 1154950.312 | E180: 158594.42 | F180: 0 | G180: 1313544.732 | I180: -632646.85 | J180: -133621.49 | K180: 0 | L180: -766268.34 | M180: 547276.392
A181: 8 | B181: 1950 | C181: Power Operated Equipment | D181: 0 | E181: 0 | F181: 0 | G181: 0 | I181: 0 | J181: 0 | K181: 0 | L181: 0 | M181: 0
A182: 8 | B182: 1955 | C182: Communications Equipment | D182: 611287.33 | E182: 0 | F182: 0 | G182: 611287.33 | I182: -404550.05 | J182: -35169.9 | K182: 0 | L182: -439719.95 | M182: 171567.38
A183: 8 | B183: 1955 | C183: Communication Equipment (Smart Meters) | G183: 0 | I183: 0 | L183: 0 | M183: 0
A184: 8 | B184: 1960 | C184: Miscellaneous Equipment | D184: 187683.9 | E184: 55313.75 | F184: 0 | G184: 242997.65 | I184: -64574.97 | J184: -40977.41 | K184: 0 | L184: -105552.38 | M184: 137445.27
A185: 47 | B185: 1970 | C185: Load Management Controls Customer Premises | D185: 107034.76 | E185: 0 | F185: 0 | G185: 107034.76 | I185: -107034.76 | J185: 0 | K185: 0 | L185: -107034.76 | M185: 0
A186: 47 | B186: 1975 | C186: Load Management Controls Utility Premises | D186: 2306870.264 | E186: 59363.59 | F186: 0 | G186: 2366233.854 | I186: -1317493.31 | J186: -183189.43 | K186: 0 | L186: -1500682.74 | M186: 865551.1141
A187: 47 | B187: 1980 | C187: System Supervisor Equipment | D187: 293582.38 | E187: 0 | F187: 0 | G187: 293582.38 | I187: -293582.38 | J187: 0 | K187: 0 | L187: -293582.38 | M187: 0
A188: 47 | B188: 1985 | C188: Miscellaneous Fixed Assets | D188: 0 | E188: 0 | F188: 0 | G188: 0 | I188: 0 | J188: 0 | K188: 0 | L188: 0 | M188: 0
A189: 47 | B189: 1990 | C189: Other Tangible Property | D189: 0 | E189: 0 | F189: 0 | G189: 0 | I189: 0 | J189: 0 | K189: 0 | L189: 0 | M189: 0
A190: 47 | B190: 1995 | C190: Contributions & Grants | D190: -43971142.24 | E190: -6198918.68 | F190: 521444.99 | G190: -49648615.93 | I190: 12541116.86 | J190: 1228234.03 | K190: -95264.07 | L190: 13674086.82 | M190: -35974529.11
A191: 47 | B191: 2440 | C191: Deferred Revenue5 | G191: 0 | L191: 0 | M191: 0
B192: 2005 | C192: Property Under Finance Lease7 | G192: 0 | L192: 0 | M192: 0
C193: Sub-Total | D193: =SUM(D152:D192) -> 199643797.9 | E193: =SUM(E152:E192) -> 23236499.14 | F193: =SUM(F152:F192) -> -2977723.13 | G193: =SUM(G152:G192) -> 219902573.9 | I193: =SUM(I152:I192) -> -94552055.09 | J193: =SUM(J152:J192) -> -5607313.38 | K193: =SUM(K152:K192) -> 3177605.75 | L193: =SUM(L152:L192) -> -96981762.72 | M193: =SUM(M152:M192) -> 122920811.2
C194: Less Socialized Renewable Energy Generation Investments (input as negative) | G194: =D194+E194+F194 -> 0 | L194: =I194+J194+K194 -> 0 | M194: =G194+L194 -> 0
C195: Less Other Non Rate-Regulated Utility Assets (input as negative) | G195: =D195+E195+F195 -> 0 | L195: =I195+J195+K195 -> 0 | M195: =G195+L195 -> 0
C196: Total PP&E | D196: =SUM(D193:D195) -> 199643797.9 | E196: =SUM(E193:E195) -> 23236499.14 | F196: =SUM(F193:F195) -> -2977723.13 | G196: =SUM(G193:G195) -> 219902573.9 | I196: =SUM(I193:I195) -> -94552055.09 | J196: =SUM(J193:J195) -> -5607313.38 | K196: =SUM(K193:K195) -> 3177605.75 | L196: =SUM(L193:L195) -> -96981762.72 | M196: =SUM(M193:M195) -> 122920811.2
C197: Depreciation Expense adj. from gain or loss on the retirement of assets (pool of like assets), if applicable6
C198: Total | J198: =J196+J197 -> -5607313.38
I200: Less: Fully Allocated Depreciation
A201: 10 | C201: Transportation | I201: Transportation
A202: 8 | C202: Stores Equipment | I202: Stores Equipment
A203: 47 | C203: Deferred Revenue | I203: Deferred Revenue
I204: Net Depreciation | K204: =J198-K201-K202-K203 -> -5607313.38
A207: Appendix 2-BA
A208: Fixed Asset Continuity Schedule 1
E210: Accounting Standard | F210: MIFRS
E211: Year | F211: 2018
D213: Cost | J213: Accumulated Depreciation
A214: CCA Class 2 | B214: OEB Account 3 | C214: Description 3 | D214: Opening Balance | E214: Additions 4 | F214: Disposals 6 | G214: Closing Balance | I214: Opening Balance | J214: Additions | K214: Disposals 6 | L214: Closing Balance | M214: Net Book Value
B215: 1609 | C215: Capital Contributions Paid | G215: =D215+E215+F215 -> 0 | L215: =I215+J215+K215 -> 0 | M215: =G215+L215 -> 0
A216: 12 | B216: 1611 | C216: Computer Software (Formally known as Account 1925) | D216: 2033570.01 | E216: 349449.86 | G216: =D216+E216+F216 -> 2383019.87 | I216: -1487871.68 | J216: -210550.39 | L216: =I216+J216+K216 -> -1698422.07 | M216: =G216+L216 -> 684597.8
A217: CEC | B217: 1612 | C217: Land Rights (Formally known as Account 1906) | G217: =D217+E217+F217 -> 0 | I217: 0 | L217: =I217+J217+K217 -> 0 | M217: =G217+L217 -> 0
A218: N/A | B218: 1805 | C218: Land | D218: 293875.47 | G218: =D218+E218+F218 -> 293875.47 | I218: 0 | L218: =I218+J218+K218 -> 0 | M218: =G218+L218 -> 293875.47
A219: 47 | B219: 1808 | C219: Buildings | D219: 757060.47 | E219: 4557190.29 | G219: =D219+E219+F219 -> 5314250.76 | I219: -528144.49 | J219: -54043.06 | L219: =I219+J219+K219 -> -582187.55 | M219: =G219+L219 -> 4732063.21
... 221 more rows

Sheet Appendix 2-BB Service Life
N1: File Number: | P1: ='LDC Info'!E16 -> EB-2020-0048
N2: Exhibit:
N3: Tab:
N4: Schedule:
N5: Page:
N7: Date:
A9: Appendix 2-BB
A10: Service Life Comparison
A11: Table F-1 from Kinetrics Report1
C15: Asset Details | F15: Useful Life | J15: USoA Account Number | K15: USoA Account Description | L15: Current | N15: Proposed | P15: Outside Range of Min, Max TUL?
A16: Parent* | B16: # | C16: Category| Component | Type | F16: MIN UL | G16: TUL | H16: MAX UL | L16: Years | M16: Rate | N16: Years | O16: Rate | P16: Below Min TUL | Q16: Above Max TUL
A17: OH | B17: 1 | C17: Fully Dressed Wood Poles | D17: Overall | F17: 35 | G17: 45 | H17: 75 | J17: 1830 | K17: Poles, Towers and Fixtures | L17: 45 | M17: =IF(ISERROR(1/L17), "", 1/L17) -> 0.02222222222 | N17: 45 | O17: =IF(ISERROR(1/N17), "", 1/N17) -> 0.02222222222 | P17: =IF(ISBLANK(N17),"",IF(N17<F17,"Yes","No")) -> No | Q17: =IF(ISBLANK(N17),"",IF(N17>H17,"Yes","No")) -> No
D18: Cross Arm | E18: Wood | F18: 20 | G18: 40 | H18: 55 | J18: 1830 | K18: Poles, Towers and Fixtures | L18: 40 | M18: =IF(ISERROR(1/L18), "", 1/L18) -> 0.025 | N18: 40 | O18: =IF(ISERROR(1/N18), "", 1/N18) -> 0.025 | P18: =IF(ISBLANK(N18),"",IF(N18<F18,"Yes","No")) -> No | Q18: =IF(ISBLANK(N18),"",IF(N18>H18,"Yes","No")) -> No
E19: Steel | F19: 30 | G19: 70 | H19: 95
B20: 2 | C20: Fully Dressed Concrete Poles | D20: Overall | F20: 50 | G20: 60 | H20: 80 | J20: 1830 | K20: Poles, Towers and Fixtures | L20: 60 | M20: 0.01666666667 | N20: 60 | O20: 0.01666666667 | P20: No | Q20: No
D21: Cross Arm | E21: Wood | F21: 20 | G21: 40 | H21: 55 | J21: 1830 | K21: Poles, Towers and Fixtures | L21: 40 | M21: 0.025 | N21: 40 | O21: 0.025 | P21: No | Q21: No
E22: Steel | F22: 30 | G22: 70 | H22: 95
B23: 3 | C23: Fully Dressed Steel Poles | D23: Overall | F23: 60 | G23: 60 | H23: 80
D24: Cross Arm | E24: Wood | F24: 20 | G24: 40 | H24: 55
E25: Steel | F25: 30 | G25: 70 | H25: 95
B26: 4 | C26: OH Line Switch | F26: 30 | G26: 45 | H26: 55 | J26: 1835 | K26: Overhead Conductors and Devices | L26: 40 | M26: 0.025 | N26: 40 | O26: 0.025 | P26: No | Q26: No
B27: 5 | C27: OH Line Switch Motor | F27: 15 | G27: 25 | H27: 25
B28: 6 | C28: OH Line Switch RTU | F28: 15 | G28: 20 | H28: 20
B29: 7 | C29: OH Integral Switches | F29: 35 | G29: 45 | H29: 60 | J29: 1835 | K29: Overhead Conductors and Devices | L29: 45 | M29: 0.02222222222 | N29: 45 | O29: 0.02222222222 | P29: No | Q29: No
B30: 8 | C30: OH Conductors | F30: 50 | G30: 60 | H30: 75 | J30: 1835 | K30: Overhead Conductors and Devices | L30: 45 | M30: 0.02222222222 | N30: 45 | O30: 0.02222222222 | P30: Yes | Q30: No
B31: 9 | C31: OH Transformers & Voltage Regulators | F31: 30 | G31: 40 | H31: 60 | J31: 1850 | K31: Line Transformers | L31: 40 | M31: 0.025 | N31: 40 | O31: 0.025 | P31: No | Q31: No
B32: 10 | C32: OH Shunt Capacitor Banks | F32: 25 | G32: 30 | H32: 40
B33: 11 | C33: Reclosers | F33: 25 | G33: 40 | H33: 55
A34: TS & MS | B34: 12 | C34: Power Transformers | D34: Overall | F34: 30 | G34: 45 | H34: 60 | J34: 1820 | K34: Distribution Station Equipment | L34: 45 | M34: 0.02222222222 | N34: 45 | O34: 0.02222222222 | P34: No | Q34: No
D35: Bushing | F35: 10 | G35: 20 | H35: 30
D36: Tap Changer | F36: 20 | G36: 30 | H36: 60
B37: 13 | C37: Station Service Transformer | F37: 30 | G37: 45 | H37: 55 | J37: 1820 | K37: Distribution Station Equipment | L37: 40 | M37: 0.025 | N37: 40 | O37: 0.025 | P37: No | Q37: No
B38: 14 | C38: Station Grounding Transformer | F38: 30 | G38: 40 | H38: 40
B39: 15 | C39: Station DC System | D39: Overall | F39: 10 | G39: 20 | H39: 30
D40: Battery Bank | F40: 10 | G40: 15 | H40: 15
D41: Charger | F41: 20 | G41: 20 | H41: 30
B42: 16 | C42: Station Metal Clad Switchgear | D42: Overall | F42: 30 | G42: 40 | H42: 60 | J42: 1820 | K42: Distribution Station Equipment | L42: 40 | M42: 0.025 | N42: 40 | O42: 0.025 | P42: No | Q42: No
D43: Removable Breaker | F43: 25 | G43: 40 | H43: 60
B44: 17 | C44: Station Independent Breakers | F44: 35 | G44: 45 | H44: 65 | J44: 1820 | K44: Distribution Station Equipment | L44: 40 | M44: 0.025 | N44: 40 | O44: 0.025 | P44: No | Q44: No
B45: 18 | C45: Station Switch | F45: 30 | G45: 50 | H45: 60 | J45: 1820 | K45: Distribution Station Equipment | L45: 50 | M45: 0.02 | N45: 50 | O45: 0.02 | P45: No | Q45: No
B46: 19 | C46: Electromechanical Relays | F46: 25 | G46: 35 | H46: 50 | J46: 1820 | K46: Distribution Station Equipment | L46: 35 | M46: 0.02857142857 | N46: 35 | O46: 0.02857142857 | P46: No | Q46: No
B47: 20 | C47: Solid State Relays | F47: 10 | G47: 30 | H47: 45
B48: 21 | C48: Digital & Numeric Relays | F48: 15 | G48: 20 | H48: 20
B49: 22 | C49: Rigid Busbars | F49: 30 | G49: 55 | H49: 60
B50: 23 | C50: Steel Structure | F50: 35 | G50: 50 | H50: 90
A51: UG | B51: 24 | C51: Primary Paper Insulated Lead Covered (PILC) Cables | F51: 60 | G51: 65 | H51: 75
B52: 25 | C52: Primary Ethylene-Propylene Rubber (EPR) Cables | F52: 20 | G52: 25 | H52: 25
B53: 26 | C53: Primary Non-Tree Retardant (TR) Cross Linked Polyethylene (XLPE) Cables Direct Buried | F53: 20 | G53: 25 | H53: 30
B54: 27 | C54: Primary Non-TR XLPE Cables in Duct | F54: 20 | G54: 25 | H54: 30
B55: 30 | C55: Secondary PILC Cables | F55: 70 | G55: 75 | H55: 80
B56: 31 | C56: Secondary Cables Direct Buried | F56: 25 | G56: 35 | H56: 40 | J56: 1845 | K56: Underground Conductors and Devices | L56: 42.5 | M56: 0.02352941176 | N56: 42.5 | O56: 0.02352941176 | P56: No | Q56: Yes
B57: 32 | C57: Secondary Cables in Duct | F57: 35 | G57: 40 | H57: 60 | J57: 1845 | K57: Underground Conductors and Devices | L57: 40 | M57: 0.025 | N57: 40 | O57: 0.025 | P57: No | Q57: No
B58: 33 | C58: Network Tranformers | D58: Overall | F58: 20 | G58: 35 | H58: 50
D59: Protector | F59: 20 | G59: 35 | H59: 40
B60: 34 | C60: Pad-Mounted Transformers | F60: 25 | G60: 40 | H60: 45 | J60: 1850 | K60: Line Transformers | L60: 40 | M60: 0.025 | N60: 40 | O60: 0.025 | P60: No | Q60: No
B61: 35 | C61: Submersible/Vault Transformers | F61: 25 | G61: 35 | H61: 45 | J61: 1850 | K61: Line Transformers | L61: 35 | M61: 0.02857142857 | N61: 35 | O61: 0.02857142857 | P61: No | Q61: No
B62: 36 | C62: UG Foundation | F62: 35 | G62: 55 | H62: 70 | J62: 1845&1850 | K62: Underground Conductors and Devices | L62: 55 | M62: 0.01818181818 | N62: 55 | O62: 0.01818181818 | P62: No | Q62: No
B63: 37 | C63: UG Vaults | D63: Overall | F63: 40 | G63: 60 | H63: 80 | J63: 1850 | K63: Line Transformers | L63: 60 | M63: 0.01666666667 | N63: 60 | O63: 0.01666666667 | P63: No | Q63: No
D64: Roof | F64: 20 | G64: 30 | H64: 45
B65: 38 | C65: UG Vault Switches | F65: 20 | G65: 35 | H65: 50 | J65: 1845 | K65: Underground Conductors and Devices | L65: 35 | M65: 0.02857142857 | N65: 35 | O65: 0.02857142857 | P65: No | Q65: No
B66: 39 | C66: Pad-Mounted Switchgear | F66: 20 | G66: 30 | H66: 45 | J66: 1845 | K66: Underground Conductors and Devices | L66: 30 | M66: 0.03333333333 | N66: 30 | O66: 0.03333333333 | P66: No | Q66: No
B67: 40 | C67: Ducts | F67: 30 | G67: 50 | H67: 85 | J67: 1845 | K67: Underground Conductors and Devices | L67: 50 | M67: 0.02 | N67: 50 | O67: 0.02 | P67: No | Q67: No
B68: 41 | C68: Concrete Encased Duct Banks | F68: 35 | G68: 55 | H68: 80 | J68: 1845 | K68: Underground Conductors and Devices | L68: 55 | M68: 0.01818181818 | N68: 55 | O68: 0.01818181818 | P68: No | Q68: No
B69: 42 | C69: Cable Chambers | F69: 50 | G69: 60 | H69: 80
A70: S | B70: 43 | C70: Remote SCADA | F70: 15 | G70: 20 | H70: 30 | J70: 1975 | K70: Load Management Controls - Utility Premises | L70: 8 | M70: 0.125 | N70: 8 | O70: 0.125 | P70: Yes | Q70: No
A73: Table F-2 from Kinetrics Report1
C75: Asset Details | F75: Useful Life Range | J75: USoA Account Number | K75: USoA Account Description | L75: Current | N75: Proposed | P75: Outside Range of Min, Max TUL?
B76: # | C76: Category| Component | Type | L76: Years | M76: Rate | N76: Years | O76: Rate | P76: Below Min Range | Q76: Above Max Range
B77: 1 | C77: Office Equipment | F77: 5 | G77: 15 | J77: 1955&1960 | K77: Communication & Misc. Equipment | L77: 10 | M77: =IF(ISERROR(1/L77), "", 1/L77) -> 0.1 | N77: 10 | O77: =IF(ISERROR(1/N77), "", 1/N77) -> 0.1 | P77: =IF(ISBLANK(N77),"",IF(N77<F77,"Yes","No")) -> No | Q77: =IF(ISBLANK(N77),"",IF(N77>G77,"Yes","No")) -> No
B78: 2 | C78: Vehicles | D78: Trucks & Buckets | F78: 5 | G78: 15 | J78: 1930 | K78: Transportation Equipment | L78: 10 | M78: =IF(ISERROR(1/L78), "", 1/L78) -> 0.1 | N78: 10 | O78: =IF(ISERROR(1/N78), "", 1/N78) -> 0.1 | P78: =IF(ISBLANK(N78),"",IF(N78<F78,"Yes","No")) -> No | Q78: =IF(ISBLANK(N78),"",IF(N78>G78,"Yes","No")) -> No
D79: Trailers | F79: 5 | G79: 20 | J79: 1930 | K79: Transportation Equipment | L79: 12 | M79: 0.08333333333 | N79: 12 | O79: 0.08333333333 | P79: No | Q79: No
D80: Vans | F80: 5 | G80: 10 | J80: 1930 | K80: Transportation Equipment | L80: 8 | M80: 0.125 | N80: 8 | O80: 0.125 | P80: No | Q80: No
B81: 3 | C81: Administrative Buildings | F81: 50 | G81: 75 | L81: Lease dependent
B82: 4 | C82: Leasehold Improvements | F82: Lease dependent | J82: 1910 | K82: Leasehold Improvements | L82: Lease dependent | P82: =IF(ISBLANK(N82),"",IF(N82<F82,"Yes","No")) ->  | Q82: =IF(ISBLANK(N82),"",IF(N82>G82,"Yes","No")) -> 
B83: 5 | C83: Station Buildings | D83: Station Buildings | F83: 50 | G83: 75 | J83: 1808 | K83: Buildings and Fixtures | L83: 62 | M83: =IF(ISERROR(1/L83), "", 1/L83) -> 0.01612903226 | N83: 62 | O83: 0.01612903226 | P83: No | Q83: No
D84: Parking | F84: 25 | G84: 30 | J84: 1808 | K84: Buildings and Fixtures | L84: 27.5 | M84: 0.03636363636 | N84: 27.5 | O84: 0.03636363636 | P84: No | Q84: No
D85: Fence | F85: 25 | G85: 60 | J85: 1808 | K85: Buildings and Fixtures | L85: 42 | M85: 0.02380952381 | N85: 42 | O85: 0.02380952381 | P85: No | Q85: No
D86: Roof | F86: 20 | G86: 30 | J86: 1808 | K86: Buildings and Fixtures | L86: 25 | M86: 0.04 | N86: 25 | O86: 0.04 | P86: No | Q86: No
B87: 6 | C87: Computer Equipment | D87: Hardware | F87: 3 | G87: 5 | J87: 1920 | K87: Computer Equipment - Hardware | L87: 4 | M87: 0.25 | N87: 4 | O87: 0.25 | P87: No | Q87: No
D88: Software | F88: 2 | G88: 5 | J88: 1611 | K88: Computer Software | L88: 3 | M88: 0.3333333333 | N88: 3 | O88: 0.3333333333 | P88: No | Q88: No
B89: 7 | C89: Equipment | D89: Power Operated | F89: 5 | G89: 10
D90: Stores | F90: 5 | G90: 10 | M90: =IF(ISERROR(1/L90), "", 1/L90) -> 
D91: Tools, Shop, Garage Equipment | F91: 5 | G91: 10 | J91: 1940 | K91: Tools, Shop and Garage Equipment | L91: 7 | M91: 0.1428571429 | N91: 7 | O91: 0.1428571429 | P91: No | Q91: No
D92: Measurement & Testing Equipment | F92: 5 | G92: 10 | J92: 1945 | K92: Measurement and Testing Equipment | L92: 7 | M92: 0.1428571429 | N92: 7 | O92: 0.1428571429 | P92: No | Q92: No
B93: 8 | C93: Communication | D93: Towers | F93: 60 | G93: 70
D94: Wireless | F94: 2 | G94: 10
B95: 9 | C95: Residential Energy Meters | F95: 25 | G95: 35 | J95: 1860 | K95: Meters | L95: 30 | M95: 0.03333333333 | N95: 30 | O95: 0.03333333333 | P95: No | Q95: No
B96: 10 | C96: Industrial/Commercial Energy Meters | F96: 25 | G96: 35 | J96: 1860 | K96: Meters | L96: 30 | M96: 0.03333333333 | N96: 30 | O96: 0.03333333333 | P96: No | Q96: No
B97: 11 | C97: Wholesale Energy Meters | F97: 15 | G97: 30
B98: 12 | C98: Current & Potential Transformer (CT & PT) | F98: 35 | G98: 50 | J98: 1860 | K98: Meters | L98: 42 | M98: 0.02380952381 | N98: 42 | O98: 0.02380952381 | P98: No | Q98: No
B99: 13 | C99: Smart Meters | F99: 5 | G99: 15 | J99: 1860 | K99: Meters | L99: 10 | M99: 0.1 | N99: 10 | O99: 0.1 | P99: No | Q99: No
B100: 14 | C100: Repeaters - Smart Metering | F100: 10 | G100: 15
B101: 15 | C101: Data Collectors - Smart Metering | F101: 15 | G101: 20
A104: * TS & MS = Transformer and Municipal Stations UG = Underground Systems S = Monitoring and Control Systems
A106: Note 1: | B106: Tables F-1 and F-2 above are to be used as a reference in order to complete columns J, K, L and N.
B107: See pages 17-19 of Kinetrics Report

Sheet App.2-C_DepExp
A9: Appendix 2-C | Y9: CGAAP
A10: Depreciation and Amortization Expense | Y10: Revised CGAAP
Y11: MIFRS
A12: This appendix is to be completed in conjunction with the accounting instructions in Appendix 2-B
A14: Scenario that applies | C14: Applicable Years and Accounting Standard | R14: Year Reflected in Schedule Below | S14: Accounting Standard Reflected in Schedule Below | Y14: 2012
A15: Rebasing for the first time with depreciation policy changes made in 2012. | C15: ="This appendix must be duplicated and completed for the years 2012 to " & TestYear & ". The appendix for 2012 is to be completed under CGAAP (prior to changes in depreciation policies)." &" The appendix for 2012 to 2014 must be completed under Revised CGAAP (after changes in depreciation policies). The appendix for 2014 to " & TestYear & " is to be completed under MIFRS (2014 if changes to MIFRS are material)." -> This appendix must be duplicated and completed for the years 2012 to 2021. The appendix for 2012 is to be completed under CGAAP (prior to changes in depreciation policies). The appendix for 2012 to 2014 must be completed under Revised CGAAP (after changes in depreciation policies). The appendix for 2014 to 2021 is to be completed under MIFRS (2014 if changes to MIFRS are material). | Y15: 2013
A16: Rebasing for the first time with depreciation policy changes made in 2013. | C16: ="This appendix must be duplicated and completed for the years 2013 to " & TestYear & ". The appendix for 2013 is to be completed under CGAAP (prior to changes in depreciation policies)."&" The appendix for 2013 to 2014 must be completed under Revised CGAAP (after changes in depreciation policies). The appendix for 2014 to " & TestYear & " is to be completed under MIFRS (2014 if changes to MIFRS are material)." -> This appendix must be duplicated and completed for the years 2013 to 2021. The appendix for 2013 is to be completed under CGAAP (prior to changes in depreciation policies). The appendix for 2013 to 2014 must be completed under Revised CGAAP (after changes in depreciation policies). The appendix for 2014 to 2021 is to be completed under MIFRS (2014 if changes to MIFRS are material). | Y16: 2014
A17: Already rebased with depreciation policy changes in a prior rate application and rebasing MIFRS for the first time. | C17: This appendix must be completed for 2014 to the test year. The appendix for 2014 is to be completed under Revised CGAAP (after changes in depreciation policies). The appendix for 2014 to the test year is to be completed under MIFRS (2014 if changes to MIFRS are material). | Y17: 2015
A18: Already rebased under MIFRS in a prior rate application | C18: ="This appendix must be completed under MIFRS for each year for the earlier of: 1) all historical years back to its last rebasing; or 2) at least three years of historical actuals, in addition to Bridge Year and Test Year forecasts." -> This appendix must be completed under MIFRS for each year for the earlier of: 1) all historical years back to its last rebasing; or 2) at least three years of historical actuals, in addition to Bridge Year and Test Year forecasts. | Y18: 2016
Y19: 2017
A20: 2021 | C20: Book Values | J20: Service Lives | N20: Depreciation Expense | Y20: 2018
A21: Account | B21: Description | C21: Opening Net Book Value of Existing Assets as at Date of Policy Change (Jan. 1) 1 | D21: Less Fully Depreciated 7 | E21: Net Amount of Existing Assets Before Policy Change to be Depreciated | F21: Opening Gross Book Value of Assets Acquired After Policy Change 2 | G21: Less Fully Depreciated 8 | H21: Net Amount of Assets Acquired After Policy Change to be Depreciated | I21: Current Year Additions | J21: Average Remaining Life of Assets Existing Before Policy Change 3 | K21: Depreciation Rate Assets Acquired After Policy Change | L21: Life of Assets Acquired After Policy Change 4 | M21: Depreciation Rate on New Additions | N21: Depreciation Expense on Assets Existing Before Policy Change | O21: Depreciation Expense on Assets Acquired After Policy Change | P21: Depreciation Expense on Current Year Additions 5 | Q21: Total Current Year Depreciation Expense | R21: Depreciation Expense per Appendix 2-BA Fixed Assets, Column J | S21: Variance 6
C22: a | D22: b | E22: c = a-b | F22: d | G22: e | H22: f = d- e | I22: g | J22: h | K22: i = 1/h | L22: j | M22: k = 1/j | N22: l = c/h | O22: m = f/j | P22: n = g*0.5/j | Q22: o = l+m+n | R22: p | S22: q = p-o
A23: 1609 | B23: Capital Contributions Paid | C23: 0 | D23: 0 | E23: =C23-D23 -> 0 | F23: 4136705 | G23: 0 | H23: =F23-G23 -> 4136705 | J23: 0 | K23: =IF(J23=0,0,1/J23) -> 0 | L23: 50 | M23: =IF(L23=0,0,1/L23) -> 0.02 | N23: =IF(J23=0,0,+E23/J23) -> 0 | O23: =IF(L23=0,0,+H23/L23) -> 82734.1 | P23: =IF(L23=0,0,+(I23*0.5)/L23) -> 0 | Q23: =IF(ISERROR(+N23+O23+P23), 0, +N23+O23+P23) -> 82734.1 | R23: 82734 | S23: =IF(ISERROR(+R23-Q23), 0, +R23-Q23) -> -0.1
A24: 1611 | B24: Computer Software (Formally known as Account 1925) | C24: 349811 | D24: 349811 | E24: =C24-D24 -> 0 | F24: 2142989 | G24: 1517723 | H24: =F24-G24 -> 625266 | I24: 200000 | J24: 2.690731027 | K24: =IF(J24=0,0,1/J24) -> 0.3716462144 | L24: 3 | M24: =IF(L24=0,0,1/L24) -> 0.3333333333 | N24: =IF(J24=0,0,+E24/J24) -> 0 | O24: =IF(L24=0,0,+H24/L24) -> 208422 | P24: =IF(L24=0,0,+(I24*0.5)/L24) -> 33333.33333 | Q24: =IF(ISERROR(+N24+O24+P24), 0, +N24+O24+P24) -> 241755.3333 | R24: 232891 | S24: =IF(ISERROR(+R24-Q24), 0, +R24-Q24) -> -8864.333333
A25: 1612 | B25: Land Rights (Formally known as Account 1906) | C25: 0 | D25: 0 | E25: 0 | F25: 0 | G25: 0 | H25: 0 | I25: 0 | J25: 0 | K25: 0 | L25: 0 | M25: 0 | N25: 0 | O25: =IF(L25=0,0,+H25/L25) -> 0 | P25: 0 | Q25: 0 | S25: 0
A26: 1805 | B26: Land | C26: 293875 | D26: 0 | E26: 293875 | F26: 0 | G26: 0 | H26: 0 | I26: 0 | J26: 0 | K26: 0 | L26: 0 | M26: 0 | N26: 0 | O26: 0 | P26: 0 | Q26: 0 | S26: 0
A27: 1808 | B27: Buildings | C27: 349774 | D27: 0 | E27: 349774 | F27: 5326592 | G27: 0 | H27: 5326592 | I27: 100000 | J27: 24.57006109 | K27: 0.0406999395 | L27: 62 | M27: 0.01612903226 | N27: 14235.78064 | O27: 85912.77419 | P27: 806.4516129 | Q27: 100955.0064 | R27: 109429 | S27: 8473.993555
A28: 1810 | B28: Leasehold Improvements | C28: 0 | D28: 0 | E28: 0 | F28: 0 | G28: 0 | H28: 0 | I28: 0 | J28: 0 | K28: 0 | L28: 0 | M28: 0 | N28: 0 | O28: 0 | P28: 0 | Q28: 0 | S28: 0
A29: 1815 | B29: Transformer Station Equipment >50 kV | C29: 0 | D29: 0 | E29: 0 | F29: 0 | G29: 0 | H29: 0 | I29: 0 | J29: 0 | K29: 0 | L29: 0 | M29: 0 | N29: 0 | O29: 0 | P29: 0 | Q29: 0 | S29: 0
A30: 1820 | B30: Distribution Station Equipment <50 kV | C30: 7715028 | D30: 2100821.64 | E30: 5614206.36 | F30: 13978562 | G30: 0 | H30: 13978562 | I30: 1880300 | J30: 30.26580387 | K30: 0.03304058945 | L30: 42.5 | M30: 0.02352941176 | N30: 185496.6874 | O30: 328907.3412 | P30: 22121.17647 | Q30: 536525.2051 | R30: 628741 | S30: 92215.79495
A31: 1825 | B31: Storage Battery Equipment | C31: 0 | D31: 0 | E31: 0 | F31: 0 | G31: 0 | H31: 0 | I31: 0 | J31: 0 | K31: 0 | L31: 0 | M31: 0 | N31: 0 | O31: 0 | P31: 0 | Q31: 0 | S31: 0
A32: 1830 | B32: Poles, Towers & Fixtures | C32: 15393255 | D32: 4995239.39 | E32: 10398015.61 | F32: 30075844 | G32: 0 | H32: 30075844 | I32: 2709830 | J32: 39.83975066 | K32: 0.0251005587 | L32: 45 | M32: 0.02222222222 | N32: 260996.0011 | O32: 668352.0889 | P32: 30109.22222 | Q32: 959457.3123 | R32: 1007784 | S32: 48326.68775
A33: 1835 | B33: Overhead Conductors & Devices | C33: 8783977 | D33: 3170151.14 | E33: 5613825.86 | F33: 13154768 | G33: 0 | H33: 13154768 | I33: 2274548 | J33: 43.23367819 | K33: 0.02313011619 | L33: 45 | M33: 0.02222222222 | N33: 129848.4444 | O33: 292328.1778 | P33: 25272.75556 | Q33: 447449.3778 | R33: 509195 | S33: 61745.62225
A34: 1840 | B34: Underground Conduit | C34: 0 | D34: 0 | E34: 0 | F34: 0 | G34: 0 | H34: 0 | I34: 0 | J34: 0 | K34: 0 | L34: 0 | M34: 0 | N34: 0 | O34: 0 | P34: 0 | Q34: 0 | S34: 0
A35: 1845 | B35: Underground Conductors & Devices | C35: 21576736 | D35: 5218561.52 | E35: 16358174.48 | F35: 30244064 | G35: 0 | H35: 30244064 | I35: 4028875 | J35: 32.53821353 | K35: 0.03073309477 | L35: 40 | M35: 0.025 | N35: 502737.3265 | O35: 756101.6 | P35: 50360.9375 | Q35: 1309199.864 | R35: 1327104 | S35: 17904.13602
A36: 1850 | B36: Line Transformers | C36: 19978411 | D36: 2854278.56 | E36: 17124132.44 | F36: 21972710 | G36: 0 | H36: 21972710 | I36: 2431968 | J36: 31.10279667 | K36: 0.03215144961 | L36: 40 | M36: 0.025 | N36: 550565.6813 | O36: 549317.75 | P36: 30399.6 | Q36: 1130283.031 | R36: 1220213 | S36: 89929.96874
A37: 1855 | B37: Services (Overhead & Underground) | C37: 0 | D37: 0 | E37: 0 | F37: 0 | G37: 0 | H37: 0 | I37: 0 | J37: 0 | K37: 0 | L37: 0 | M37: 0 | N37: 0 | O37: 0 | P37: 0 | Q37: 0 | S37: 0
A38: 1860 | B38: Meters | C38: 164287 | D38: 3090 | E38: =C38-D38 -> 161197 | F38: 2107596 | G38: 0 | H38: =F38-G38 -> 2107596 | I38: 175000 | J38: 20.39785371 | K38: =IF(J38=0,0,1/J38) -> 0.04902476575 | L38: 30 | M38: =IF(L38=0,0,1/L38) -> 0.03333333333 | N38: =IF(J38=0,0,+E38/J38) -> 7902.645164 | O38: =IF(L38=0,0,+H38/L38) -> 70253.2 | P38: =IF(L38=0,0,+(I38*0.5)/L38) -> 2916.666667 | Q38: =IF(ISERROR(+N38+O38+P38), 0, +N38+O38+P38) -> 81072.51183 | R38: 707907 | S38: =IF(ISERROR(+R38-Q38), 0, +R38-Q38) -> 626834.4882
A39: 1860 | B39: Meters (Smart Meters) | C39: 6971136 | D39: 4529183.45 | E39: 2441952.55 | F39: 3587488 | G39: 0 | H39: 3587488 | I39: 500000 | J39: 9.76699301 | K39: 0.1023856574 | L39: 10 | M39: 0.1 | N39: 250020.9171 | O39: 358748.8 | P39: 25000 | Q39: 633769.7171 | S39: -633769.7171
A40: 1905 | B40: Land | C40: 0 | D40: 0 | E40: 0 | F40: 0 | G40: 0 | H40: 0 | J40: 0 | K40: 0 | L40: 0 | M40: 0 | N40: 0 | O40: 0 | P40: 0 | Q40: 0 | S40: 0
A41: 1908 | B41: Buildings & Fixtures | C41: 0 | D41: 0 | E41: 0 | F41: 0 | G41: 0 | H41: 0 | J41: 0 | K41: 0 | L41: 75 | M41: 0.01333333333 | N41: 0 | O41: 0 | P41: 0 | Q41: 0 | S41: 0
A42: 1910 | B42: Leasehold Improvements | C42: 483613 | D42: 483613 | E42: 0 | F42: 689619 | G42: 311000 | H42: 378619 | I42: 100000 | J42: 3.211023261 | K42: 0.3114272052 | L42: 3 | M42: 0.3333333333 | N42: 0 | O42: 126206.3333 | P42: 16666.66667 | Q42: 142873 | R42: 132360 | S42: -10513
A43: 1915 | B43: Office Furniture & Equipment (10 years) | C43: 0 | D43: 0 | E43: 0 | F43: 24842.79 | G43: 0 | H43: 24842.79 | I43: 0 | J43: 0 | K43: 0 | L43: 10 | M43: 0.1 | N43: 0 | O43: 2484.279 | P43: 0 | Q43: 2484.279 | S43: -2484.279
A44: 1915 | B44: Office Furniture & Equipment (5 years) | C44: 40991 | D44: 40990.95 | E44: 0.05 | F44: 74509 | G44: 3007 | H44: 71502 | I44: 0 | J44: 4.875028276 | K44: 0.2051270154 | L44: 5 | M44: 0.2 | N44: 0.01025635077 | O44: 14300.4 | P44: 0 | Q44: 14300.41026 | S44: -14300.41026
A45: 1920 | B45: Computer Equipment - Hardware | C45: 46413 | D45: 46412.51 | E45: 0.489999998 | F45: 1924898 | G45: 503278 | H45: 1421620 | I45: 1412000 | J45: 2.662754748 | K45: 0.3755509218 | L45: 4 | M45: 0.25 | N45: 0.1840199509 | O45: 355405 | P45: 176500 | Q45: 531905.184 | R45: 576275 | S45: 44369.81598
A46: 1920 | B46: Computer Equip.-Hardware(Post Mar. 22/04) | D46: 0 | E46: 0 | F46: 277930 | G46: 151111 | H46: 126819 | J46: 0 | K46: 0 | L46: 4 | M46: 0.25 | N46: 0 | O46: 31704.75 | P46: 0 | Q46: 31704.75 | S46: -31704.75
A47: 1920 | B47: Computer Equip.-Hardware(Post Mar. 19/07) | C47: 0 | D47: 0 | E47: 0 | F47: 0 | G47: 0 | H47: 0 | J47: 0 | K47: 0 | L47: 4 | M47: 0.25 | N47: 0 | O47: 0 | P47: 0 | Q47: 0 | S47: 0
A48: 1930 | B48: Transportation Equipment | C48: 932682 | D48: 932681.77 | E48: 0.23 | F48: 3682962.28 | G48: 457388 | H48: 3225574.28 | I48: 530000 | J48: 9.239478096 | K48: 0.1082312215 | L48: 8 | M48: 0.125 | N48: 0.02489318094 | O48: 403196.785 | P48: 33125 | Q48: 436321.8099 | R48: 419194 | S48: -17127.80989
A49: 1935 | B49: Stores Equipment | C49: 288 | D49: 288 | E49: 0 | F49: 66250.83 | G49: 0 | H49: 66250.83 | J49: 1.000173647 | K49: 0.9998263829 | L49: 7 | M49: 0.1428571429 | N49: 0 | O49: 9464.404286 | P49: 0 | Q49: 9464.404286 | R49: 26887 | S49: 17422.59571
A50: 1940 | B50: Tools, Shop & Garage Equipment | C50: 686983 | D50: 686983 | E50: 0 | F50: 656917 | G50: 319555 | H50: 337362 | I50: 0 | J50: 3.25573901 | K50: 0.3071499273 | L50: 7 | M50: 0.1428571429 | N50: 0 | O50: 48194.57143 | P50: 0 | Q50: 48194.57143 | R50: 73011 | S50: 24816.42857
A51: 1945 | B51: Measurement & Testing Equipment | C51: 155953 | D51: 155953 | E51: 0 | F51: 888985 | G51: 535600 | H51: 353385 | I51: 0 | J51: 12.56660677 | K51: 0.07957597613 | L51: 7 | M51: 0.1428571429 | N51: 0 | O51: 50483.57143 | P51: 0 | Q51: 50483.57143 | R51: 42872 | S51: -7611.571429
A52: 1950 | B52: Power Operated Equipment | C52: 0 | D52: 0 | E52: 0 | F52: 0 | G52: 0 | H52: 0 | I52: 0 | J52: 0 | K52: 0 | L52: 10 | M52: 0.1 | N52: 0 | O52: 0 | P52: 0 | Q52: 0 | S52: 0
A53: 1955 | B53: Communications Equipment | C53: 15187 | D53: 15187 | E53: 0 | F53: 594701.94 | G53: 0 | H53: 594701.94 | I53: 150000 | J53: 2.832941413 | K53: 0.3529900038 | L53: 10 | M53: 0.1 | N53: 0 | O53: 59470.194 | P53: 7500 | Q53: 66970.194 | R53: 67070 | S53: 99.806
A54: 1955 | B54: Communication Equipment (Smart Meters) | C54: 0 | D54: 0 | E54: 0 | F54: 0 | G54: 0 | H54: 0 | I54: 0 | J54: 0 | K54: 0 | L54: 0 | M54: 0 | N54: 0 | O54: 0 | P54: 0 | Q54: 0 | S54: 0
A55: 1960 | B55: Miscellaneous Equipment | C55: 35809 | D55: 35809 | E55: 0 | F55: 147431.13 | G55: 0 | H55: 147431.13 | I55: 0 | J55: 2.203795903 | K55: 0.453762528 | L55: 5 | M55: 0.2 | N55: 0 | O55: 29486.226 | P55: 0 | Q55: 29486.226 | S55: -29486.226
A56: 1970 | B56: Load Management Controls Customer Premises | C56: 70871 | D56: 70871 | E56: 0 | F56: 0 | G56: 0 | H56: 0 | I56: 0 | J56: 3 | K56: 0.3333333333 | L56: 8 | M56: 0.125 | N56: 0 | O56: 0 | P56: 0 | Q56: 0 | S56: 0
A57: 1975 | B57: Load Management Controls Utility Premises | C57: 279356 | D57: 279356 | E57: 0 | F57: 1344540.834 | G57: 0 | H57: 1344540.834 | I57: 0 | J57: 12 | K57: 0.08333333333 | L57: 8 | M57: 0.125 | N57: 0 | O57: 168067.6043 | P57: 0 | Q57: 168067.6043 | R57: 169674 | S57: 1606.395736
A58: 1980 | B58: System Supervisor Equipment | C58: 0 | D58: 0 | E58: 0 | F58: 0 | G58: 0 | H58: 0 | I58: 0 | J58: 0 | K58: 0 | L58: 0 | M58: 0 | N58: 0 | O58: 0 | P58: 0 | Q58: 0 | S58: 0
A59: 1985 | B59: Miscellaneous Fixed Assets | C59: 0 | D59: 0 | E59: 0 | F59: 0 | G59: 0 | H59: 0 | I59: 0 | J59: 0 | K59: 0 | L59: 0 | M59: 0 | N59: 0 | O59: 0 | P59: 0 | Q59: 0 | S59: 0
A60: 1990 | B60: Other Tangible Property | C60: 0 | D60: 0 | E60: 0 | F60: 0 | G60: 0 | H60: 0 | I60: 0 | J60: 0 | K60: 0 | L60: 0 | M60: 0 | N60: 0 | O60: 0 | P60: 0 | Q60: 0 | S60: 0
A61: 1995 | B61: Contributions & Grants | C61: -22390983 | D61: -5424229.99 | E61: -16966753.01 | F61: -22786394 | G61: -61000 | H61: -22725394 | I61: -2043057 | J61: 40.1333701 | K61: 0.02491692069 | L61: 45 | M61: 0.02222222222 | N61: -422759.2392 | O61: -505008.7556 | P61: -22700.63333 | Q61: -950468.6281 | R61: -1182558 | S61: -232089.3719
A62: 2005 | B62: Property Under Finance Lease | E62: 0 | H62: 0 | K62: 0 | M62: 0 | N62: 0 | O62: =IF(L62=0,0,+H62/L62) -> 0 | P62: =IF(L62=0,0,+(I62*0.5)/L62) -> 0 | Q62: =IF(ISERROR(+N62+O62+P62), 0, +N62+O62+P62) -> 0 | S62: 0
B63: Total | C63: =SUM(C23:C62) -> 61933453 | D63: =SUM(D23:D62) -> 20545051.94 | E63: =SUM(E23:E62) -> 41388401.06 | F63: 114314511.8 | G63: 3737662 | H63: 110576849.8 | I63: 14449464 | N63: =SUM(N23:N62) -> 1479044.464 | O63: =SUM(O23:O62) -> 4194533.195 | P63: 431411.1767 | Q63: 6104988.836 | R63: 6150783 | S63: 45794.16442
A66: General: | B66: Applicants are to complete this appendix to show the reasonability of the depreciation expense that is included in rate base via. Accumulated depreciation and the revenue requirement.
B67: Applicants must provide a breakdown of depreciation and amortization expense in the above format for all relevant accounts. Balances presented in the table should exclude asset retirement obligations (AROs) and the related depreciation and accretion expense. These should be disclosed separately consistent with the Notes of historical Audited Financial Statements.
A70: Notes:
A71: 1 | B71: This is the net book value of assets that existed as at the date of the utility's change in depreciation policies (i.e. as at Jan. 1, 2012 or Jan. 1, 2013). These assets are to be depreciated at the average remaining service life. This amount will not change in years subsequent to the date of the utility's change in depreciation policies. This column is expected to be used until the assets that existed as at the date of the utility's change in depreciation policies are fully depreciated.
A72: 2 | B72: This is the opening gross book value of assets that have been acquired after the date of the utility's change in depreciation policies (i.e. additions starting in 2012/2013 for those who changed policies Jan. 1, 2012/2013). These assets are to be depreciated at the revised service life. The amount is expected to be equal to the opening gross book value of the prior year plus the prior year's additions.
A73: 3 | B73: A recalculation should be performed to determine the average remaining life of opening balance of assets (i.e. excluding current year's additions) under the change in policies under CGAAP. For example, Asset A had a useful life of 20 years under CGAAP without the change in policies. On January 1 of the year of policy changes, Asset A was 3 years depreciated. As a result, Asset A would have a remaining service life of 17 years (20 years less 3 years) as at January 1 of the year of policy changes. Due to making the change in policies under CGAAP, management re-assessed the asset useful lives and concluded that the revised useful life of Asset A is now 30 years. Therefore, the average remaining useful life of the opening balance of Asset A is determined to be 27 years (30 years less 3 years) under the revised CGAAP as at January 1 of the year of policy changes.
A74: 4 | B74: The useful life used should be consistent with the OEB's regulatory accounting policies as set out in the Accounting Procedures Handbook for Electricity Distributors, effective Jan. 1, 2012 and also with the Report of the Board, Transition to International Financial Reporting Standards, EB-2008-0408, and the Kinectrics Report.
A75: 5 | B75: OEB policy of the "half-year" rule - the applicant must ensure that additions in the year attract a half-year depreciation expense in the first year. Deviations from this standard practice must be supported in the application.
A76: 6 | B76: The applicant must provide an explanation of material variances in evidence.
A77: 7 | B77: This should include assets in column A (excel column C) that become fully depreciated since the date of the policy change. The amount input in b (excel column D) should equal the net book value of the asset as at the date of depreciation policy change
A78: 8 | B78: This should include assets in column D (excel column F) that have become fully depreciated. The amount input in e (excel column G) should equal the gross book value of the asset
A82: 2020 | C82: Book Values | J82: Service Lives | N82: Depreciation Expense | Y82: 2018
A83: Account | B83: Description | C83: Opening Net Book Value of Existing Assets as at Date of Policy Change (Jan. 1) 1 | D83: Less Fully Depreciated 7 | E83: Net Amount of Existing Assets Before Policy Change to be Depreciated | F83: Opening Gross Book Value of Assets Acquired After Policy Change 2 | G83: Less Fully Depreciated 8 | H83: Net Amount of Assets Acquired After Policy Change to be Depreciated | I83: Current Year Additions | J83: Average Remaining Life of Assets Existing Before Policy Change 3 | K83: Depreciation Rate Assets Acquired After Policy Change | L83: Life of Assets Acquired After Policy Change 4 | M83: Depreciation Rate on New Additions | N83: Depreciation Expense on Assets Existing Before Policy Change | O83: Depreciation Expense on Assets Acquired After Policy Change | P83: Depreciation Expense on Current Year Additions 5 | Q83: Total Current Year Depreciation Expense | R83: Depreciation Expense per Appendix 2-BA Fixed Assets, Column J | S83: Variance 6
C84: a | D84: b | E84: c = a-b | F84: d | G84: e | H84: f = d- e | I84: g | J84: h | K84: i = 1/h | L84: j | M84: k = 1/j | N84: l = c/h | O84: m = f/j | P84: n = g*0.5/j | Q84: o = l+m+n | R84: p | S84: q = p-o
A85: 1609 | B85: Capital Contributions Paid | C85: 0 | D85: 0 | E85: =C85-D85 -> 0 | F85: 4136705 | G85: 0 | H85: =F85-G85 -> 4136705 | J85: 0 | K85: =IF(J85=0,0,1/J85) -> 0 | L85: 50 | M85: =IF(L85=0,0,1/L85) -> 0.02 | N85: =IF(J85=0,0,+E85/J85) -> 0 | O85: =IF(L85=0,0,+H85/L85) -> 82734.1 | P85: =IF(L85=0,0,+(I85*0.5)/L85) -> 0 | Q85: =IF(ISERROR(+N85+O85+P85), 0, +N85+O85+P85) -> 82734.1 | R85: 82734 | S85: =IF(ISERROR(+R85-Q85), 0, +R85-Q85) -> -0.1
A86: 1611 | B86: Computer Software (Formally known as Account 1925) | C86: 349811 | D86: 349811 | E86: =C86-D86 -> 0 | F86: 1842989 | G86: 1017723 | H86: =F86-G86 -> 825266 | I86: 300000 | J86: 2.690731027 | K86: =IF(J86=0,0,1/J86) -> 0.3716462144 | L86: 3 | M86: =IF(L86=0,0,1/L86) -> 0.3333333333 | N86: =IF(J86=0,0,+E86/J86) -> 0 | O86: =IF(L86=0,0,+H86/L86) -> 275088.6667 | P86: =IF(L86=0,0,+(I86*0.5)/L86) -> 50000 | Q86: =IF(ISERROR(+N86+O86+P86), 0, +N86+O86+P86) -> 325088.6667 | R86: 367627 | S86: =IF(ISERROR(+R86-Q86), 0, +R86-Q86) -> 42538.33333
A87: 1612 | B87: Land Rights (Formally known as Account 1906) | C87: 0 | D87: 0 | E87: 0 | F87: 0 | G87: 0 | H87: 0 | J87: 0 | K87: 0 | L87: 0 | M87: 0 | N87: 0 | O87: =IF(L87=0,0,+H87/L87) -> 0 | P87: 0 | Q87: 0 | S87: 0
A88: 1805 | B88: Land | C88: 293875 | D88: 0 | E88: 293875 | F88: 0 | G88: 0 | H88: 0 | J88: 0 | K88: 0 | L88: 0 | M88: 0 | N88: 0 | O88: 0 | P88: 0 | Q88: 0 | S88: 0
A89: 1808 | B89: Buildings | C89: 349774 | D89: 0 | E89: 349774 | F89: 5001592 | G89: 0 | H89: 5001592 | I89: 325000 | J89: 24.57006109 | K89: 0.0406999395 | L89: 62 | M89: 0.01612903226 | N89: 14235.78064 | O89: 80670.83871 | P89: 2620.967742 | Q89: 97527.58709 | R89: 106628 | S89: 9100.412909
A90: 1810 | B90: Leasehold Improvements | C90: 0 | D90: 0 | E90: 0 | F90: 0 | G90: 0 | H90: 0 | I90: 0 | J90: 0 | K90: 0 | L90: 0 | M90: 0 | N90: 0 | O90: 0 | P90: 0 | Q90: 0 | S90: 0
A91: 1815 | B91: Transformer Station Equipment >50 kV | C91: 0 | D91: 0 | E91: 0 | F91: 0 | G91: 0 | H91: 0 | I91: 0 | J91: 0 | K91: 0 | L91: 0 | M91: 0 | N91: 0 | O91: 0 | P91: 0 | Q91: 0 | S91: 0
A92: 1820 | B92: Distribution Station Equipment <50 kV | C92: 7715028 | D92: 2075821.64 | E92: 5639206.36 | F92: 13838962 | G92: 0 | H92: 13838962 | I92: 139600 | J92: 30.26580387 | K92: 0.03304058945 | L92: 42.5 | M92: 0.02352941176 | N92: 186322.7021 | O92: 325622.6353 | P92: 1642.352941 | Q92: 513587.6904 | R92: 604774 | S92: 91186.30962
A93: 1825 | B93: Storage Battery Equipment | C93: 0 | D93: 0 | E93: 0 | F93: 0 | G93: 0 | H93: 0 | J93: 0 | K93: 0 | L93: 0 | M93: 0 | N93: 0 | O93: 0 | P93: 0 | Q93: 0 | S93: 0
A94: 1830 | B94: Poles, Towers & Fixtures | C94: 15393255 | D94: 4245239.39 | E94: 11148015.61 | F94: 26106680 | G94: 0 | H94: 26106680 | I94: 3969164 | J94: 39.83975066 | K94: 0.0251005587 | L94: 45 | M94: 0.02222222222 | N94: 279821.4202 | O94: 580148.4444 | P94: 44101.82222 | Q94: 904071.6868 | R94: 934581 | S94: 30509.31317
A95: 1835 | B95: Overhead Conductors & Devices | C95: 8783977 | D95: 2970151.14 | E95: 5813825.86 | F95: 10727897 | G95: 0 | H95: 10727897 | I95: 2426871 | J95: 43.23367819 | K95: 0.02313011619 | L95: 45 | M95: 0.02222222222 | N95: 134474.4677 | O95: 238397.7111 | P95: 26965.23333 | Q95: 399837.4121 | R95: 460170 | S95: 60332.5879
A96: 1840 | B96: Underground Conduit | C96: 0 | D96: 0 | E96: 0 | F96: 0 | G96: 0 | H96: 0 | J96: 0 | K96: 0 | L96: 0 | M96: 0 | N96: 0 | O96: 0 | P96: 0 | Q96: 0 | S96: 0
A97: 1845 | B97: Underground Conductors & Devices | C97: 21576736 | D97: 4768561.52 | E97: 16808174.48 | F97: 26081989 | G97: 0 | H97: 26081989 | I97: 4162075 | J97: 32.53821353 | K97: 0.03073309477 | L97: 40 | M97: 0.025 | N97: 516567.2191 | O97: 652049.725 | P97: 52025.9375 | Q97: 1220642.882 | R97: 1319592 | S97: 98949.11837
A98: 1850 | B98: Line Transformers | C98: 19978411 | D98: 2754278.56 | E98: 17224132.44 | F98: 17744610 | G98: 0 | H98: 17744610 | I98: 4228100 | J98: 31.10279667 | K98: 0.03215144961 | L98: 40 | M98: 0.025 | N98: 553780.8262 | O98: 443615.25 | P98: 52851.25 | Q98: 1050247.326 | R98: 1134921 | S98: 84673.67378
A99: 1855 | B99: Services (Overhead & Underground) | C99: 0 | D99: 0 | E99: 0 | F99: 0 | G99: 0 | H99: 0 | I99: 0 | J99: 0 | K99: 0 | L99: 0 | M99: 0 | N99: 0 | O99: 0 | P99: 0 | Q99: 0 | S99: 0
A100: 1860 | B100: Meters | C100: 164287 | D100: 3090 | E100: 161197 | F100: 1495096 | G100: 0 | H100: 1495096 | I100: 612500 | J100: 20.39785371 | K100: 0.04902476575 | L100: 30 | M100: 0.03333333333 | N100: 7902.645164 | O100: 49836.53333 | P100: 10208.33333 | Q100: 67947.51183 | R100: 860581 | S100: 792633.4882
A101: 1860 | B101: Meters (Smart Meters) | C101: 6971136 | D101: 2079183.45 | E101: 4891952.55 | F101: 3306588 | G101: 0 | H101: 3306588 | I101: 280900 | J101: 9.76699301 | K101: 0.1023856574 | L101: 10 | M101: 0.1 | N101: 500865.7777 | O101: 330658.8 | P101: 14045 | Q101: 845569.5777 | S101: -845569.5777
A102: 1905 | B102: Land | C102: 0 | D102: 0 | E102: 0 | F102: 0 | G102: 0 | H102: 0 | I102: 0 | J102: 0 | K102: 0 | L102: 0 | M102: 0 | N102: 0 | O102: 0 | P102: 0 | Q102: 0 | S102: 0
A103: 1908 | B103: Buildings & Fixtures | C103: 0 | D103: 0 | E103: 0 | F103: 0 | G103: 0 | H103: 0 | J103: 0 | K103: 0 | L103: 75 | M103: 0.01333333333 | N103: 0 | O103: 0 | P103: 0 | Q103: 0 | S103: 0
A104: 1910 | B104: Leasehold Improvements | C104: 483613 | D104: 483613 | E104: =C104-D104 -> 0 | F104: 409619 | G104: 150000 | H104: =F104-G104 -> 259619 | I104: 280000 | J104: 3.211023261 | K104: =IF(J104=0,0,1/J104) -> 0.3114272052 | L104: 3 | M104: =IF(L104=0,0,1/L104) -> 0.3333333333 | N104: =IF(J104=0,0,+E104/J104) -> 0 | O104: =IF(L104=0,0,+H104/L104) -> 86539.66667 | P104: =IF(L104=0,0,+(I104*0.5)/L104) -> 46666.66667 | Q104: =IF(ISERROR(+N104+O104+P104), 0, +N104+O104+P104) -> 133206.3333 | R104: 76925 | S104: =IF(ISERROR(+R104-Q104), 0, +R104-Q104) -> -56281.33333
A105: 1915 | B105: Office Furniture & Equipment (10 years) | C105: 0 | D105: 0 | E105: 0 | F105: 24842.79 | G105: 0 | H105: 24842.79 | I105: 0 | J105: 0 | K105: 0 | L105: 10 | M105: 0.1 | N105: 0 | O105: 2484.279 | P105: 0 | Q105: 2484.279 | S105: -2484.279
A106: 1915 | B106: Office Furniture & Equipment (5 years) | C106: 40991 | D106: 40990.95 | E106: 0.05 | F106: 74509 | G106: 3007 | H106: 71502 | J106: 4.875028276 | K106: 0.2051270154 | L106: 5 | M106: 0.2 | N106: 0.01025635077 | O106: 14300.4 | P106: 0 | Q106: 14300.41026 | S106: -14300.41026
A107: 1920 | B107: Computer Equipment - Hardware | C107: 46413 | D107: 46412.51 | E107: 0.49 | F107: 953398 | G107: 205100 | H107: 748298 | I107: 971500 | J107: 2.662754748 | K107: 0.3755509218 | L107: 4 | M107: 0.25 | N107: 0.1840199517 | O107: 187074.5 | P107: 121437.5 | Q107: 308512.184 | R107: 342132 | S107: 33619.81598
A108: 1920 | B108: Computer Equip.-Hardware(Post Mar. 22/04) | D108: 0 | E108: 0 | F108: 277930 | G108: 151111 | H108: 126819 | J108: 0 | K108: 0 | L108: 4 | M108: 0.25 | N108: 0 | O108: 31704.75 | P108: 0 | Q108: 31704.75 | S108: -31704.75
A109: 1920 | B109: Computer Equip.-Hardware(Post Mar. 19/07) | C109: 0 | D109: 0 | E109: 0 | F109: 0 | G109: 0 | H109: 0 | J109: 0 | K109: 0 | L109: 4 | M109: 0.25 | N109: 0 | O109: 0 | P109: 0 | Q109: 0 | S109: 0
A110: 1930 | B110: Transportation Equipment | C110: 932682 | D110: 932682 | E110: 0 | F110: 3137962.28 | G110: 203694 | H110: 2934268.28 | I110: 545000 | J110: 9.239478096 | K110: 0.1082312215 | L110: 8 | M110: 0.125 | N110: 0 | O110: 366783.535 | P110: 34062.5 | Q110: 400846.035 | R110: 416998 | S110: 16151.965
A111: 1935 | B111: Stores Equipment | C111: 288 | D111: 288 | E111: 0 | F111: 6250.83 | G111: 0 | H111: 6250.83 | I111: 60000 | J111: 1.000173647 | K111: 0.9998263829 | L111: 7 | M111: 0.1428571429 | N111: 0 | O111: 892.9757143 | P111: 4285.714286 | Q111: 5178.69 | R111: 20887 | S111: 15708.31
A112: 1940 | B112: Tools, Shop & Garage Equipment | C112: 686983 | D112: 686983 | E112: 0 | F112: 656917 | G112: 319555 | H112: 337362 | I112: 0 | J112: 3.25573901 | K112: 0.3071499273 | L112: 7 | M112: 0.1428571429 | N112: 0 | O112: 48194.57143 | P112: 0 | Q112: 48194.57143 | R112: 85858 | S112: 37663.42857
A113: 1945 | B113: Measurement & Testing Equipment | C113: 155953 | D113: 155953 | E113: 0 | F113: 888985 | G113: 535600 | H113: 353385 | I113: 0 | J113: 12.56660677 | K113: 0.07957597613 | L113: 7 | M113: 0.1428571429 | N113: 0 | O113: 50483.57143 | P113: 0 | Q113: 50483.57143 | R113: 51078 | S113: 594.4285714
A114: 1950 | B114: Power Operated Equipment | C114: 0 | D114: 0 | E114: 0 | F114: 0 | G114: 0 | H114: 0 | I114: 0 | J114: 0 | K114: 0 | L114: 10 | M114: 0.1 | N114: 0 | O114: 0 | P114: 0 | Q114: 0 | S114: 0
A115: 1955 | B115: Communications Equipment | C115: 15187 | D115: 15187 | E115: 0 | F115: 344701.94 | G115: 0 | H115: 344701.94 | I115: 250000 | J115: 2.832941413 | K115: 0.3529900038 | L115: 10 | M115: 0.1 | N115: 0 | O115: 34470.194 | P115: 12500 | Q115: 46970.194 | R115: 47170 | S115: 199.806
A116: 1955 | B116: Communication Equipment (Smart Meters) | C116: 0 | D116: 0 | E116: 0 | F116: 0 | G116: 0 | H116: 0 | J116: 0 | K116: 0 | L116: 0 | M116: 0 | N116: 0 | O116: 0 | P116: 0 | Q116: 0 | S116: 0
A117: 1960 | B117: Miscellaneous Equipment | C117: 35809 | D117: 35809 | E117: 0 | F117: 147431.13 | G117: 0 | H117: 147431.13 | I117: 0 | J117: 2.203795903 | K117: 0.453762528 | L117: 5 | M117: 0.2 | N117: 0 | O117: 29486.226 | P117: 0 | Q117: 29486.226 | S117: -29486.226
A118: 1970 | B118: Load Management Controls Customer Premises | C118: 70871 | D118: 70871 | E118: 0 | F118: 0 | G118: 0 | H118: 0 | I118: 0 | J118: 3 | K118: 0.3333333333 | L118: 8 | M118: 0.125 | N118: 0 | O118: 0 | P118: 0 | Q118: 0 | S118: 0
A119: 1975 | B119: Load Management Controls Utility Premises | C119: 279356 | D119: 279356 | E119: 0 | F119: 1344540.834 | G119: 0 | H119: 1344540.834 | I119: 0 | J119: 12 | K119: 0.08333333333 | L119: 8 | M119: 0.125 | N119: 0 | O119: 168067.6043 | P119: 0 | Q119: 168067.6043 | R119: 164721 | S119: -3346.604264
A120: 1980 | B120: System Supervisor Equipment | C120: 0 | D120: 0 | E120: 0 | F120: 0 | G120: 0 | H120: 0 | I120: 0 | J120: 0 | K120: 0 | L120: 0 | M120: 0 | N120: 0 | O120: 0 | P120: 0 | Q120: 0 | S120: 0
A121: 1985 | B121: Miscellaneous Fixed Assets | C121: 0 | D121: 0 | E121: 0 | F121: 0 | G121: 0 | H121: 0 | I121: 0 | J121: 0 | K121: 0 | L121: 0 | M121: 0 | N121: 0 | O121: 0 | P121: 0 | Q121: 0 | S121: 0
A122: 1990 | B122: Other Tangible Property | C122: 0 | D122: 0 | E122: 0 | F122: 0 | G122: 0 | H122: 0 | I122: 0 | J122: 0 | K122: 0 | L122: 0 | M122: 0 | N122: 0 | O122: 0 | P122: 0 | Q122: 0 | S122: 0
A123: 1995 | B123: Contributions & Grants | C123: -22390983 | D123: -6274229.99 | E123: -16116753.01 | F123: -20828337 | G123: -61000 | H123: -20767337 | I123: -1958057 | J123: 40.1333701 | K123: 0.02491692069 | L123: 45 | M123: 0.02222222222 | N123: -401579.8566 | O123: -461496.3778 | P123: -21756.18889 | Q123: -884832.4232 | R123: -1135027 | S123: -250194.5768
A124: 2005 | B124: Property Under Finance Lease | E124: 0 | H124: 0 | K124: 0 | M124: 0 | N124: 0 | O124: 0 | P124: 0 | Q124: 0 | S124: 0
B125: Total | C125: =SUM(C85:C124) -> 61933453 | D125: =SUM(D85:D124) -> 15720052.17 | E125: =SUM(E85:E124) -> 46213400.83 | F125: 97721858.8 | G125: 2524790 | H125: 95197068.8 | I125: 16592653 | N125: =SUM(N85:N124) -> 1792391.177 | O125: =SUM(O85:O124) -> 3617808.6 | P125: 451657.0891 | Q125: 5861856.866 | R125: 5942350 | S125: 80493.13403
A129: 2019 | C129: Book Values | J129: Service Lives | N129: Depreciation Expense | Y129: 2018
A130: Account | B130: Description | C130: Opening Net Book Value of Existing Assets as at Date of Policy Change (Jan. 1) 1 | D130: Less Fully Depreciated 7 | E130: Net Amount of Existing Assets Before Policy Change to be Depreciated | F130: Opening Gross Book Value of Assets Acquired After Policy Change 2 | G130: Less Fully Depreciated 8 | H130: Net Amount of Assets Acquired After Policy Change to be Depreciated | I130: Current Year Additions | J130: Average Remaining Life of Assets Existing Before Policy Change 3 | K130: Depreciation Rate Assets Acquired After Policy Change | L130: Life of Assets Acquired After Policy Change 4 | M130: Depreciation Rate on New Additions | N130: Depreciation Expense on Assets Existing Before Policy Change | O130: Depreciation Expense on Assets Acquired After Policy Change | P130: Depreciation Expense on Current Year Additions 5 | Q130: Total Current Year Depreciation Expense | R130: Depreciation Expense per Appendix 2-BA Fixed Assets, Column J | S130: Variance 6
C131: a | D131: b | E131: c = a-b | F131: d | G131: e | H131: f = d- e | I131: g | J131: h | K131: i = 1/h | L131: j | M131: k = 1/j | N131: l = c/h | O131: m = f/j | P131: n = g*0.5/j | Q131: o = l+m+n | R131: p | S131: q = p-o
A132: 1609 | B132: Capital Contributions Paid | C132: 0 | D132: 0 | E132: =C132-D132 -> 0 | G132: 0 | H132: =F132-G132 -> 0 | I132: 4136705 | J132: 0 | K132: =IF(J132=0,0,1/J132) -> 0 | L132: 50 | M132: =IF(L132=0,0,1/L132) -> 0.02 | N132: =IF(J132=0,0,+E132/J132) -> 0 | O132: =IF(L132=0,0,+H132/L132) -> 0 | P132: =IF(L132=0,0,+(I132*0.5)/L132) -> 41367.05 | Q132: =IF(ISERROR(+N132+O132+P132), 0, +N132+O132+P132) -> 41367.05 | R132: 82734 | S132: =IF(ISERROR(+R132-Q132), 0, +R132-Q132) -> 41366.95
A133: 1611 | B133: Computer Software (Formally known as Account 1925) | C133: 349811 | D133: 349811 | E133: =C133-D133 -> 0 | F133: 1667331 | G133: 912723 | H133: =F133-G133 -> 754608 | I133: 175658 | J133: 2.690731027 | K133: =IF(J133=0,0,1/J133) -> 0.3716462144 | L133: 3 | M133: =IF(L133=0,0,1/L133) -> 0.3333333333 | N133: =IF(J133=0,0,+E133/J133) -> 0 | O133: =IF(L133=0,0,+H133/L133) -> 251536 | P133: =IF(L133=0,0,+(I133*0.5)/L133) -> 29276.33333 | Q133: =IF(ISERROR(+N133+O133+P133), 0, +N133+O133+P133) -> 280812.3333 | R133: 200199 | S133: =IF(ISERROR(+R133-Q133), 0, +R133-Q133) -> -80613.33333
A134: 1612 | B134: Land Rights (Formally known as Account 1906) | C134: 0 | D134: 0 | E134: 0 | F134: 0 | G134: 0 | H134: 0 | I134: 0 | J134: 0 | K134: 0 | L134: 0 | M134: 0 | N134: 0 | O134: =IF(L134=0,0,+H134/L134) -> 0 | P134: 0 | Q134: 0 | S134: 0
A135: 1805 | B135: Land | C135: 293875 | D135: 0 | E135: 293875 | F135: 0 | G135: 0 | H135: 0 | I135: 0 | J135: 0 | K135: 0 | L135: 0 | M135: 0 | N135: 0 | O135: 0 | P135: 0 | Q135: 0 | S135: 0
A136: 1808 | B136: Buildings | C136: 349774 | D136: 0 | E136: 349774 | F136: 4604838 | G136: 0 | H136: 4604838 | I136: 396754 | J136: 24.57006109 | K136: 0.0406999395 | L136: 62 | M136: 0.01612903226 | N136: 14235.78064 | O136: 74271.58065 | P136: 3199.629032 | Q136: 91706.99032 | R136: 69905 | S136: -21801.99032
A137: 1810 | B137: Leasehold Improvements | C137: 0 | D137: 0 | E137: 0 | F137: 0 | G137: 0 | H137: 0 | I137: 0 | J137: 0 | K137: 0 | L137: 0 | M137: 0 | N137: 0 | O137: 0 | P137: 0 | Q137: 0 | S137: 0
A138: 1815 | B138: Transformer Station Equipment >50 kV | C138: 0 | D138: 0 | E138: 0 | F138: 0 | G138: 0 | H138: 0 | I138: 0 | J138: 0 | K138: 0 | L138: 0 | M138: 0 | N138: 0 | O138: 0 | P138: 0 | Q138: 0 | S138: 0
A139: 1820 | B139: Distribution Station Equipment <50 kV | C139: 7715028 | D139: 2053482.333 | E139: 5661545.667 | F139: 13891002 | G139: 0 | H139: 13891002 | I139: -52040 | J139: 30.26580387 | K139: 0.03304058945 | L139: 42.5 | M139: 0.02352941176 | N139: 187060.806 | O139: 326847.1059 | P139: -612.2352941 | Q139: 513295.6766 | R139: 572635 | S139: 59339.32339
A140: 1825 | B140: Storage Battery Equipment | C140: 0 | D140: 0 | E140: 0 | F140: 0 | G140: 0 | H140: 0 | I140: 0 | J140: 0 | K140: 0 | L140: 0 | M140: 0 | N140: 0 | O140: 0 | P140: 0 | Q140: 0 | S140: 0
A141: 1830 | B141: Poles, Towers & Fixtures | C141: 15393255 | D141: 3578691.155 | E141: 11814563.84 | F141: 18527054 | G141: 0 | H141: 18527054 | I141: 7579626 | J141: 39.83975066 | K141: 0.0251005587 | L141: 45 | M141: 0.02222222222 | N141: 296552.1533 | O141: 411712.3111 | P141: 84218.06667 | Q141: 792482.531 | R141: 866269 | S141: 73786.46897
A142: 1835 | B142: Overhead Conductors & Devices | C142: 8783977 | D142: 2918553.783 | E142: 5865423.217 | F142: 8233462 | G142: 0 | H142: 8233462 | I142: 2494435 | J142: 43.23367819 | K142: 0.02313011619 | L142: 45 | M142: 0.02222222222 | N142: 135667.9205 | O142: 182965.8222 | P142: 27715.94444 | Q142: 346349.6872 | R142: 324491 | S142: -21858.68718
A143: 1840 | B143: Underground Conduit | C143: 0 | D143: 0 | E143: 0 | F143: 0 | G143: 0 | H143: 0 | I143: 0 | J143: 0 | K143: 0 | L143: 0 | M143: 0 | N143: 0 | O143: 0 | P143: 0 | Q143: 0 | S143: 0
A144: 1845 | B144: Underground Conductors & Devices | C144: 21576736 | D144: 4522315.19 | E144: 17054420.81 | F144: 17935273 | G144: 0 | H144: 17935273 | I144: 8146716 | J144: 32.53821353 | K144: 0.03073309477 | L144: 40 | M144: 0.025 | N144: 524135.1309 | O144: 448381.825 | P144: 101833.95 | Q144: 1074350.906 | R144: 1389602 | S144: 315251.0941
A145: 1850 | B145: Line Transformers | C145: 19978411 | D145: 1141888 | E145: 18836523 | F145: 13150572 | G145: 0 | H145: 13150572 | I145: 4594038 | J145: 31.10279667 | K145: 0.03215144961 | L145: 40 | M145: 0.025 | N145: 605621.5201 | O145: 328764.3 | P145: 57425.475 | Q145: 991811.2951 | R145: 1152831 | S145: 161019.7049
A146: 1855 | B146: Services (Overhead & Underground) | C146: 0 | D146: 0 | E146: 0 | F146: 0 | G146: 0 | H146: 0 | I146: 0 | J146: 0 | K146: 0 | L146: 0 | M146: 0 | N146: 0 | O146: 0 | P146: 0 | Q146: 0 | S146: 0
A147: 1860 | B147: Meters | C147: 164287 | D147: 3090.49 | E147: 161196.51 | F147: 1298373 | G147: 0 | H147: 1298373 | I147: 196723 | J147: 20.39785371 | K147: 0.04902476575 | L147: 30 | M147: 0.03333333333 | N147: 7902.621142 | O147: 43279.1 | P147: 3278.716667 | Q147: 54460.43781 | R147: 1003435 | S147: 948974.5622
A148: 1860 | B148: Meters (Smart Meters) | C148: 6971136 | D148: 0 | E148: =C148-D148 -> 6971136 | F148: 2431588 | G148: 0 | H148: =F148-G148 -> 2431588 | I148: 875000 | J148: 9.76699301 | K148: =IF(J148=0,0,1/J148) -> 0.1023856574 | L148: 10 | M148: =IF(L148=0,0,1/L148) -> 0.1 | N148: =IF(J148=0,0,+E148/J148) -> 713744.3421 | O148: =IF(L148=0,0,+H148/L148) -> 243158.8 | P148: =IF(L148=0,0,+(I148*0.5)/L148) -> 43750 | Q148: =IF(ISERROR(+N148+O148+P148), 0, +N148+O148+P148) -> 1000653.142 | S148: =IF(ISERROR(+R148-Q148), 0, +R148-Q148) -> -1000653.142
A149: 1905 | B149: Land | C149: 0 | D149: 0 | E149: 0 | F149: 0 | G149: 0 | H149: 0 | I149: 0 | J149: 0 | K149: 0 | L149: 0 | M149: 0 | N149: 0 | O149: 0 | P149: 0 | Q149: 0 | S149: 0
A150: 1908 | B150: Buildings & Fixtures | C150: 0 | D150: 0 | E150: 0 | F150: 0 | G150: 0 | H150: 0 | I150: 0 | J150: 0 | K150: 0 | L150: 75 | M150: 0.01333333333 | N150: 0 | O150: 0 | P150: 0 | Q150: 0 | S150: 0
A151: 1910 | B151: Leasehold Improvements | C151: 483613 | D151: 483613 | E151: 0 | F151: 409619 | G151: 150000 | H151: 259619 | I151: 0 | J151: 3.211023261 | K151: 0.3114272052 | L151: 3 | M151: 0.3333333333 | N151: 0 | O151: 86539.66667 | P151: 0 | Q151: 86539.66667 | R151: 37631 | S151: -48908.66667
A152: 1915 | B152: Office Furniture & Equipment (10 years) | C152: 0 | D152: 0 | E152: 0 | F152: 24842.79 | G152: 0 | H152: 24842.79 | J152: 0 | K152: 0 | L152: 10 | M152: 0.1 | N152: 0 | O152: 2484.279 | P152: 0 | Q152: 2484.279 | S152: -2484.279
A153: 1915 | B153: Office Furniture & Equipment (5 years) | C153: 40991 | D153: 40990.71 | E153: 0.2899999999 | F153: 74509 | G153: 0 | H153: 74509 | J153: 4.875028276 | K153: 0.2051270154 | L153: 5 | M153: 0.2 | N153: 0.05948683444 | O153: 14901.8 | P153: 0 | Q153: 14901.85949 | R153: 12057 | S153: -2844.859487
A154: 1920 | B154: Computer Equipment - Hardware | C154: 46413 | D154: 46413.12 | E154: -0.1200000015 | F154: 935892 | G154: 55100 | H154: 880792 | I154: 17506 | J154: 2.662754748 | K154: 0.3755509218 | L154: 4 | M154: 0.25 | N154: -0.04506611118 | O154: 220198 | P154: 2188.25 | Q154: 222386.2049 | R154: 192826 | S154: -29560.20493
A155: 1920 | B155: Computer Equip.-Hardware(Post Mar. 22/04) | D155: 0 | E155: 0 | F155: 129776 | G155: 51111 | H155: 78665 | I155: 148154 | J155: 0 | K155: 0 | L155: 4 | M155: 0.25 | N155: 0 | O155: 19666.25 | P155: 18519.25 | Q155: 38185.5 | S155: -38185.5
A156: 1920 | B156: Computer Equip.-Hardware(Post Mar. 19/07) | C156: 0 | D156: 0 | E156: 0 | F156: 0 | G156: 0 | H156: 0 | J156: 0 | K156: 0 | L156: 4 | M156: 0.25 | N156: 0 | O156: 0 | P156: 0 | Q156: 0 | S156: 0
A157: 1930 | B157: Transportation Equipment | C157: 932682 | D157: 932532.67 | E157: 149.33 | F157: 2797290 | G157: 0 | H157: 2797290 | I157: 340672.28 | J157: 9.239478096 | K157: 0.1082312215 | L157: 8 | M157: 0.125 | N157: 16.1621683 | O157: 349661.25 | P157: 21292.0175 | Q157: 370969.4297 | R157: 382527 | S157: 11557.57033
A158: 1935 | B158: Stores Equipment | C158: 288 | D158: 0 | E158: 288 | F158: 0 | G158: 0 | H158: 0 | I158: 6250.83 | J158: 1.000173647 | K158: 0.9998263829 | L158: 7 | M158: 0.1428571429 | N158: 287.9499983 | O158: 0 | P158: 446.4878571 | Q158: 734.4378554 | R158: 446 | S158: -288.4378554
A159: 1940 | B159: Tools, Shop & Garage Equipment | C159: 686983 | D159: 450024 | E159: 236959 | F159: 550968 | G159: 169555 | H159: 381413 | I159: 105949 | J159: 3.25573901 | K159: 0.3071499273 | L159: 7 | M159: 0.1428571429 | N159: 72781.93962 | O159: 54487.57143 | P159: 7567.785714 | Q159: 134837.2968 | R159: 155002 | S159: 20164.70324
A160: 1945 | B160: Measurement & Testing Equipment | C160: 155953 | D160: 0 | E160: 155953 | F160: 730391 | G160: 0 | H160: 730391 | I160: 158594 | J160: 12.56660677 | K160: 0.07957597613 | L160: 7 | M160: 0.1428571429 | N160: 12410.11221 | O160: 104341.5714 | P160: 11328.14286 | Q160: 128079.8265 | R160: 133621 | S160: 5541.173509
A161: 1950 | B161: Power Operated Equipment | C161: 0 | D161: 0 | E161: 0 | F161: 0 | G161: 0 | H161: 0 | I161: 0 | J161: 0 | K161: 0 | L161: 10 | M161: 0.1 | N161: 0 | O161: 0 | P161: 0 | Q161: 0 | S161: 0
A162: 1955 | B162: Communications Equipment | C162: 15187 | D162: 15187 | E162: 0 | F162: 344701.94 | G162: 0 | H162: 344701.94 | I162: 0 | J162: 2.832941413 | K162: 0.3529900038 | L162: 10 | M162: 0.1 | N162: 0 | O162: 34470.194 | P162: 0 | Q162: 34470.194 | R162: 35170 | S162: 699.806
A163: 1955 | B163: Communication Equipment (Smart Meters) | C163: 0 | D163: 0 | E163: 0 | F163: 0 | G163: 0 | H163: 0 | I163: 0 | J163: 0 | K163: 0 | L163: 0 | M163: 0 | N163: 0 | O163: 0 | P163: 0 | Q163: 0 | S163: 0
A164: 1960 | B164: Miscellaneous Equipment | C164: 35809 | D164: 35809 | E164: 0 | F164: 92117.13 | G164: 0 | H164: 92117.13 | I164: 55314 | J164: 2.203795903 | K164: 0.453762528 | L164: 5 | M164: 0.2 | N164: 0 | O164: 18423.426 | P164: 5531.4 | Q164: 23954.826 | R164: 40977 | S164: 17022.174
A165: 1970 | B165: Load Management Controls Customer Premises | C165: 70871 | D165: 70871 | E165: 0 | F165: 0 | G165: 0 | H165: 0 | I165: 0 | J165: 3 | K165: 0.3333333333 | L165: 8 | M165: 0.125 | N165: 0 | O165: 0 | P165: 0 | Q165: 0 | S165: 0
A166: 1975 | B166: Load Management Controls Utility Premises | C166: 279356 | D166: 0 | E166: 279356 | F166: 1285176.834 | G166: 0 | H166: 1285176.834 | I166: 59364 | J166: 12 | K166: 0.08333333333 | L166: 8 | M166: 0.125 | N166: 23279.66667 | O166: 160647.1043 | P166: 3710.25 | Q166: 187637.0209 | R166: 183189 | S166: -4448.02093
A167: 1980 | B167: System Supervisor Equipment | C167: 0 | D167: 0 | E167: 0 | F167: 0 | G167: 0 | H167: 0 | I167: 0 | J167: 0 | K167: 0 | L167: 0 | M167: 0 | N167: 0 | O167: 0 | P167: 0 | Q167: 0 | S167: 0
A168: 1985 | B168: Miscellaneous Fixed Assets | C168: 0 | D168: 0 | E168: 0 | F168: 0 | G168: 0 | H168: 0 | I168: 0 | J168: 0 | K168: 0 | L168: 0 | M168: 0 | N168: 0 | O168: 0 | P168: 0 | Q168: 0 | S168: 0
A169: 1990 | B169: Other Tangible Property | C169: 0 | D169: 0 | E169: 0 | F169: 0 | G169: 0 | H169: 0 | I169: 0 | J169: 0 | K169: 0 | L169: 0 | M169: 0 | N169: 0 | O169: 0 | P169: 0 | Q169: 0 | S169: 0
A170: 1995 | B170: Contributions & Grants | C170: -22390983 | D170: -1652785 | E170: -20738198 | F170: -14629418 | G170: -61000 | H170: -14568418 | I170: -6198919 | J170: 40.1333701 | K170: 0.02491692069 | L170: 45 | M170: 0.02222222222 | N170: -516732.0349 | O170: -323742.6222 | P170: -68876.87778 | Q170: -909351.5349 | R170: -1228234 | S170: -318882.4651
A171: 2005 | B171: Property Under Finance Lease | E171: 0 | H171: 0 | K171: 0 | M171: 0 | N171: 0 | O171: 0 | P171: 0 | Q171: 0 | S171: 0
B172: Total | C172: =SUM(C132:C171) -> 61933453 | D172: =SUM(D132:D171) -> 14990487.45 | E172: =SUM(E132:E171) -> 46942965.55 | F172: 74485358.69 | G172: 1277489 | H172: 73207869.69 | I172: 23236500.11 | N172: =SUM(N132:N171) -> 2076964.085 | O172: =SUM(O132:O171) -> 3052995.335 | P172: 393159.636 | Q172: 5523119.056 | R172: 5607313 | S172: 84193.94372
A176: 2018 | C176: Book Values | J176: Service Lives | N176: Depreciation Expense | Y176: 2018
A177: Account | B177: Description | C177: Opening Net Book Value of Existing Assets as at Date of Policy Change (Jan. 1) 1 | D177: Less Fully Depreciated 7 | E177: Net Amount of Existing Assets Before Policy Change to be Depreciated | F177: Opening Gross Book Value of Assets Acquired After Policy Change 2 | G177: Less Fully Depreciated 8 | H177: Net Amount of Assets Acquired After Policy Change to be Depreciated | I177: Current Year Additions | J177: Average Remaining Life of Assets Existing Before Policy Change 3 | K177: Depreciation Rate Assets Acquired After Policy Change | L177: Life of Assets Acquired After Policy Change 4 | M177: Depreciation Rate on New Additions | N177: Depreciation Expense on Assets Existing Before Policy Change | O177: Depreciation Expense on Assets Acquired After Policy Change | P177: Depreciation Expense on Current Year Additions 5 | Q177: Total Current Year Depreciation Expense | R177: Depreciation Expense per Appendix 2-BA Fixed Assets, Column J | S177: Variance 6
C178: a | D178: b | E178: c = a-b | F178: d | G178: e | H178: f = d- e | I178: g | J178: h | K178: i = 1/h | L178: j | M178: k = 1/j | N178: l = c/h | O178: m = f/j | P178: n = g*0.5/j | Q178: o = l+m+n | R178: p | S178: q = p-o
A179: 1609 | B179: Capital Contributions Paid | E179: =C179-D179 -> 0 | F179: 0 | G179: 0 | H179: =F179-G179 -> 0 | I179: 0 | J179: 0 | K179: =IF(J179=0,0,1/J179) -> 0 | L179: 50 | M179: =IF(L179=0,0,1/L179) -> 0.02 | N179: =IF(J179=0,0,+E179/J179) -> 0 | O179: =IF(L179=0,0,+H179/L179) -> 0 | P179: =IF(L179=0,0,+(I179*0.5)/L179) -> 0 | Q179: =IF(ISERROR(+N179+O179+P179), 0, +N179+O179+P179) -> 0 | S179: =IF(ISERROR(+R179-Q179), 0, +R179-Q179) -> 0
A180: 1611 | B180: Computer Software (Formally known as Account 1925) | C180: 349811 | D180: 349811 | E180: =C180-D180 -> 0 | F180: 1317881 | G180: 912723 | H180: =F180-G180 -> 405158 | I180: 349450 | J180: 2.690731027 | K180: =IF(J180=0,0,1/J180) -> 0.3716462144 | L180: 3 | M180: =IF(L180=0,0,1/L180) -> 0.3333333333 | N180: =IF(J180=0,0,+E180/J180) -> 0 | O180: =IF(L180=0,0,+H180/L180) -> 135052.6667 | P180: =IF(L180=0,0,+(I180*0.5)/L180) -> 58241.66667 | Q180: =IF(ISERROR(+N180+O180+P180), 0, +N180+O180+P180) -> 193294.3333 | R180: 210550 | S180: =IF(ISERROR(+R180-Q180), 0, +R180-Q180) -> 17255.66667
A181: 1612 | B181: Land Rights (Formally known as Account 1906) | C181: 0 | D181: 0 | E181: 0 | F181: 0 | G181: 0 | H181: 0 | I181: 0 | J181: 0 | K181: 0 | L181: 0 | M181: 0 | N181: 0 | O181: =IF(L181=0,0,+H181/L181) -> 0 | P181: 0 | Q181: 0 | S181: 0
A182: 1805 | B182: Land | C182: 293875 | D182: 0 | E182: 293875 | F182: 0 | G182: 0 | H182: 0 | I182: 0 | J182: 0 | K182: 0 | L182: 0 | M182: 0 | N182: 0 | O182: 0 | P182: 0 | Q182: 0 | S182: 0
A183: 1808 | B183: Buildings | C183: 349774 | D183: 0 | E183: 349774 | F183: 47648 | G183: 0 | H183: 47648 | I183: 4557190 | J183: 24.57006109 | K183: 0.0406999395 | L183: 62 | M183: 0.01612903226 | N183: 14235.78064 | O183: 768.516129 | P183: 36751.53226 | Q183: 51755.82903 | R183: 54043 | S183: 2287.170974
A184: 1810 | B184: Leasehold Improvements | C184: 0 | D184: 0 | E184: 0 | F184: 0 | G184: 0 | H184: 0 | I184: 0 | J184: 0 | K184: 0 | L184: 0 | M184: 0 | N184: 0 | O184: 0 | P184: 0 | Q184: 0 | S184: 0
A185: 1815 | B185: Transformer Station Equipment >50 kV | C185: 0 | D185: 0 | E185: 0 | F185: 0 | G185: 0 | H185: 0 | I185: 0 | J185: 0 | K185: 0 | L185: 0 | M185: 0 | N185: 0 | O185: 0 | P185: 0 | Q185: 0 | S185: 0
A186: 1820 | B186: Distribution Station Equipment <50 kV | C186: 7715028 | D186: 1944579.693 | E186: 5770448.307 | F186: 10328976 | G186: 0 | H186: 10328976 | I186: 3562026 | J186: 30.26580387 | K186: 0.03304058945 | L186: 42.5 | M186: 0.02352941176 | N186: 190659.0134 | O186: 243034.7294 | P186: 41906.18824 | Q186: 475599.9311 | R186: 558702 | S186: 83102.06892
A187: 1825 | B187: Storage Battery Equipment | C187: 0 | D187: 0 | E187: 0 | F187: 0 | G187: 0 | H187: 0 | I187: 0 | J187: 0 | K187: 0 | L187: 0 | M187: 0 | N187: 0 | O187: 0 | P187: 0 | Q187: 0 | S187: 0
A188: 1830 | B188: Poles, Towers & Fixtures | C188: 15393255 | D188: 3366779.56 | E188: 12026475.44 | F188: 18290600 | G188: 0 | H188: 18290600 | I188: 236454 | J188: 39.83975066 | K188: 0.0251005587 | L188: 45 | M188: 0.02222222222 | N188: 301871.2527 | O188: 406457.7778 | P188: 2627.266667 | Q188: 710956.2971 | R188: 806817 | S188: 95860.70286
A189: 1835 | B189: Overhead Conductors & Devices | C189: 8783977 | D189: 2667020.093 | E189: 6116956.907 | F189: 7463638 | G189: 0 | H189: 7463638 | I189: 769824 | J189: 43.23367819 | K189: 0.02313011619 | L189: 45 | M189: 0.02222222222 | N189: 141485.924 | O189: 165858.6222 | P189: 8553.6 | Q189: 315898.1462 | R189: 351046 | S189: 35147.85379
A190: 1840 | B190: Underground Conduit | C190: 0 | D190: 0 | E190: 0 | F190: 0 | G190: 0 | H190: 0 | I190: 0 | J190: 0 | K190: 0 | L190: 0 | M190: 0 | N190: 0 | O190: 0 | P190: 0 | Q190: 0 | S190: 0
A191: 1845 | B191: Underground Conductors & Devices | C191: 21576736 | D191: 4321880.728 | E191: 17254855.27 | F191: 14147144 | G191: 0 | H191: 14147144 | I191: 3788129 | J191: 32.53821353 | K191: 0.03073309477 | L191: 40 | M191: 0.025 | N191: 530295.1022 | O191: 353678.6 | P191: 47351.6125 | Q191: 931325.3147 | R191: 1310794 | S191: 379468.6853
A192: 1850 | B192: Line Transformers | C192: 19978411 | D192: 1141888 | E192: 18836523 | F192: 11252969 | G192: 0 | H192: 11252969 | I192: 1897603 | J192: 31.10279667 | K192: 0.03215144961 | L192: 40 | M192: 0.025 | N192: 605621.5201 | O192: 281324.225 | P192: 23720.0375 | Q192: 910665.7826 | R192: 1014368 | S192: 103702.2174
A193: 1855 | B193: Services (Overhead & Underground) | C193: 0 | D193: 0 | E193: 0 | F193: 0 | G193: 0 | H193: 0 | I193: 0 | J193: 0 | K193: 0 | L193: 0 | M193: 0 | N193: 0 | O193: 0 | P193: 0 | Q193: 0 | S193: 0
A194: 1860 | B194: Meters | C194: 164287 | D194: 3090.49 | E194: 161196.51 | F194: 1208142 | G194: 0 | H194: 1208142 | I194: 90231 | J194: 20.39785371 | K194: 0.04902476575 | L194: 30 | M194: 0.03333333333 | N194: 7902.621142 | O194: 40271.4 | P194: 1503.85 | Q194: 49677.87114 | R194: 958291 | S194: 908613.1289
A195: 1860 | B195: Meters (Smart Meters) | C195: 6971136 | D195: 0 | E195: 6971136 | F195: 1856588 | G195: 0 | H195: 1856588 | I195: 575000 | J195: 9.76699301 | K195: 0.1023856574 | L195: 10 | M195: 0.1 | N195: 713744.3421 | O195: 185658.8 | P195: 28750 | Q195: 928153.1421 | S195: -928153.1421
A196: 1905 | B196: Land | C196: 0 | D196: 0 | E196: 0 | F196: 0 | G196: 0 | H196: 0 | I196: 0 | J196: 0 | K196: 0 | L196: 0 | M196: 0 | N196: 0 | O196: 0 | P196: 0 | Q196: 0 | S196: 0
A197: 1908 | B197: Buildings & Fixtures | C197: 0 | D197: 0 | E197: 0 | F197: 0 | G197: 0 | H197: 0 | I197: 0 | J197: 0 | K197: 0 | L197: 75 | M197: 0.01333333333 | N197: 0 | O197: 0 | P197: 0 | Q197: 0 | S197: 0
A198: 1910 | B198: Leasehold Improvements | C198: 483613 | D198: 483613 | E198: =C198-D198 -> 0 | F198: 409619 | G198: 0 | H198: =F198-G198 -> 409619 | I198: 0 | J198: 3.211023261 | K198: =IF(J198=0,0,1/J198) -> 0.3114272052 | L198: 5 | M198: =IF(L198=0,0,1/L198) -> 0.2 | N198: =IF(J198=0,0,+E198/J198) -> 0 | O198: =IF(L198=0,0,+H198/L198) -> 81923.8 | P198: =IF(L198=0,0,+(I198*0.5)/L198) -> 0 | Q198: =IF(ISERROR(+N198+O198+P198), 0, +N198+O198+P198) -> 81923.8 | R198: 39812 | S198: =IF(ISERROR(+R198-Q198), 0, +R198-Q198) -> -42111.8
A199: 1915 | B199: Office Furniture & Equipment (10 years) | C199: 0 | D199: 0 | E199: 0 | F199: 0 | G199: 0 | H199: 0 | I199: 24842.79 | J199: 0 | K199: 0 | L199: 10 | M199: 0.1 | N199: 0 | O199: 0 | P199: 1242.1395 | Q199: 1242.1395 | S199: -1242.1395
A200: 1915 | B200: Office Furniture & Equipment (5 years) | C200: 40991 | D200: 40990.71 | E200: 0.2899999999 | F200: 74509 | G200: 0 | H200: 74509 | J200: 4.875028276 | K200: 0.2051270154 | L200: 5 | M200: 0.2 | N200: 0.05948683444 | O200: 14901.8 | P200: 0 | Q200: 14901.85949 | R200: 10375 | S200: -4526.859487
A201: 1920 | B201: Computer Equipment - Hardware | C201: 46413 | D201: 46413.12 | E201: -0.1200000015 | F201: 510665 | G201: 55100 | H201: 455565 | I201: 425227 | J201: 2.662754748 | K201: 0.3755509218 | L201: 4 | M201: 0.25 | N201: -0.04506611118 | O201: 113891.25 | P201: 53153.375 | Q201: 167044.5799 | R201: 160864 | S201: -6180.579934
A202: 1920 | B202: Computer Equip.-Hardware(Post Mar. 22/04) | D202: 0 | E202: 0 | F202: 129776 | G202: 51111 | H202: 78665 | J202: 0 | K202: 0 | L202: 4 | M202: 0.25 | N202: 0 | O202: 19666.25 | P202: 0 | Q202: 19666.25 | S202: -19666.25
A203: 1920 | B203: Computer Equip.-Hardware(Post Mar. 19/07) | C203: 0 | D203: 0 | E203: 0 | F203: 0 | G203: 0 | H203: 0 | J203: 0 | K203: 0 | L203: 4 | M203: 0.25 | N203: 0 | O203: 0 | P203: 0 | Q203: 0 | S203: 0
A204: 1930 | B204: Transportation Equipment | C204: 932682 | D204: 698125.9 | E204: 234556.1 | F204: 2428896 | G204: 0 | H204: 2428896 | I204: 368394 | J204: 9.239478096 | K204: 0.1082312215 | L204: 8 | M204: 0.125 | N204: 25386.29321 | O204: 303612 | P204: 23024.625 | Q204: 352022.9182 | R204: 349996 | S204: -2026.918206
A205: 1935 | B205: Stores Equipment | C205: 288 | D205: 0 | E205: 288 | F205: 0 | G205: 0 | H205: 0 | I205: 0 | J205: 1.000173647 | K205: 0.9998263829 | L205: 7 | M205: 0.1428571429 | N205: 287.9499983 | O205: 0 | P205: 0 | Q205: 287.9499983 | S205: -287.9499983
A206: 1940 | B206: Tools, Shop & Garage Equipment | C206: 686983 | D206: 150024 | E206: 536959 | F206: 487182 | G206: 169555 | H206: 317627 | I206: 63786 | J206: 3.25573901 | K206: 0.3071499273 | L206: 7 | M206: 0.1428571429 | N206: 164926.9178 | O206: 45375.28571 | P206: 4556.142857 | Q206: 214858.3464 | R206: 86339 | S206: -128519.3464
A207: 1945 | B207: Measurement & Testing Equipment | C207: 155953 | D207: 0 | E207: 155953 | F207: 631471 | G207: 0 | H207: 631471 | I207: 98920 | J207: 12.56660677 | K207: 0.07957597613 | L207: 7 | M207: 0.1428571429 | N207: 12410.11221 | O207: 90210.14286 | P207: 7065.714286 | Q207: 109685.9693 | R207: 112433 | S207: 2747.030652
A208: 1950 | B208: Power Operated Equipment | C208: 0 | D208: 0 | E208: 0 | F208: 0 | G208: 0 | H208: 0 | I208: 0 | J208: 0 | K208: 0 | L208: 10 | M208: 0.1 | N208: 0 | O208: 0 | P208: 0 | Q208: 0 | S208: 0
A209: 1955 | B209: Communications Equipment | C209: 15187 | D209: 15187 | E209: 0 | F209: 327904 | G209: 0 | H209: 327904 | I209: 16797.94 | J209: 2.832941413 | K209: 0.3529900038 | L209: 10 | M209: 0.1 | N209: 0 | O209: 32790.4 | P209: 839.897 | Q209: 33630.297 | R209: 34330 | S209: 699.703
A210: 1955 | B210: Communication Equipment (Smart Meters) | C210: 0 | D210: 0 | E210: 0 | F210: 0 | G210: 0 | H210: 0 | J210: 0 | K210: 0 | L210: 0 | M210: 0 | N210: 0 | O210: 0 | P210: 0 | Q210: 0 | S210: 0
A211: 1960 | B211: Miscellaneous Equipment | C211: 35809 | D211: 35809 | E211: 0 | F211: 80733 | G211: 0 | H211: 80733 | I211: 11384.13 | J211: 2.203795903 | K211: 0.453762528 | L211: 5 | M211: 0.2 | N211: 0 | O211: 16146.6 | P211: 1138.413 | Q211: 17285.013 | R211: 8886 | S211: -8399.013
A212: 1970 | B212: Load Management Controls Customer Premises | C212: 70871 | D212: 70871 | E212: 0 | F212: 0 | G212: 0 | H212: 0 | I212: 0 | J212: 3 | K212: 0.3333333333 | L212: 8 | M212: 0.125 | N212: 0 | O212: 0 | P212: 0 | Q212: 0 | S212: 0
A213: 1975 | B213: Load Management Controls Utility Premises | C213: 279356 | D213: 0 | E213: 279356 | F213: 1254833.614 | G213: 0 | H213: 1254833.614 | I213: 30343.22 | J213: 12 | K213: 0.08333333333 | L213: 8 | M213: 0.125 | N213: 23279.66667 | O213: 156854.2018 | P213: 1896.45125 | Q213: 182030.3197 | R213: 155947 | S213: -26083.31968
A214: 1980 | B214: System Supervisor Equipment | C214: 0 | D214: 0 | E214: 0 | F214: 0 | G214: 0 | H214: 0 | I214: 0 | J214: 0 | K214: 0 | L214: 0 | M214: 0 | N214: 0 | O214: 0 | P214: 0 | Q214: 0 | S214: 0
A215: 1985 | B215: Miscellaneous Fixed Assets | C215: 0 | D215: 0 | E215: 0 | F215: 0 | G215: 0 | H215: 0 | I215: 0 | J215: 0 | K215: 0 | L215: 0 | M215: 0 | N215: 0 | O215: 0 | P215: 0 | Q215: 0 | S215: 0
A216: 1990 | B216: Other Tangible Property | C216: 0 | D216: 0 | E216: 0 | F216: 0 | G216: 0 | H216: 0 | I216: 0 | J216: 0 | K216: 0 | L216: 0 | M216: 0 | N216: 0 | O216: 0 | P216: 0 | Q216: 0 | S216: 0
A217: 1995 | B217: Contributions & Grants | C217: -22390983 | D217: -652785 | E217: -21738198 | F217: -10721170 | G217: -61000 | H217: -10660170 | I217: -3908248 | J217: 40.1333701 | K217: 0.02491692069 | L217: 45 | M217: 0.02222222222 | N217: -541648.9556 | O217: -236892.6667 | P217: -43424.97778 | Q217: -821966.6 | R217: -1242006 | S217: -420039.4
A218: 2005 | B218: Property Under Finance Lease | E218: 0 | H218: 0 | K218: 0 | L218: 0 | M218: 0 | N218: 0 | O218: 0 | P218: 0 | Q218: 0 | S218: 0
B219: Total | C219: =SUM(C179:C218) -> 61933453 | D219: =SUM(D179:D218) -> 14683298.29 | E219: =SUM(E179:E218) -> 47250154.71 | F219: 61528004.61 | G219: 1127489 | H219: 60400515.61 | I219: 12957354.08 | N219: =SUM(N179:N218) -> 2190457.555 | O219: =SUM(O179:O218) -> 2450584.401 | P219: 298897.5339 | Q219: 4939939.49 | R219: 4981587 | S219: 41647.51017
A223: 2017 | C223: Book Values | J223: Service Lives | N223: Depreciation Expense | Y223: 2018
A224: Account | B224: Description | C224: Opening Net Book Value of Existing Assets as at Date of Policy Change (Jan. 1) 1 | D224: Less Fully Depreciated 7 | E224: Net Amount of Existing Assets Before Policy Change to be Depreciated | F224: Opening Gross Book Value of Assets Acquired After Policy Change 2 | G224: Less Fully Depreciated 8 | H224: Net Amount of Assets Acquired After Policy Change to be Depreciated | I224: Current Year Additions | J224: Average Remaining Life of Assets Existing Before Policy Change 3 | K224: Depreciation Rate Assets Acquired After Policy Change | L224: Life of Assets Acquired After Policy Change 4 | M224: Depreciation Rate on New Additions | N224: Depreciation Expense on Assets Existing Before Policy Change | O224: Depreciation Expense on Assets Acquired After Policy Change | P224: Depreciation Expense on Current Year Additions 5 | Q224: Total Current Year Depreciation Expense | R224: Depreciation Expense per Appendix 2-BA Fixed Assets, Column J | S224: Variance 6
C225: a | D225: b | E225: c = a-b | F225: d | G225: e | H225: f = d- e | I225: g | J225: h | K225: i = 1/h | L225: j | M225: k = 1/j | N225: l = c/h | O225: m = f/j | P225: n = g*0.5/j | Q225: o = l+m+n | R225: p | S225: q = p-o
... 129 more rows

Sheet App.2-D_Overhead
G1: File Number: | H1: =EBNUMBER -> EB-2020-0048
G2: Exhibit:
G3: Tab:
G4: Schedule:
G5: Page:
G7: Date:
A9: Appendix 2-D
A10: Overhead Expense
A12: Applicants are to provide a breakdown of OM&A before capitalization in the below table. OM&A before capitalization may be broken down by cost center, program, drivers or another format best suited to focus on capitalized vs. uncapitalized OM&A.
A14: OM&A Before Capitalization
B15: =F15-4 -> 2017 | C15: =F15-3 -> 2018 | D15: =F15-2 -> 2019 | E15: =F15-1 -> 2020 | F15: =TestYear -> 2021
B16: Historical Year | C16: Historical Year | D16: Historical Year | E16: Bridge Year | F16: Test Year
A17: Corporate | B17: 2854.97603 | C17: 3008.72191 | D17: 3058.63407 | E17: 2809.657512 | F17: 3101.278208
A18: General & Administrative | B18: 2115.85799 | C18: 2350.75131 | D18: 2282.66539 | E18: 2543.12566 | F18: 2511.721038
A19: Customer Service | B19: 3135.15645 | C19: 2990.6769 | D19: 2586.31563 | E19: 3100.197282 | F19: 3161.666577
A20: Facilities | B20: 1292.30545 | C20: 1393.82276 | D20: 1476.296508 | E20: 1434.95517 | F20: 1465.548638
A21: Operations & Metering | B21: 7330.6768 | C21: 8209.02305 | D21: 7661.54575 | E21: 8233.948302 | F21: 8229.04925
A22: Property Taxes | B22: 135.66 | C22: 135.66 | D22: 135.66 | E22: 149.1142386 | F22: 152.0965234
A27: Total OM&A Before Capitalization (B) | B27: =SUM(B17:B26) -> 16864.63272 | C27: =SUM(C17:C26) -> 18088.65593 | D27: =SUM(D17:D26) -> 17201.11735 | E27: =SUM(E17:E26) -> 18270.99816 | F27: =SUM(F17:F26) -> 18621.36023
A29: Applicants are to provide a breakdown of capitalized OM&A in the below table. Capitalized OM&A may be broken down using the categories listed in the table below if possible. Otherwise, applicants are to provide its own break down of capitalized OM&A.
A31: Capitalized OM&A | G31: Directly | H31: Explanation for Change in Overhead Capitalized
B32: =F32-4 -> 2017 | C32: =F32-3 -> 2018 | D32: =F32-2 -> 2019 | E32: =F32-1 -> 2020 | F32: =TestYear -> 2021 | G32: Attributable?
B33: Historical Year | C33: Historical Year | D33: Historical Year | E33: Bridge Year | F33: Test Year | G33: (Yes/No)
A34: employee benefits | B34: 2997.199706 | C34: 3428.712845 | D34: 3287.654181 | E34: 3353.407265 | F34: 3420.47541 | G34: Yes | H34: directly attributable to bringing the asset to the location and condition necessary for it to be capable of operating in the manner intended by management
A35: costs of site preparation
A36: initial delivery and handling costs | B36: 198.0222588 | C36: 226.5319395 | D36: 217.2123218 | E36: 221.5565683 | F36: 225.9876996 | G36: Yes
A37: costs of testing whether the asset is functioning properly
A38: professional fees
A39: vehicle and related costs | B39: 596.6202449 | C39: 682.5169151 | D39: 654.437887 | E39: 667.5266448 | F39: 680.8771777 | G39: Yes
A40: costs of opening a new facility
A41: costs of introducing a new product or service (including costs of advertising and promotional activities)
A42: costs of conducting business in a new location or with a new class of customer (including costs of staff training)
A43: administration and other general overhead costs
A45: Insert description of additional item(s) and new rows if needed
A47: Total Capitalized OM&A (A) | B47: =SUM(B34:B46) -> 3791.84221 | C47: =SUM(C34:C46) -> 4337.7617 | D47: =SUM(D34:D46) -> 4159.30439 | E47: =SUM(E34:E46) -> 4242.490478 | F47: =SUM(F34:F46) -> 4327.340287
A49: % of Capitalized OM&A (=A/B) | B49: =IF(ISERROR(B47/B27),"0%",B47/B27) -> 0.2248398926 | C49: =IF(ISERROR(C47/C27),"0%",C47/C27) -> 0.2398056393 | D49: =IF(ISERROR(D47/D27),"0%",D47/D27) -> 0.2418043146 | E49: =IF(ISERROR(E47/E27),"0%",E47/E27) -> 0.2321980682 | F49: =IF(ISERROR(F47/F27),"0%",F47/F27) -> 0.2323858318

Sheet App.2-EA_Account 1575 (2015) (hidden)
H1: File Number: | I1: =EBNUMBER -> EB-2020-0048
H2: Exhibit:
H3: Tab:
H4: Schedule:
H5: Page:
H7: Date:
A9: Appendix 2-EA
A10: Account 1575 - IFRS-CGAAP Transitional PP&E Amounts
A11: 2015 Adopters of IFRS for Financial Reporting Purposes
A13: For applicants that adopted IFRS on January 1, 2015 for financial reporting purposes
B17: 2014 | C17: =TestYear-3 -> 2018 | D17: =TestYear-2 -> 2019 | E17: =CONCATENATE(TestYear-1," Bridge Year") -> 2020 Bridge Year | F17: =CONCATENATE(TestYear," Rebasing Year") -> 2021 Rebasing Year
A18: Reporting Basis | B18: CGAAP | C18: CGAAP | D18: CGAAP | E18: MIFRS | F18: MIFRS
B19: Actual | C19: Actual | D19: Actual | E19: Forecast | F19: Forecast
D20: $ | E20: $
A21: PP&E Values under CGAAP
A22: Opening net PP&E - Note 1 | C22: =+B25 -> 0 | D22: =+C25 -> 0 | E22: =+D25 -> 0
A23: Net Additions - Note 4
A24: Net Depreciation (amounts should be negative) - Note 4
A25: Closing net PP&E (1) | B25: =SUM(B22:B24) -> 0 | C25: =SUM(C22:C24) -> 0 | D25: =SUM(D22:D24) -> 0 | E25: =SUM(E22:E24) -> 0
A27: PP&E Values under MIFRS (Starts from 2014, the transition year)
A28: Opening net PP&E - Note 1 | C28: =+B31 -> 0 | D28: =+C31 -> 0 | E28: =+D31 -> 0
A29: Net Additions - Note 4
A30: Net Depreciation (amounts should be negative) - Note 4
A31: Closing net PP&E (2) | B31: =SUM(B28:B30) -> 0 | C31: =SUM(C28:C30) -> 0 | D31: =SUM(D28:D30) -> 0 | E31: =SUM(E28:E30) -> 0
A33: Difference in Closing net PP&E, former CGAAP vs. revised CGAAP | B33: =B25-B31 -> 0 | C33: =C25-C31 -> 0 | D33: =D25-D31 -> 0 | E33: =E25-E31 -> 0
A36: Effect on Deferral and Variance Account Rate Riders
A37: Closing balance in Account 1575 | F37: =IF(ISERROR(E33), 0, E33) -> 0 | H37: WACC
A38: Return on Rate Base Associated with Account 1575 balance at WACC - Note 2 | F38: =E33*I37*I38 -> 0 | G38: # of years of rate rider disposition period
A39: Amount included in Deferral and Variance Account Rate Rider Calculation | F39: =F37+F38 -> 0
A41: Notes:
A42: 1 For an applicant that adopted IFRS on January 1, 2015, the PP&E values as of January 1, 2014 under both CGAAP and MIFRS should be the same.
A43: 2 Return on rate base associated with deferred balance is calculated as:
A44: the deferral account closing balance as of 2017 x WACC X # of years of rate rider disposition period
A45: * Please note that the calculation should be adjusted once WACC is updated and finalized in the rate application.
A46: 3 The PP&E deferral account is cleared by including the total balance in the deferral and variance account rate rider calculation.
A47: 4 Net additions are additions net of disposals; Net depreciation is additions to depreciation net of disposals.

Sheet App.2-EB_Account 1576 (2012) (hidden)
K1: File Number: | L1: =EBNUMBER -> EB-2020-0048
K2: Exhibit:
K3: Tab:
K4: Schedule:
K5: Page:
K7: Date:
A9: Appendix 2-EB
A10: Account 1576 - Accounting Changes under CGAAP
A11: 2012 Changes in Accounting Policies under CGAAP
A13: For applicants with a balance in Account 1576 and made capitalization and depreciation expense accounting policy changes under CGAAP effective January 1, 2012. This is the first time the applicant is rebasing with changes in these accounting policies.
B17: Prior Years Rebasing | C17: 2012 | D17: 2013 | E17: 2014 | F17: 2015 | G17: 2016 | H17: 2017 | I17: 2018 Rebasing Year
A18: Reporting Basis | B18: CGAAP | C18: CGAAP | D18: CGAAP | E18: CGAAP | F18: MIFRS - Note 5 | G18: MIFRS | H18: MIFRS | I18: MIFRS
B19: Forecast | C19: Actual | D19: Actual | E19: Actual | F19: Actual | G19: Actual | H19: Forecast | I19: Forecast
C20: $ | D20: $ | E20: $ | F20: $ | G20: $ | H20: $
A21: PP&E Values under former CGAAP
A22: Opening net PP&E - Note 1 | D22: =+C25 -> 0 | E22: =+D25 -> 0 | F22: =+E25 -> 0 | G22: =+F25 -> 0 | H22: =+G25 -> 0
A23: Net Additions - Note 4
A24: Net Depreciation (amounts should be negative) - Note 4
A25: Closing net PP&E (1) | C25: =C22+C23+C24 -> 0 | D25: 0 | E25: 0 | F25: 0 | G25: 0 | H25: 0
A27: PP&E Values under revised CGAAP (Starts from 2012)
A28: Opening net PP&E - Note 1 | D28: =+C31 -> 0 | E28: =+D31 -> 0 | F28: =+E31 -> 0 | G28: =+F31 -> 0 | H28: =+G31 -> 0
A29: Net Additions - Note 4
A30: Net Depreciation (amounts should be negative) - Note 4
A31: Closing net PP&E (2) | C31: =SUM(C28:C30) -> 0 | D31: 0 | E31: 0 | F31: 0 | G31: 0 | H31: 0
A33: Difference in Closing net PP&E, former CGAAP vs. revised CGAAP | C33: =C25-C31 -> 0 | D33: 0 | E33: 0 | F33: 0 | G33: 0 | H33: 0
A36: Effect on Deferral and Variance Account Rate Riders
A37: Closing balance in Account 1576 | I37: =IF(ISERROR(H33), 0, H33) -> 0 | K37: WACC
A38: Return on Rate Base Associated with Account 1576 balance at WACC - Note 2 | I38: =H33*L37*L38 -> 0 | J38: # of years of rate rider disposition period
A39: Amount included in Deferral and Variance Account Rate Rider Calculation | I39: =I37+I38 -> 0
A41: Notes:
A42: 1 For an applicant that made the capitalization and depreciation expense accounting policy changes on January 1, 2012, the PP&E values as of January 1, 2012 under both former CGAAP and revised CGAAP should be the same.
A43: 2 Return on rate base associated with Account 1576 balance is calculated as:
A44: the variance account ending balance as of 2017 x WACC X # of years of rate rider disposition period
A45: * Please note that the calculation should be adjusted once WACC is updated and finalized in the rate application.
A46: 3 Account 1576 is cleared by including the total balance in the deferral and variance account rate rider calculation.
A47: 4 Net additions are additions net of disposals; Net depreciation is additions to depreciation net of disposals.
A48: 5 Differences due to the adoption of MIFRS are to be shown separately in Account 1575 in Appendix 2-EA as Accounts 1575 and 1576 cannot be used interchangably.

Sheet App.2-EC_Account 1576 (2013) (hidden)
J1: File Number: | K1: =EBNUMBER -> EB-2020-0048
J2: Exhibit:
J3: Tab:
J4: Schedule:
J5: Page:
J7: Date:
A9: Appendix 2-EC
A10: Account 1576 - Accounting Changes under CGAAP
A11: 2013 Changes in Accounting Policies under CGAAP
A13: For applicants with a balance in Account 1576 and made capitalization and depreciation expense accounting policy changes under CGAAP effective January 1, 2013. This is the first time the applicant is rebasing with changes in these accounting policies.
B17: Prior Years Rebasing | C17: 2013 | D17: 2014 | E17: 2015 | F17: 2016 | G17: 2017 | H17: 2018 Rebasing Year
A18: Reporting Basis | B18: CGAAP | C18: CGAAP | D18: CGAAP | E18: MIFRS - Note 5 | F18: MIFRS | G18: MIFRS | H18: MIFRS
B19: Actual | C19: Actual | D19: Actual | E19: Actual | F19: Actual | G19: Forecast | H19: Forecast
C20: $ | D20: $ | F20: $
A21: PP&E Values under former CGAAP
A22: Opening net PP&E - Note 1 | D22: =+C25 -> 0 | E22: =+D25 -> 0 | F22: =+E25 -> 0 | G22: =+F25 -> 0
A23: Net Additions - Note 4
A24: Net Depreciation (amounts should be negative) - Note 4
A25: Closing net PP&E (1) | C25: =C22+C23+C24 -> 0 | D25: =D22+D23+D24 -> 0 | E25: =E22+E23+E24 -> 0 | F25: =F22+F23+F24 -> 0 | G25: =G22+G23+G24 -> 0
A27: PP&E Values under revised CGAAP (Starts from 2012)
A28: Opening net PP&E - Note 1 | D28: =+C31 -> 0 | E28: =+D31 -> 0 | F28: =+E31 -> 0 | G28: =+F31 -> 0
A29: Net Additions - Note 4
A30: Net Depreciation (amounts should be negative) - Note 4
A31: Closing net PP&E (2) | C31: =SUM(C28:C30) -> 0 | D31: =SUM(D28:D30) -> 0 | E31: =SUM(E28:E30) -> 0 | F31: =SUM(F28:F30) -> 0 | G31: =SUM(G28:G30) -> 0
A33: Difference in Closing net PP&E, former CGAAP vs. revised CGAAP | C33: =C25-C31 -> 0 | D33: =D25-D31 -> 0 | E33: =E25-E31 -> 0 | F33: =F25-F31 -> 0 | G33: =G25-G31 -> 0
A36: Effect on Deferral and Variance Account Rate Riders
A37: Closing balance in Account 1576 | H37: =IF(ISERROR(G33), 0, G33) -> 0 | J37: WACC
A38: Return on Rate Base Associated with Account 1576 balance at WACC - Note 2 | H38: =G33*K37*K38 -> 0 | I38: # of years of rate rider disposition period
A39: Amount included in Deferral and Variance Account Rate Rider Calculation | H39: =H37+H38 -> 0
A41: Notes:
A42: 1 For an applicant that made the capitalization and depreciation expense accounting policy changes on January 1, 2013, the PP&E values as of January 1, 2013 under both former CGAAP and revised CGAAP should be the same.
A43: 2 Return on rate base associated with Account 1576 balance is calculated as:
A44: the variance account ending balance as of 2017 x WACC X # of years of rate rider disposition period
A45: * Please note that the calculation should be adjusted once WACC is updated and finalized in the rate application.
A46: 3 Account 1576 is cleared by including the total balance in the deferral and variance account rate rider calculation.
A47: 4 Net additions are additions net of disposals; Net depreciation is additions to depreciation net of disposals.
A48: 5 Differences due to the adoption of MIFRS are to be shown separately in Account 1575 in Appendix 2-EA as Accounts 1575 and 1576 cannot be used interchangably.

Sheet Hidden_REG Invest. (hidden)
A1: Utility Name | B1: EB Number | C1: Test Year | D1: Bridge Year | E1: Last Rebasing Year | F1: Renewable Generation Connection Investment Summary | G1: Year | H1: Amount
A2: ='LDC Info'!$E$14 -> Oshawa PUC Networks Inc. | B2: =EBNUMBER -> EB-2020-0048 | C2: =TestYear -> 2021 | D2: =BridgeYear -> 2020 | E2: =RebaseYear -> 2015 | F2: REI Investments_A_Total Capital Costs | G2: ='App.2-FA Proposed REG Invest.'!$C$31 -> 2016 | H2: ='App.2-FA Proposed REG Invest.'!C62 -> 0
A3: ='LDC Info'!$E$14 -> Oshawa PUC Networks Inc. | B3: EB-2020-0048 | C3: 2021 | D3: 2020 | E3: 2015 | F3: REI Investments_A_Total OM&A Start-Up | G3: ='App.2-FA Proposed REG Invest.'!$C$31 -> 2016 | H3: ='App.2-FA Proposed REG Invest.'!$C63 -> 0
A4: ='LDC Info'!$E$14 -> Oshawa PUC Networks Inc. | B4: EB-2020-0048 | C4: 2021 | D4: 2020 | E4: 2015 | F4: REI Investments_A_Total OM&A Ongoing | G4: ='App.2-FA Proposed REG Invest.'!$C$31 -> 2016 | H4: ='App.2-FA Proposed REG Invest.'!$C64 -> 0
A5: ='LDC Info'!$E$14 -> Oshawa PUC Networks Inc. | B5: EB-2020-0048 | C5: 2021 | D5: 2020 | E5: 2015 | F5: REI Investments_A_Total Capital Costs | G5: ='App.2-FA Proposed REG Invest.'!$D$31 -> 2017 | H5: ='App.2-FA Proposed REG Invest.'!D62 -> 0
A6: ='LDC Info'!$E$14 -> Oshawa PUC Networks Inc. | B6: EB-2020-0048 | C6: 2021 | D6: 2020 | E6: 2015 | F6: REI Investments_A_Total OM&A Start-Up | G6: ='App.2-FA Proposed REG Invest.'!$D$31 -> 2017 | H6: ='App.2-FA Proposed REG Invest.'!D63 -> 0
A7: ='LDC Info'!$E$14 -> Oshawa PUC Networks Inc. | B7: EB-2020-0048 | C7: 2021 | D7: 2020 | E7: 2015 | F7: REI Investments_A_Total OM&A Ongoing | G7: ='App.2-FA Proposed REG Invest.'!$D$31 -> 2017 | H7: ='App.2-FA Proposed REG Invest.'!D64 -> 0
A8: ='LDC Info'!$E$14 -> Oshawa PUC Networks Inc. | B8: EB-2020-0048 | C8: 2021 | D8: 2020 | E8: 2015 | F8: REI Investments_A_Total Capital Costs | G8: ='App.2-FA Proposed REG Invest.'!$E$31 -> 2018 | H8: ='App.2-FA Proposed REG Invest.'!E62 -> 0
A9: ='LDC Info'!$E$14 -> Oshawa PUC Networks Inc. | B9: EB-2020-0048 | C9: 2021 | D9: 2020 | E9: 2015 | F9: REI Investments_A_Total OM&A Start-Up | G9: ='App.2-FA Proposed REG Invest.'!$E$31 -> 2018 | H9: ='App.2-FA Proposed REG Invest.'!E63 -> 0
A10: ='LDC Info'!$E$14 -> Oshawa PUC Networks Inc. | B10: EB-2020-0048 | C10: 2021 | D10: 2020 | E10: 2015 | F10: REI Investments_A_Total OM&A Ongoing | G10: ='App.2-FA Proposed REG Invest.'!$E$31 -> 2018 | H10: ='App.2-FA Proposed REG Invest.'!E64 -> 0
A11: ='LDC Info'!$E$14 -> Oshawa PUC Networks Inc. | B11: EB-2020-0048 | C11: 2021 | D11: 2020 | E11: 2015 | F11: REI Investments_A_Total Capital Costs | G11: ='App.2-FA Proposed REG Invest.'!$F$31 -> 2019 | H11: ='App.2-FA Proposed REG Invest.'!F62 -> 0
A12: ='LDC Info'!$E$14 -> Oshawa PUC Networks Inc. | B12: EB-2020-0048 | C12: 2021 | D12: 2020 | E12: 2015 | F12: REI Investments_A_Total OM&A Start-Up | G12: ='App.2-FA Proposed REG Invest.'!$F$31 -> 2019 | H12: ='App.2-FA Proposed REG Invest.'!F63 -> 0
A13: ='LDC Info'!$E$14 -> Oshawa PUC Networks Inc. | B13: EB-2020-0048 | C13: 2021 | D13: 2020 | E13: 2015 | F13: REI Investments_A_Total OM&A Ongoing | G13: ='App.2-FA Proposed REG Invest.'!$F$31 -> 2019 | H13: ='App.2-FA Proposed REG Invest.'!F64 -> 0
A14: ='LDC Info'!$E$14 -> Oshawa PUC Networks Inc. | B14: EB-2020-0048 | C14: 2021 | D14: 2020 | E14: 2015 | F14: REI Investments_A_Total Capital Costs | G14: ='App.2-FA Proposed REG Invest.'!$G$31 -> 2020 | H14: ='App.2-FA Proposed REG Invest.'!G62 -> 0
A15: ='LDC Info'!$E$14 -> Oshawa PUC Networks Inc. | B15: EB-2020-0048 | C15: 2021 | D15: 2020 | E15: 2015 | F15: REI Investments_A_Total OM&A Start-Up | G15: ='App.2-FA Proposed REG Invest.'!$G$31 -> 2020 | H15: ='App.2-FA Proposed REG Invest.'!G63 -> 0
A16: ='LDC Info'!$E$14 -> Oshawa PUC Networks Inc. | B16: EB-2020-0048 | C16: 2021 | D16: 2020 | E16: 2015 | F16: REI Investments_A_Total OM&A Ongoing | G16: ='App.2-FA Proposed REG Invest.'!$G$31 -> 2020 | H16: ='App.2-FA Proposed REG Invest.'!G64 -> 0
A17: ='LDC Info'!$E$14 -> Oshawa PUC Networks Inc. | B17: EB-2020-0048 | C17: 2021 | D17: 2020 | E17: 2015 | F17: REI Investments_A_Total Capital Costs | G17: ='App.2-FA Proposed REG Invest.'!$H$31 -> 2021 | H17: ='App.2-FA Proposed REG Invest.'!H62 -> 0
A18: ='LDC Info'!$E$14 -> Oshawa PUC Networks Inc. | B18: EB-2020-0048 | C18: 2021 | D18: 2020 | E18: 2015 | F18: REI Investments_A_Total OM&A Start-Up | G18: ='App.2-FA Proposed REG Invest.'!$H$31 -> 2021 | H18: ='App.2-FA Proposed REG Invest.'!H63 -> 0
A19: ='LDC Info'!$E$14 -> Oshawa PUC Networks Inc. | B19: EB-2020-0048 | C19: 2021 | D19: 2020 | E19: 2015 | F19: REI Investments_A_Total OM&A Ongoing | G19: ='App.2-FA Proposed REG Invest.'!$H$31 -> 2021 | H19: ='App.2-FA Proposed REG Invest.'!H64 -> 0
A20: ='LDC Info'!$E$14 -> Oshawa PUC Networks Inc. | B20: EB-2020-0048 | C20: 2021 | D20: 2020 | E20: 2015 | F20: REI Investments_A_Total Capital Costs | G20: ='App.2-FA Proposed REG Invest.'!$I$31 -> 2022 | H20: ='App.2-FA Proposed REG Invest.'!I62 -> 0
A21: ='LDC Info'!$E$14 -> Oshawa PUC Networks Inc. | B21: EB-2020-0048 | C21: 2021 | D21: 2020 | E21: 2015 | F21: REI Investments_A_Total OM&A Start-Up | G21: ='App.2-FA Proposed REG Invest.'!$I$31 -> 2022 | H21: ='App.2-FA Proposed REG Invest.'!I63 -> 0
A22: ='LDC Info'!$E$14 -> Oshawa PUC Networks Inc. | B22: EB-2020-0048 | C22: 2021 | D22: 2020 | E22: 2015 | F22: REI Investments_A_Total OM&A Ongoing | G22: ='App.2-FA Proposed REG Invest.'!$I$31 -> 2022 | H22: ='App.2-FA Proposed REG Invest.'!I64 -> 0
A23: ='LDC Info'!$E$14 -> Oshawa PUC Networks Inc. | B23: EB-2020-0048 | C23: 2021 | D23: 2020 | E23: 2015 | F23: REI Investments_A_Total Capital Costs | G23: ='App.2-FA Proposed REG Invest.'!$J$31 -> 2023 | H23: ='App.2-FA Proposed REG Invest.'!J62 -> 0
A24: ='LDC Info'!$E$14 -> Oshawa PUC Networks Inc. | B24: EB-2020-0048 | C24: 2021 | D24: 2020 | E24: 2015 | F24: REI Investments_A_Total OM&A Start-Up | G24: ='App.2-FA Proposed REG Invest.'!$J$31 -> 2023 | H24: ='App.2-FA Proposed REG Invest.'!J63 -> 0
A25: ='LDC Info'!$E$14 -> Oshawa PUC Networks Inc. | B25: EB-2020-0048 | C25: 2021 | D25: 2020 | E25: 2015 | F25: REI Investments_A_Total OM&A Ongoing | G25: ='App.2-FA Proposed REG Invest.'!$J$31 -> 2023 | H25: ='App.2-FA Proposed REG Invest.'!J64 -> 0
A26: ='LDC Info'!$E$14 -> Oshawa PUC Networks Inc. | B26: EB-2020-0048 | C26: 2021 | D26: 2020 | E26: 2015 | F26: REI Investments_A_Total Capital Costs | G26: ='App.2-FA Proposed REG Invest.'!$K$31 -> 2024 | H26: ='App.2-FA Proposed REG Invest.'!K62 -> 0
A27: ='LDC Info'!$E$14 -> Oshawa PUC Networks Inc. | B27: EB-2020-0048 | C27: 2021 | D27: 2020 | E27: 2015 | F27: REI Investments_A_Total OM&A Start-Up | G27: ='App.2-FA Proposed REG Invest.'!$K$31 -> 2024 | H27: ='App.2-FA Proposed REG Invest.'!K63 -> 0
A28: ='LDC Info'!$E$14 -> Oshawa PUC Networks Inc. | B28: EB-2020-0048 | C28: 2021 | D28: 2020 | E28: 2015 | F28: REI Investments_A_Total OM&A Ongoing | G28: ='App.2-FA Proposed REG Invest.'!$K$31 -> 2024 | H28: ='App.2-FA Proposed REG Invest.'!K64 -> 0
A29: ='LDC Info'!$E$14 -> Oshawa PUC Networks Inc. | B29: EB-2020-0048 | C29: 2021 | D29: 2020 | E29: 2015 | F29: REI Investments_A_Total Capital Costs | G29: ='App.2-FA Proposed REG Invest.'!$L$31 -> 2025 | H29: ='App.2-FA Proposed REG Invest.'!L62 -> 0
A30: ='LDC Info'!$E$14 -> Oshawa PUC Networks Inc. | B30: EB-2020-0048 | C30: 2021 | D30: 2020 | E30: 2015 | F30: REI Investments_A_Total OM&A Start-Up | G30: ='App.2-FA Proposed REG Invest.'!$L$31 -> 2025 | H30: ='App.2-FA Proposed REG Invest.'!L63 -> 0
A31: ='LDC Info'!$E$14 -> Oshawa PUC Networks Inc. | B31: EB-2020-0048 | C31: 2021 | D31: 2020 | E31: 2015 | F31: REI Investments_A_Total OM&A Ongoing | G31: ='App.2-FA Proposed REG Invest.'!$L$31 -> 2025 | H31: ='App.2-FA Proposed REG Invest.'!L64 -> 0
A32: ='LDC Info'!$E$14 -> Oshawa PUC Networks Inc. | B32: EB-2020-0048 | C32: 2021 | D32: 2020 | E32: 2015 | F32: Expansion Investments_B_Total Capital Costs | G32: ='App.2-FA Proposed REG Invest.'!$C$31 -> 2016 | H32: ='App.2-FA Proposed REG Invest.'!C99 -> 0
A33: ='LDC Info'!$E$14 -> Oshawa PUC Networks Inc. | B33: EB-2020-0048 | C33: 2021 | D33: 2020 | E33: 2015 | F33: Expansion Investments_B_Total OM&A Start-Up | G33: ='App.2-FA Proposed REG Invest.'!$C$31 -> 2016 | H33: ='App.2-FA Proposed REG Invest.'!C100 -> 0
A34: ='LDC Info'!$E$14 -> Oshawa PUC Networks Inc. | B34: EB-2020-0048 | C34: 2021 | D34: 2020 | E34: 2015 | F34: Expansion Investments_B_Total OM&A Ongoing | G34: ='App.2-FA Proposed REG Invest.'!$C$31 -> 2016 | H34: ='App.2-FA Proposed REG Invest.'!C101 -> 0
A35: ='LDC Info'!$E$14 -> Oshawa PUC Networks Inc. | B35: EB-2020-0048 | C35: 2021 | D35: 2020 | E35: 2015 | F35: Expansion Investments_B_Total Capital Costs | G35: ='App.2-FA Proposed REG Invest.'!$D$31 -> 2017 | H35: ='App.2-FA Proposed REG Invest.'!D99 -> 0
A36: ='LDC Info'!$E$14 -> Oshawa PUC Networks Inc. | B36: EB-2020-0048 | C36: 2021 | D36: 2020 | E36: 2015 | F36: Expansion Investments_B_Total OM&A Start-Up | G36: ='App.2-FA Proposed REG Invest.'!$D$31 -> 2017 | H36: ='App.2-FA Proposed REG Invest.'!D100 -> 0
A37: ='LDC Info'!$E$14 -> Oshawa PUC Networks Inc. | B37: EB-2020-0048 | C37: 2021 | D37: 2020 | E37: 2015 | F37: Expansion Investments_B_Total OM&A Ongoing | G37: ='App.2-FA Proposed REG Invest.'!$D$31 -> 2017 | H37: ='App.2-FA Proposed REG Invest.'!D101 -> 0
A38: ='LDC Info'!$E$14 -> Oshawa PUC Networks Inc. | B38: EB-2020-0048 | C38: 2021 | D38: 2020 | E38: 2015 | F38: Expansion Investments_B_Total Capital Costs | G38: ='App.2-FA Proposed REG Invest.'!$E$31 -> 2018 | H38: ='App.2-FA Proposed REG Invest.'!E99 -> 0
A39: ='LDC Info'!$E$14 -> Oshawa PUC Networks Inc. | B39: EB-2020-0048 | C39: 2021 | D39: 2020 | E39: 2015 | F39: Expansion Investments_B_Total OM&A Start-Up | G39: ='App.2-FA Proposed REG Invest.'!$E$31 -> 2018 | H39: ='App.2-FA Proposed REG Invest.'!E100 -> 0
A40: ='LDC Info'!$E$14 -> Oshawa PUC Networks Inc. | B40: EB-2020-0048 | C40: 2021 | D40: 2020 | E40: 2015 | F40: Expansion Investments_B_Total OM&A Ongoing | G40: ='App.2-FA Proposed REG Invest.'!$E$31 -> 2018 | H40: ='App.2-FA Proposed REG Invest.'!E101 -> 0
A41: ='LDC Info'!$E$14 -> Oshawa PUC Networks Inc. | B41: EB-2020-0048 | C41: 2021 | D41: 2020 | E41: 2015 | F41: Expansion Investments_B_Total Capital Costs | G41: ='App.2-FA Proposed REG Invest.'!$F$31 -> 2019 | H41: ='App.2-FA Proposed REG Invest.'!F99 -> 0
A42: ='LDC Info'!$E$14 -> Oshawa PUC Networks Inc. | B42: EB-2020-0048 | C42: 2021 | D42: 2020 | E42: 2015 | F42: Expansion Investments_B_Total OM&A Start-Up | G42: ='App.2-FA Proposed REG Invest.'!$F$31 -> 2019 | H42: ='App.2-FA Proposed REG Invest.'!F100 -> 0
A43: ='LDC Info'!$E$14 -> Oshawa PUC Networks Inc. | B43: EB-2020-0048 | C43: 2021 | D43: 2020 | E43: 2015 | F43: Expansion Investments_B_Total OM&A Ongoing | G43: ='App.2-FA Proposed REG Invest.'!$F$31 -> 2019 | H43: ='App.2-FA Proposed REG Invest.'!F101 -> 0
A44: ='LDC Info'!$E$14 -> Oshawa PUC Networks Inc. | B44: EB-2020-0048 | C44: 2021 | D44: 2020 | E44: 2015 | F44: Expansion Investments_B_Total Capital Costs | G44: ='App.2-FA Proposed REG Invest.'!$G$31 -> 2020 | H44: ='App.2-FA Proposed REG Invest.'!G99 -> 0
A45: ='LDC Info'!$E$14 -> Oshawa PUC Networks Inc. | B45: EB-2020-0048 | C45: 2021 | D45: 2020 | E45: 2015 | F45: Expansion Investments_B_Total OM&A Start-Up | G45: ='App.2-FA Proposed REG Invest.'!$G$31 -> 2020 | H45: ='App.2-FA Proposed REG Invest.'!G100 -> 0
A46: ='LDC Info'!$E$14 -> Oshawa PUC Networks Inc. | B46: EB-2020-0048 | C46: 2021 | D46: 2020 | E46: 2015 | F46: Expansion Investments_B_Total OM&A Ongoing | G46: ='App.2-FA Proposed REG Invest.'!$G$31 -> 2020 | H46: ='App.2-FA Proposed REG Invest.'!G101 -> 0
A47: ='LDC Info'!$E$14 -> Oshawa PUC Networks Inc. | B47: EB-2020-0048 | C47: 2021 | D47: 2020 | E47: 2015 | F47: Expansion Investments_B_Total Capital Costs | G47: ='App.2-FA Proposed REG Invest.'!$H$31 -> 2021 | H47: ='App.2-FA Proposed REG Invest.'!H99 -> 0
A48: ='LDC Info'!$E$14 -> Oshawa PUC Networks Inc. | B48: EB-2020-0048 | C48: 2021 | D48: 2020 | E48: 2015 | F48: Expansion Investments_B_Total OM&A Start-Up | G48: ='App.2-FA Proposed REG Invest.'!$H$31 -> 2021 | H48: ='App.2-FA Proposed REG Invest.'!H100 -> 0
A49: ='LDC Info'!$E$14 -> Oshawa PUC Networks Inc. | B49: EB-2020-0048 | C49: 2021 | D49: 2020 | E49: 2015 | F49: Expansion Investments_B_Total OM&A Ongoing | G49: ='App.2-FA Proposed REG Invest.'!$H$31 -> 2021 | H49: ='App.2-FA Proposed REG Invest.'!H101 -> 0
A50: ='LDC Info'!$E$14 -> Oshawa PUC Networks Inc. | B50: EB-2020-0048 | C50: 2021 | D50: 2020 | E50: 2015 | F50: Expansion Investments_B_Total Capital Costs | G50: ='App.2-FA Proposed REG Invest.'!$I$31 -> 2022 | H50: ='App.2-FA Proposed REG Invest.'!I99 -> 0
A51: ='LDC Info'!$E$14 -> Oshawa PUC Networks Inc. | B51: EB-2020-0048 | C51: 2021 | D51: 2020 | E51: 2015 | F51: Expansion Investments_B_Total OM&A Start-Up | G51: ='App.2-FA Proposed REG Invest.'!$I$31 -> 2022 | H51: ='App.2-FA Proposed REG Invest.'!I100 -> 0
A52: ='LDC Info'!$E$14 -> Oshawa PUC Networks Inc. | B52: EB-2020-0048 | C52: 2021 | D52: 2020 | E52: 2015 | F52: Expansion Investments_B_Total OM&A Ongoing | G52: ='App.2-FA Proposed REG Invest.'!$I$31 -> 2022 | H52: ='App.2-FA Proposed REG Invest.'!I101 -> 0
A53: ='LDC Info'!$E$14 -> Oshawa PUC Networks Inc. | B53: EB-2020-0048 | C53: 2021 | D53: 2020 | E53: 2015 | F53: Expansion Investments_B_Total Capital Costs | G53: ='App.2-FA Proposed REG Invest.'!$J$31 -> 2023 | H53: ='App.2-FA Proposed REG Invest.'!J99 -> 0
A54: ='LDC Info'!$E$14 -> Oshawa PUC Networks Inc. | B54: EB-2020-0048 | C54: 2021 | D54: 2020 | E54: 2015 | F54: Expansion Investments_B_Total OM&A Start-Up | G54: ='App.2-FA Proposed REG Invest.'!$J$31 -> 2023 | H54: ='App.2-FA Proposed REG Invest.'!J100 -> 0
A55: ='LDC Info'!$E$14 -> Oshawa PUC Networks Inc. | B55: EB-2020-0048 | C55: 2021 | D55: 2020 | E55: 2015 | F55: Expansion Investments_B_Total OM&A Ongoing | G55: ='App.2-FA Proposed REG Invest.'!$J$31 -> 2023 | H55: ='App.2-FA Proposed REG Invest.'!J101 -> 0
A56: ='LDC Info'!$E$14 -> Oshawa PUC Networks Inc. | B56: EB-2020-0048 | C56: 2021 | D56: 2020 | E56: 2015 | F56: Expansion Investments_B_Total Capital Costs | G56: ='App.2-FA Proposed REG Invest.'!$K$31 -> 2024 | H56: ='App.2-FA Proposed REG Invest.'!K99 -> 0
A57: ='LDC Info'!$E$14 -> Oshawa PUC Networks Inc. | B57: EB-2020-0048 | C57: 2021 | D57: 2020 | E57: 2015 | F57: Expansion Investments_B_Total OM&A Start-Up | G57: ='App.2-FA Proposed REG Invest.'!$K$31 -> 2024 | H57: ='App.2-FA Proposed REG Invest.'!K100 -> 0
A58: ='LDC Info'!$E$14 -> Oshawa PUC Networks Inc. | B58: EB-2020-0048 | C58: 2021 | D58: 2020 | E58: 2015 | F58: Expansion Investments_B_Total OM&A Ongoing | G58: ='App.2-FA Proposed REG Invest.'!$K$31 -> 2024 | H58: ='App.2-FA Proposed REG Invest.'!K101 -> 0
A59: ='LDC Info'!$E$14 -> Oshawa PUC Networks Inc. | B59: EB-2020-0048 | C59: 2021 | D59: 2020 | E59: 2015 | F59: Expansion Investments_B_Total Capital Costs | G59: ='App.2-FA Proposed REG Invest.'!$L$31 -> 2025 | H59: ='App.2-FA Proposed REG Invest.'!L99 -> 0
A60: ='LDC Info'!$E$14 -> Oshawa PUC Networks Inc. | B60: EB-2020-0048 | C60: 2021 | D60: 2020 | E60: 2015 | F60: Expansion Investments_B_Total OM&A Start-Up | G60: ='App.2-FA Proposed REG Invest.'!$L$31 -> 2025 | H60: ='App.2-FA Proposed REG Invest.'!L100 -> 0
A61: ='LDC Info'!$E$14 -> Oshawa PUC Networks Inc. | B61: EB-2020-0048 | C61: 2021 | D61: 2020 | E61: 2015 | F61: Expansion Investments_B_Total OM&A Ongoing | G61: ='App.2-FA Proposed REG Invest.'!$L$31 -> 2025 | H61: ='App.2-FA Proposed REG Invest.'!L101 -> 0

Sheet Hidden_REG Improvement (hidden)
A1: Utility Name | B1: EB Number | C1: Test Year | D1: Bridge Year | E1: Last Rebasing Year | F1: Renewable Generation Connection Direct Benefits/Provincial Amount Renewable Enabling Improvement Investments | G1: Year | H1: Amount
A2: ='LDC Info'!$E$14 -> Oshawa PUC Networks Inc. | B2: =EBNUMBER -> EB-2020-0048 | C2: =TestYear -> 2021 | D2: =BridgeYear -> 2020 | E2: =RebaseYear -> 2015 | F2: Provincial Rate Protection | G2: ='App.2-FB Calc of REG Improvemnt'!D17 -> 2016 | H2: ='App.2-FB Calc of REG Improvemnt'!F$44 -> 0
A3: ='LDC Info'!$E$14 -> Oshawa PUC Networks Inc. | B3: EB-2020-0048 | C3: 2021 | D3: 2020 | E3: 2015 | F3: Provincial Rate Protection | G3: ='App.2-FB Calc of REG Improvemnt'!G17 -> 2017 | H3: ='App.2-FB Calc of REG Improvemnt'!I$44 -> 0
A4: ='LDC Info'!$E$14 -> Oshawa PUC Networks Inc. | B4: EB-2020-0048 | C4: 2021 | D4: 2020 | E4: 2015 | F4: Provincial Rate Protection | G4: ='App.2-FB Calc of REG Improvemnt'!J17 -> 2018 | H4: ='App.2-FB Calc of REG Improvemnt'!L$44 -> 0
A5: ='LDC Info'!$E$14 -> Oshawa PUC Networks Inc. | B5: EB-2020-0048 | C5: 2021 | D5: 2020 | E5: 2015 | F5: Provincial Rate Protection | G5: ='App.2-FB Calc of REG Improvemnt'!M17 -> 2019 | H5: ='App.2-FB Calc of REG Improvemnt'!O$44 -> 0
A6: ='LDC Info'!$E$14 -> Oshawa PUC Networks Inc. | B6: EB-2020-0048 | C6: 2021 | D6: 2020 | E6: 2015 | F6: Provincial Rate Protection | G6: ='App.2-FB Calc of REG Improvemnt'!P17 -> 2020 | H6: ='App.2-FB Calc of REG Improvemnt'!R$44 -> 0
A7: ='LDC Info'!$E$14 -> Oshawa PUC Networks Inc. | B7: EB-2020-0048 | C7: 2021 | D7: 2020 | E7: 2015 | F7: Provincial Rate Protection | G7: ='App.2-FB Calc of REG Improvemnt'!S17 -> 2021 | H7: ='App.2-FB Calc of REG Improvemnt'!U$44 -> 0
A8: ='LDC Info'!$E$14 -> Oshawa PUC Networks Inc. | B8: EB-2020-0048 | C8: 2021 | D8: 2020 | E8: 2015 | F8: Provincial Rate Protection | G8: ='App.2-FB Calc of REG Improvemnt'!V17 -> 2022 | H8: ='App.2-FB Calc of REG Improvemnt'!X$44 -> 0
A9: ='LDC Info'!$E$14 -> Oshawa PUC Networks Inc. | B9: EB-2020-0048 | C9: 2021 | D9: 2020 | E9: 2015 | F9: Provincial Rate Protection | G9: ='App.2-FB Calc of REG Improvemnt'!Y17 -> 2023 | H9: ='App.2-FB Calc of REG Improvemnt'!AA$44 -> 0
A10: ='LDC Info'!$E$14 -> Oshawa PUC Networks Inc. | B10: EB-2020-0048 | C10: 2021 | D10: 2020 | E10: 2015 | F10: Provincial Rate Protection | G10: ='App.2-FB Calc of REG Improvemnt'!AB17 -> 2024 | H10: ='App.2-FB Calc of REG Improvemnt'!AD$44 -> 0
A11: ='LDC Info'!$E$14 -> Oshawa PUC Networks Inc. | B11: EB-2020-0048 | C11: 2021 | D11: 2020 | E11: 2015 | F11: Provincial Rate Protection | G11: ='App.2-FB Calc of REG Improvemnt'!AE17 -> 2025 | H11: ='App.2-FB Calc of REG Improvemnt'!AG$44 -> 0

Sheet Hidden_REG Expansion (hidden)
A1: Utility Name | B1: EB Number | C1: Test Year | D1: Bridge Year | E1: Last Rebasing Year | F1: Calculation of Renewable Generation Connection Direct Benefits/Provincial Amount Renewable Expansion Investments | G1: Year | H1: Amount
A2: ='LDC Info'!$E$14 -> Oshawa PUC Networks Inc. | B2: =EBNUMBER -> EB-2020-0048 | C2: =TestYear -> 2021 | D2: =BridgeYear -> 2020 | E2: =RebaseYear -> 2015 | F2: Provincial Rate Protection | G2: ='App.2-FC Calc of REG Expansion'!D$17 -> 2016 | H2: ='App.2-FC Calc of REG Expansion'!F$44 -> 0
A3: ='LDC Info'!$E$14 -> Oshawa PUC Networks Inc. | B3: EB-2020-0048 | C3: 2021 | D3: 2020 | E3: 2015 | F3: Provincial Rate Protection | G3: ='App.2-FC Calc of REG Expansion'!G$17 -> 2017 | H3: ='App.2-FC Calc of REG Expansion'!I$44 -> 0
A4: ='LDC Info'!$E$14 -> Oshawa PUC Networks Inc. | B4: EB-2020-0048 | C4: 2021 | D4: 2020 | E4: 2015 | F4: Provincial Rate Protection | G4: ='App.2-FC Calc of REG Expansion'!J$17 -> 2018 | H4: ='App.2-FC Calc of REG Expansion'!L$44 -> 0
A5: ='LDC Info'!$E$14 -> Oshawa PUC Networks Inc. | B5: EB-2020-0048 | C5: 2021 | D5: 2020 | E5: 2015 | F5: Provincial Rate Protection | G5: ='App.2-FC Calc of REG Expansion'!M$17 -> 2019 | H5: ='App.2-FC Calc of REG Expansion'!O$44 -> 0
A6: ='LDC Info'!$E$14 -> Oshawa PUC Networks Inc. | B6: EB-2020-0048 | C6: 2021 | D6: 2020 | E6: 2015 | F6: Provincial Rate Protection | G6: ='App.2-FC Calc of REG Expansion'!P$17 -> 2020 | H6: ='App.2-FC Calc of REG Expansion'!R$44 -> 0
A7: ='LDC Info'!$E$14 -> Oshawa PUC Networks Inc. | B7: EB-2020-0048 | C7: 2021 | D7: 2020 | E7: 2015 | F7: Provincial Rate Protection | G7: ='App.2-FC Calc of REG Expansion'!S$17 -> 2021 | H7: ='App.2-FC Calc of REG Expansion'!U$44 -> 0
A8: ='LDC Info'!$E$14 -> Oshawa PUC Networks Inc. | B8: EB-2020-0048 | C8: 2021 | D8: 2020 | E8: 2015 | F8: Provincial Rate Protection | G8: ='App.2-FC Calc of REG Expansion'!V$17 -> 2022 | H8: ='App.2-FC Calc of REG Expansion'!X$44 -> 0
A9: ='LDC Info'!$E$14 -> Oshawa PUC Networks Inc. | B9: EB-2020-0048 | C9: 2021 | D9: 2020 | E9: 2015 | F9: Provincial Rate Protection | G9: ='App.2-FC Calc of REG Expansion'!Y$17 -> 2023 | H9: ='App.2-FC Calc of REG Expansion'!AA$44 -> 0
A10: ='LDC Info'!$E$14 -> Oshawa PUC Networks Inc. | B10: EB-2020-0048 | C10: 2021 | D10: 2020 | E10: 2015 | F10: Provincial Rate Protection | G10: ='App.2-FC Calc of REG Expansion'!AB$17 -> 2024 | H10: ='App.2-FC Calc of REG Expansion'!AD$44 -> 0
A11: ='LDC Info'!$E$14 -> Oshawa PUC Networks Inc. | B11: EB-2020-0048 | C11: 2021 | D11: 2020 | E11: 2015 | F11: Provincial Rate Protection | G11: ='App.2-FC Calc of REG Expansion'!AE$17 -> 2025 | H11: ='App.2-FC Calc of REG Expansion'!AG$44 -> 0

Sheet App.2-FA Proposed REG Invest.
K1: File Number: | L1: 0
K2: Exhibit:
K3: Tab:
A4: TO BE UPDATED AT DRAFT RATE ORDER STAGE | K4: Schedule:
K5: Page:
K7: Date:
A9: Appendix 2-FA
A10: Renewable Generation Connection Investment Summary (past investments or over the future rate setting period)
A12: Enter the details of the Renewable Generation Connection projects as described in the appropriate section of the Filing Requirements.
A13: All costs entered on this page will be transferred to the appropriate cells in the appendices that follow.
A14: For Part A, Renewable Enabling Improvements (REI), these amounts will be transferred to Appendix 2 - FB
A15: For Part B, Expansions, these amounts will be transferred to Appendix 2 - FC
A17: If there are more than five projects proposed to be in-service in a certain year, please amend the tables below and ensure that the formulae for the Total Amounts in any given rate year are updated.
A18: Based on the current methodology and allocation, amounts allocated represent 6% for REI Connection Investments and 17% for Expansion Investments. (EB-2009-0349, 6-10-2010, p. 15, note 9)
A19: Ensure that OM&A costs below are not included in Recoverable OM&A (App. 2-JA)
A20: There are two scenarios described below. Separate sets of spreadsheets (2-FA, 2-FB, 2-FC) should be submited for each scenario as required.
A21: Scenario 1: | B21: Past Investments with No Recovery. The distributor has made investments in the past (during the IRM Years), but has not received approval for these projects and therefore did not receive
B22: revenue from the IESO under Regulation 330/09 and did not receive ratepayer revenue for the direct benefit portion of the investment.
B23: The WCA percentage, debt percentages, interest rates, kWh, tax rates, amortization period, CCA Class and percentage should correspond to the distributor's last Cost of Service approval.
B24: The Direct Benefit portion of the calculated Revenue Requirement for each year should be summed and can be applied for recovery from the distributor's ratepayers through a rate rider.
B25: The Provincial Recovery portion of the calculated Revenue Requirement for each year should be summed and can be applied for recovery from the IESO through a separate order.
A27: Scenario 2: | B27: Investments in the Test Year and Beyond. Distributor plans to make investments in 2021 and/or beyond. These investments should be added to 2-FA in the appropriate year.
B28: The WCA percentage, debt percentages, interest rates, kWh, tax rates, amortization period, CCA Class and percentage should correspond to the distributor's current application.
A30: Part A | H30: Test Year
A31: REI Investments (Direct Benefit at 6%) | C31: =D31-1 -> 2016 | D31: =E31-1 -> 2017 | E31: =F31-1 -> 2018 | F31: =G31-1 -> 2019 | G31: =H31-1 -> 2020 | H31: ='LDC Info'!$E$24 -> 2021 | I31: =H31+1 -> 2022 | J31: =I31+1 -> 2023 | K31: =J31+1 -> 2024 | L31: =K31+1 -> 2025
A32: Project 1
A33: Name: REI Connection Project
A34: Capital Costs | C34: 0 | D34: 0 | E34: 0 | F34: 0 | G34: 0 | H34: 0 | I34: 0 | J34: 0 | K34: 0 | L34: 0
A35: Incremental OM&A (Start-Up) | C35: 0 | D35: 0 | E35: 0 | F35: 0 | G35: 0 | H35: 0 | I35: 0 | J35: 0 | K35: 0 | L35: 0
A36: Incremental OM&A (Ongoing) | C36: 0 | D36: 0 | E36: 0 | F36: 0 | G36: 0 | H36: 0 | I36: 0 | J36: 0 | K36: 0 | L36: 0
A38: Project 2
A39: Name: REI Connection Project
A40: Capital Costs | C40: 0 | D40: 0 | E40: 0 | F40: 0 | G40: 0 | H40: 0 | I40: 0 | J40: 0 | K40: 0 | L40: 0
A41: Incremental OM&A (Start-Up) | C41: 0 | D41: 0 | E41: 0 | F41: 0 | G41: 0 | H41: 0 | I41: 0 | J41: 0 | K41: 0 | L41: 0
A42: Incremental OM&A (Ongoing) | C42: 0 | D42: 0 | E42: 0 | F42: 0 | G42: 0 | H42: 0 | I42: 0 | J42: 0 | K42: 0 | L42: 0
A44: Project 3
A45: Name: REI Connection Project
A46: Capital Costs | C46: 0 | D46: 0 | E46: 0 | F46: 0 | G46: 0 | H46: 0 | I46: 0 | J46: 0 | K46: 0 | L46: 0
A47: Incremental OM&A (Start-Up) | C47: 0 | D47: 0 | E47: 0 | F47: 0 | G47: 0 | H47: 0 | I47: 0 | J47: 0 | K47: 0 | L47: 0
A48: Incremental OM&A (Ongoing) | C48: 0 | D48: 0 | E48: 0 | F48: 0 | G48: 0 | H48: 0 | I48: 0 | J48: 0 | K48: 0 | L48: 0
A50: Project 4
A51: Name: REI Connection Project
A52: Capital Costs | C52: 0 | D52: 0 | E52: 0 | F52: 0 | G52: 0 | H52: 0 | I52: 0 | J52: 0 | K52: 0 | L52: 0
A53: Incremental OM&A (Start-Up) | C53: 0 | D53: 0 | E53: 0 | F53: 0 | G53: 0 | H53: 0 | I53: 0 | J53: 0 | K53: 0 | L53: 0
A54: Incremental OM&A (Ongoing) | C54: 0 | D54: 0 | E54: 0 | F54: 0 | G54: 0 | H54: 0 | I54: 0 | J54: 0 | K54: 0 | L54: 0
A56: Project 5
A57: Name: REI Connection Project
A58: Capital Costs | C58: 0 | D58: 0 | E58: 0 | F58: 0 | G58: 0 | H58: 0 | I58: 0 | J58: 0 | K58: 0 | L58: 0
A59: Incremental OM&A (Start-Up) | C59: 0 | D59: 0 | E59: 0 | F59: 0 | G59: 0 | H59: 0 | I59: 0 | J59: 0 | K59: 0 | L59: 0
A60: Incremental OM&A (Ongoing) | C60: 0 | D60: 0 | E60: 0 | F60: 0 | G60: 0 | H60: 0 | I60: 0 | J60: 0 | K60: 0 | L60: 0
A62: Total Capital Costs | C62: =SUM(C58,C52,C46,C40,C34) -> 0 | D62: 0 | E62: 0 | F62: 0 | G62: 0 | H62: 0 | I62: 0 | J62: 0 | K62: 0 | L62: 0
A63: Total Incremental OM&A (Start-Up) | C63: 0 | D63: 0 | E63: 0 | F63: 0 | G63: 0 | H63: 0 | I63: 0 | J63: 0 | K63: 0 | L63: 0
A64: Total Incremental OM&A (Ongoing) | C64: 0 | D64: 0 | E64: 0 | F64: 0 | G64: 0 | H64: 0 | I64: 0 | J64: 0 | K64: 0 | L64: 0
A67: Part B | H67: Test Year
A68: Expansion Investments (Direct Benefit at 17%) | C68: =D68-1 -> 2016 | D68: =E68-1 -> 2017 | E68: =F68-1 -> 2018 | F68: =G68-1 -> 2019 | G68: =H68-1 -> 2020 | H68: =H31 -> 2021 | I68: =H68+1 -> 2022 | J68: =I68+1 -> 2023 | K68: =J68+1 -> 2024 | L68: =K68+1 -> 2025
A69: Project 1
A70: Name: Expansion Connection Project
A71: Capital Costs | C71: 0 | D71: 0 | E71: 0 | F71: 0 | G71: 0 | H71: 0 | I71: 0 | J71: 0 | K71: 0 | L71: 0
A72: Incremental OM&A (Start-Up) | C72: 0 | D72: 0 | E72: 0 | F72: 0 | G72: 0 | H72: 0 | I72: 0 | J72: 0 | K72: 0 | L72: 0
A73: Incremental OM&A (Ongoing) | C73: 0 | D73: 0 | E73: 0 | F73: 0 | G73: 0 | H73: 0 | I73: 0 | J73: 0 | K73: 0 | L73: 0
A75: Project 2
A76: Name: Expansion Connection Project
A77: Capital Costs | C77: 0 | D77: 0 | E77: 0 | F77: 0 | G77: 0 | H77: 0 | I77: 0 | J77: 0 | K77: 0 | L77: 0
A78: Incremental OM&A (Start-Up) | C78: 0 | D78: 0 | E78: 0 | F78: 0 | G78: 0 | H78: 0 | I78: 0 | J78: 0 | K78: 0 | L78: 0
A79: Incremental OM&A (Ongoing) | C79: 0 | D79: 0 | E79: 0 | F79: 0 | G79: 0 | H79: 0 | I79: 0 | J79: 0 | K79: 0 | L79: 0
A81: Project 3
A82: Name: Expansion Connection Project
A83: Capital Costs | C83: 0 | D83: 0 | E83: 0 | F83: 0 | G83: 0 | H83: 0 | I83: 0 | J83: 0 | K83: 0 | L83: 0
A84: Incremental OM&A (Start-Up) | C84: 0 | D84: 0 | E84: 0 | F84: 0 | G84: 0 | H84: 0 | I84: 0 | J84: 0 | K84: 0 | L84: 0
A85: Incremental OM&A (Ongoing) | C85: 0 | D85: 0 | E85: 0 | F85: 0 | G85: 0 | H85: 0 | I85: 0 | J85: 0 | K85: 0 | L85: 0
A87: Project 4
A88: Name: Expansion Connection Project
A89: Capital Costs | C89: 0 | D89: 0 | E89: 0 | F89: 0 | G89: 0 | H89: 0 | I89: 0 | J89: 0 | K89: 0 | L89: 0
A90: Incremental OM&A (Start-Up) | C90: 0 | D90: 0 | E90: 0 | F90: 0 | G90: 0 | H90: 0 | I90: 0 | J90: 0 | K90: 0 | L90: 0
A91: Incremental OM&A (Ongoing) | C91: 0 | D91: 0 | E91: 0 | F91: 0 | G91: 0 | H91: 0 | I91: 0 | J91: 0 | K91: 0 | L91: 0
A93: Project 5
A94: Name: Expansion Connection Project
A95: Capital Costs | C95: 0 | D95: 0 | E95: 0 | F95: 0 | G95: 0 | H95: 0 | I95: 0 | J95: 0 | K95: 0 | L95: 0
A96: Incremental OM&A (Start-Up) | C96: 0 | D96: 0 | E96: 0 | F96: 0 | G96: 0 | H96: 0 | I96: 0 | J96: 0 | K96: 0 | L96: 0
A97: Incremental OM&A (Ongoing) | C97: 0 | D97: 0 | E97: 0 | F97: 0 | G97: 0 | H97: 0 | I97: 0 | J97: 0 | K97: 0 | L97: 0
A99: Total Capital Costs | C99: =SUM(C95,C89,C83,C77,C71) -> 0 | D99: 0 | E99: 0 | F99: 0 | G99: 0 | H99: 0 | I99: 0 | J99: 0 | K99: 0 | L99: 0
A100: Total Incremental OM&A (Start-Up) | C100: 0 | D100: 0 | E100: 0 | F100: 0 | G100: 0 | H100: 0 | I100: 0 | J100: 0 | K100: 0 | L100: 0
A101: Total Incremental OM&A (Ongoing) | C101: 0 | D101: 0 | E101: 0 | F101: 0 | G101: 0 | H101: 0 | I101: 0 | J101: 0 | K101: 0 | L101: 0

Sheet App.2-FB Calc of REG Improvemnt
R1: File Number: | S1: 0
R2: Exhibit:
R3: Tab:
A4: TO BE UPDATED AT DRAFT RATE ORDER STAGE | R4: Schedule:
R5: Page:
R7: Date:
A9: Appendix 2-FB
A10: Calculation of Renewable Generation Connection Direct Benefits/Provincial Amount: Renewable Enabling Improvement Investments
A12: This table will calculate the distributor/provincial shares of the investments entered in Part A of Appendix 2-FA.
A13: Enter values in green shaded cells: WCA percentage, debt percentages, interest rates, kWh, tax rates, amortization period, CCA Class and percentage.
A14: For historical investments, enter these variables that were approved in your last cost of service test year. For 2021 and beyond, enter variables as in the application.
A15: Rate Riders related to the direct benefit portion of the renewable investments are not calculated for the Test Year as these assets and costs are already in the distributor's rate base/revenue requirement.
S16: Test Year
D17: =G17-1 -> 2016 | G17: =J17-1 -> 2017 | J17: =M17-1 -> 2018 | M17: =P17-1 -> 2019 | P17: =S17-1 -> 2020 | S17: ='LDC Info'!$E$24 -> 2021 | V17: =S17+1 -> 2022 | Y17: =V17+1 -> 2023 | Z17: 2016 | AB17: =Y17+1 -> 2024 | AE17: =AB17+1 -> 2025 | AH17: =AE17+1 -> 2026
E18: Direct Benefit | F18: Provincial | H18: Direct Benefit | I18: Provincial | K18: Direct Benefit | L18: Provincial | N18: Direct Benefit | O18: Provincial | Q18: Direct Benefit | R18: Provincial | T18: Direct Benefit | U18: Provincial | W18: Direct Benefit | X18: Provincial | Z18: Direct Benefit | AA18: Provincial | AC18: Direct Benefit | AD18: Provincial | AF18: Direct Benefit | AG18: Provincial | AI18: Direct Benefit | AJ18: Provincial
D19: Total | E19: 0.06 | F19: 0.94 | G19: Total | H19: 0.06 | I19: 0.94 | J19: Total | K19: 0.06 | L19: 0.94 | M19: Total | N19: 0.06 | O19: 0.94 | P19: Total | Q19: 0.06 | R19: 0.94 | S19: Total | T19: 0.06 | U19: 0.94 | V19: Total | W19: 0.06 | X19: 0.94 | Y19: Total | Z19: 0.06 | AA19: 0.94 | AB19: Total | AC19: 0.06 | AD19: 0.94 | AE19: Total | AF19: 0.06 | AG19: 0.94 | AH19: Total | AI19: 0.06 | AJ19: 0.94
A20: Net Fixed Assets (average) | D20: =E83 -> 0 | E20: =D20*E19 -> 0 | F20: =D20*F19 -> 0 | G20: =F83 -> 0 | H20: =G20*H19 -> 0 | I20: =G20*I19 -> 0 | J20: =G83 -> 0 | K20: =J20*K19 -> 0 | L20: =J20*L19 -> 0 | M20: =H83 -> 0 | N20: =M20*N19 -> 0 | O20: =M20*O19 -> 0 | P20: =I83 -> 0 | Q20: =P20*Q19 -> 0 | R20: =P20*R19 -> 0 | S20: =J83 -> 0 | T20: =S20*T19 -> 0 | U20: =S20*U19 -> 0 | V20: =K83 -> 0 | W20: =V20*W19 -> 0 | X20: =V20*X19 -> 0 | Y20: =L83 -> 0 | Z20: =Y20*Z19 -> 0 | AA20: =Y20*AA19 -> 0 | AB20: =M83 -> 0 | AC20: =AB20*AC19 -> 0 | AD20: =AB20*AD19 -> 0 | AE20: =N83 -> 0 | AF20: =AE20*AF19 -> 0 | AG20: =AE20*AG19 -> 0 | AH20: =O83 -> 0 | AI20: =AH20*AI19 -> 0 | AJ20: =AH20*AJ19 -> 0
A21: Incremental OM&A (on-going, N/A for Provincial Recovery) | D21: 0 | E21: =D21*E19 -> 0 | F21: =D21*F19 -> 0 | G21: 0 | H21: =G21*H19 -> 0 | I21: =G21*I19 -> 0 | J21: 0 | K21: =J21*K19 -> 0 | L21: =J21*L19 -> 0 | M21: 0 | N21: =M21*N19 -> 0 | O21: =M21*O19 -> 0 | P21: 0 | Q21: =P21*Q19 -> 0 | R21: =P21*R19 -> 0 | S21: 0 | T21: =S21*T19 -> 0 | U21: =S21*U19 -> 0 | V21: 0 | W21: =V21*W19 -> 0 | X21: =V21*X19 -> 0 | Y21: 0 | Z21: =Y21*Z19 -> 0 | AA21: =Y21*AA19 -> 0 | AB21: 0 | AC21: =AB21*AC19 -> 0 | AD21: =AB21*AD19 -> 0 | AE21: 0 | AF21: =AE21*AF19 -> 0 | AG21: =AE21*AG19 -> 0 | AH21: 0 | AI21: =AH21*AI19 -> 0 | AJ21: =AH21*AJ19 -> 0
A22: Incremental OM&A (start-up, applicable for Provincial Recovery) | D22: 0 | E22: =D22*E19 -> 0 | F22: =D22*F19 -> 0 | G22: 0 | H22: =G22*H19 -> 0 | I22: =G22*I19 -> 0 | J22: 0 | K22: =J22*K19 -> 0 | L22: =J22*L19 -> 0 | M22: 0 | N22: =M22*N19 -> 0 | O22: =M22*O19 -> 0 | P22: 0 | Q22: =P22*Q19 -> 0 | R22: =P22*R19 -> 0 | S22: 0 | T22: =S22*T19 -> 0 | U22: =S22*U19 -> 0 | V22: 0 | W22: =V22*W19 -> 0 | X22: =V22*X19 -> 0 | Y22: 0 | Z22: =Y22*Z19 -> 0 | AA22: =Y22*AA19 -> 0 | AB22: 0 | AC22: =AB22*AC19 -> 0 | AD22: =AB22*AD19 -> 0 | AE22: 0 | AF22: =AE22*AF19 -> 0 | AG22: =AE22*AG19 -> 0 | AH22: 0 | AI22: =AH22*AI19 -> 0 | AJ22: =AH22*AJ19 -> 0
A23: Rebasing Year vs. Test Year | B23: ='LDC Info'!E28 -> 2015 | C23: ='LDC Info'!E24 -> 2021
A24: Allowance for Working Capital (enter rate) | E24: =IF(AND(D$17>=$B$23, D$17<$C$23),(E21+E22)*$B$24,(E21+E22)*$C$24) -> 0 | F24: =IF(AND(D$17>=$B$23, D$17<$C$23),(F22)*$B$24,(F22)*$C$24) -> 0 | H24: =IF(AND(G$17>=$B$23, G$17<$C$23),(H21+H22)*$B$24,(H21+H22)*$C$24) -> 0 | I24: =IF(AND(G$17>=$B$23, G$17<$C$23),(I22)*$B$24,(I22)*$C$24) -> 0 | K24: =IF(AND(J$17>=$B$23, J$17<$C$23),(K21+K22)*$B$24,(K21+K22)*$C$24) -> 0 | L24: =IF(AND(J$17>=$B$23, J$17<$C$23),(L22)*$B$24,(L22)*$C$24) -> 0 | N24: =IF(AND(M$17>=$B$23, M$17<$C$23),(N21+N22)*$B$24,(N21+N22)*$C$24) -> 0 | O24: =IF(AND(M$17>=$B$23, M$17<$C$23),(O22)*$B$24,(O22)*$C$24) -> 0 | Q24: =IF(AND(P$17>=$B$23, P$17<$C$23),(Q21+Q22)*$B$24,(Q21+Q22)*$C$24) -> 0 | R24: =IF(AND(P$17>=$B$23, P$17<$C$23),(R22)*$B$24,(R22)*$C$24) -> 0 | T24: =IF(AND(S$17>=$B$23, S$17<$C$23),(T21+T22)*$B$24,(T21+T22)*$C$24) -> 0 | U24: =IF(AND(S$17>=$B$23, S$17<$C$23),(U22)*$B$24,(U22)*$C$24) -> 0 | W24: =IF(AND(V$17>=$B$23, V$17<$C$23),(W21+W22)*$B$24,(W21+W22)*$C$24) -> 0 | X24: =IF(AND(V$17>=$B$23, V$17<$C$23),(X22)*$B$24,(X22)*$C$24) -> 0 | Z24: =IF(AND(Y$17>=$B$23, Y$17<$C$23),(Z21+Z22)*$B$24,(Z21+Z22)*$C$24) -> 0 | AA24: =IF(AND(Y$17>=$B$23, Y$17<$C$23),(AA22)*$B$24,(AA22)*$C$24) -> 0 | AC24: =IF(AND(AB$17>=$B$23, AB$17<$C$23),(AC21+AC22)*$B$24,(AC21+AC22)*$C$24) -> 0 | AD24: =IF(AND(AB$17>=$B$23, AB$17<$C$23),(AD22)*$B$24,(AD22)*$C$24) -> 0 | AF24: =IF(AND(AE$17>=$B$23, AE$17<$C$23),(AF21+AF22)*$B$24,(AF21+AF22)*$C$24) -> 0 | AG24: =IF(AND(AE$17>=$B$23, AE$17<$C$23),(AG22)*$B$24,(AG22)*$C$24) -> 0 | AI24: =IF(AND(AH$17>=$B$23, AH$17<$C$23),(AI21+AI22)*$B$24,(AI21+AI22)*$C$24) -> 0 | AJ24: =IF(AND(AH$17>=$B$23, AH$17<$C$23),(AJ22)*$B$24,(AJ22)*$C$24) -> 0
A25: Rate Base | E25: =SUM(E20+E24) -> 0 | F25: =SUM(F20+F24) -> 0 | H25: =SUM(H20+H24) -> 0 | I25: =SUM(I20+I24) -> 0 | K25: =SUM(K20+K24) -> 0 | L25: =SUM(L20+L24) -> 0 | N25: =SUM(N20+N24) -> 0 | O25: =SUM(O20+O24) -> 0 | Q25: =SUM(Q20+Q24) -> 0 | R25: =SUM(R20+R24) -> 0 | T25: =SUM(T20+T24) -> 0 | U25: =SUM(U20+U24) -> 0 | W25: =SUM(W20+W24) -> 0 | X25: =SUM(X20+X24) -> 0 | Z25: =SUM(Z20+Z24) -> 0 | AA25: =SUM(AA20+AA24) -> 0 | AC25: =SUM(AC20+AC24) -> 0 | AD25: =SUM(AD20+AD24) -> 0 | AF25: =SUM(AF20+AF24) -> 0 | AG25: =SUM(AG20+AG24) -> 0 | AI25: =SUM(AI20+AI24) -> 0 | AJ25: =SUM(AJ20+AJ24) -> 0
A27: Rebasing Year vs. Test Year | B27: =B23 -> 2015 | C27: =C23 -> 2021
A28: Deemed ST Debt | B28: 0.04 | C28: 0.04 | E28: =E25*$B$28 -> 0 | F28: =F25*$B$28 -> 0 | H28: =H25*$B$28 -> 0 | I28: =I25*$B$28 -> 0 | K28: =K25*$B$28 -> 0 | L28: =L25*$B$28 -> 0 | N28: =N25*$B$28 -> 0 | O28: =O25*$B$28 -> 0 | Q28: =Q25*$B$28 -> 0 | R28: =R25*$B$28 -> 0 | T28: =T25*$C$28 -> 0 | U28: =U25*$C$28 -> 0 | W28: =W25*$C$28 -> 0 | X28: =X25*$C$28 -> 0 | Z28: =Z25*$C$28 -> 0 | AA28: =AA25*$C$28 -> 0 | AC28: =AC25*$C$28 -> 0 | AD28: =AD25*$C$28 -> 0 | AF28: =AF25*$C$28 -> 0 | AG28: =AG25*$C$28 -> 0 | AI28: =AI25*$C$28 -> 0 | AJ28: =AJ25*$C$28 -> 0
A29: Deemed LT Debt | B29: 0.56 | C29: 0.56 | E29: =E25*$B$29 -> 0 | F29: =F25*$B$29 -> 0 | H29: =H25*$B$29 -> 0 | I29: =I25*$B$29 -> 0 | K29: =K25*$B$29 -> 0 | L29: =L25*$B$29 -> 0 | N29: =N25*$B$29 -> 0 | O29: =O25*$B$29 -> 0 | Q29: =Q25*$B$29 -> 0 | R29: =R25*$B$29 -> 0 | T29: =T25*$C$29 -> 0 | U29: =U25*$C$29 -> 0 | W29: =W25*$C$29 -> 0 | X29: =X25*$C$29 -> 0 | Z29: =Z25*$C$29 -> 0 | AA29: =AA25*$C$29 -> 0 | AC29: =AC25*$C$29 -> 0 | AD29: =AD25*$C$29 -> 0 | AF29: =AF25*$C$29 -> 0 | AG29: =AG25*$C$29 -> 0 | AI29: =AI25*$C$29 -> 0 | AJ29: =AJ25*$C$29 -> 0
A30: Deemed Equity | B30: 0.4 | C30: 0.4 | E30: =E25*$B$30 -> 0 | F30: =F25*$B$30 -> 0 | H30: =H25*$B$30 -> 0 | I30: =I25*$B$30 -> 0 | K30: =K25*$B$30 -> 0 | L30: =L25*$B$30 -> 0 | N30: =N25*$B$30 -> 0 | O30: =O25*$B$30 -> 0 | Q30: =Q25*$B$30 -> 0 | R30: =R25*$B$30 -> 0 | T30: =T25*$C$30 -> 0 | U30: =U25*$C$30 -> 0 | W30: =W25*$C$30 -> 0 | X30: =X25*$C$30 -> 0 | Z30: =Z25*$C$30 -> 0 | AA30: =AA25*$C$30 -> 0 | AC30: =AC25*$C$30 -> 0 | AD30: =AD25*$C$30 -> 0 | AF30: =AF25*$C$30 -> 0 | AG30: =AG25*$C$30 -> 0 | AI30: =AI25*$C$30 -> 0 | AJ30: =AJ25*$C$30 -> 0
A32: ST Interest (enter rate) | E32: =E28*$B32 -> 0 | F32: 0 | H32: 0 | I32: 0 | K32: 0 | L32: 0 | N32: 0 | O32: 0 | Q32: 0 | R32: 0 | T32: =T28*$C32 -> 0 | U32: 0 | W32: =W28*$C32 -> 0 | X32: 0 | Z32: =Z28*$C32 -> 0 | AA32: 0 | AC32: =AC28*$C32 -> 0 | AD32: 0 | AF32: =AF28*$C32 -> 0 | AG32: 0 | AI32: =AI28*$C32 -> 0 | AJ32: 0
A33: LT Interest (enter rate) | E33: 0 | F33: 0 | H33: 0 | I33: 0 | K33: 0 | L33: 0 | N33: 0 | O33: 0 | Q33: 0 | R33: 0 | T33: 0 | U33: 0 | W33: 0 | X33: 0 | Z33: 0 | AA33: 0 | AC33: 0 | AD33: 0 | AF33: 0 | AG33: 0 | AI33: =AI29*$C33 -> 0 | AJ33: 0
A34: Return on Equity (enter rate) | E34: 0 | F34: 0 | H34: 0 | I34: 0 | K34: 0 | L34: 0 | N34: 0 | O34: 0 | Q34: 0 | R34: 0 | T34: 0 | U34: 0 | W34: 0 | X34: 0 | Z34: 0 | AA34: 0 | AC34: 0 | AD34: 0 | AF34: 0 | AG34: 0 | AI34: =AI30*$C34 -> 0 | AJ34: 0
A35: Cost of Capital Total | E35: =SUM(E32:E34) -> 0 | F35: =SUM(F32:F34) -> 0 | H35: =SUM(H32:H34) -> 0 | I35: =SUM(I32:I34) -> 0 | K35: =SUM(K32:K34) -> 0 | L35: =SUM(L32:L34) -> 0 | N35: =SUM(N32:N34) -> 0 | O35: =SUM(O32:O34) -> 0 | Q35: =SUM(Q32:Q34) -> 0 | R35: =SUM(R32:R34) -> 0 | T35: =SUM(T32:T34) -> 0 | U35: =SUM(U32:U34) -> 0 | W35: =SUM(W32:W34) -> 0 | X35: =SUM(X32:X34) -> 0 | Z35: =SUM(Z32:Z34) -> 0 | AA35: =SUM(AA32:AA34) -> 0 | AC35: =SUM(AC32:AC34) -> 0 | AD35: =SUM(AD32:AD34) -> 0 | AF35: =SUM(AF32:AF34) -> 0 | AG35: =SUM(AG32:AG34) -> 0 | AI35: =SUM(AI32:AI34) -> 0 | AJ35: =SUM(AJ32:AJ34) -> 0
A37: OM&A | E37: =E21+E22 -> 0 | F37: =F22 -> 0 | H37: =H21+H22 -> 0 | I37: =I22 -> 0 | K37: =K21+K22 -> 0 | L37: =L22 -> 0 | N37: =N21+N22 -> 0 | O37: =O22 -> 0 | Q37: =Q21+Q22 -> 0 | R37: =R22 -> 0 | T37: =T21+T22 -> 0 | U37: =U22 -> 0 | W37: =W21+W22 -> 0 | X37: =X22 -> 0 | Z37: =Z21+Z22 -> 0 | AA37: =AA22 -> 0 | AC37: =AC21+AC22 -> 0 | AD37: =AD22 -> 0 | AF37: =AF21+AF22 -> 0 | AG37: =AG22 -> 0 | AI37: =AI21+AI22 -> 0 | AJ37: =AJ22 -> 0
A38: Amortization | D38: =+E77+E78 -> 0 | E38: =D38*E$19 -> 0 | F38: =D38*F$19 -> 0 | G38: =+F77+F78 -> 0 | H38: =G38*H$19 -> 0 | I38: =G38*I$19 -> 0 | J38: =+G77+G78 -> 0 | K38: =J38*K$19 -> 0 | L38: =J38*L$19 -> 0 | M38: =+H77+H78 -> 0 | N38: =M38*N$19 -> 0 | O38: =M38*O$19 -> 0 | P38: =+I77+I78 -> 0 | Q38: =P38*Q$19 -> 0 | R38: =P38*R$19 -> 0 | S38: =+J77+J78 -> 0 | T38: =S38*T$19 -> 0 | U38: =S38*U$19 -> 0 | V38: =+K77+K78 -> 0 | W38: =V38*W$19 -> 0 | X38: =V38*X$19 -> 0 | Y38: =+L77+L78 -> 0 | Z38: =Y38*Z$19 -> 0 | AA38: =Y38*AA$19 -> 0 | AB38: =+M77+M78 -> 0 | AC38: =AB38*AC$19 -> 0 | AD38: =AB38*AD$19 -> 0 | AE38: =+N77+N78 -> 0 | AF38: =AE38*AF$19 -> 0 | AG38: =AE38*AG$19 -> 0 | AH38: =+O77+O78 -> 0 | AI38: =AH38*AI$19 -> 0 | AJ38: =AH38*AJ$19 -> 0
A39: Grossed-up PILs | E39: =+E66 -> 0 | F39: =+F66 -> 0 | H39: =+H66 -> 0 | I39: =+I66 -> 0 | K39: =+K66 -> 0 | L39: =+L66 -> 0 | N39: =+N66 -> 0 | O39: =+O66 -> 0 | Q39: =+Q66 -> 0 | R39: =+R66 -> 0 | T39: =+T66 -> 0 | U39: =+U66 -> 0 | W39: =+W66 -> 0 | X39: =+X66 -> 0 | Z39: =+Z66 -> 0 | AA39: =+AA66 -> 0 | AC39: =+AC66 -> 0 | AD39: =+AD66 -> 0 | AF39: =+AF66 -> 0 | AG39: =+AG66 -> 0 | AI39: =+AI66 -> 0 | AJ39: =+AJ66 -> 0
A41: Revenue Requirement | E41: =SUM(E35:E39) -> 0 | F41: =SUM(F35:F39) -> 0 | H41: =SUM(H35:H39) -> 0 | I41: 0 | K41: =SUM(K35:K39) -> 0 | L41: 0 | N41: =SUM(N35:N39) -> 0 | O41: 0 | Q41: =SUM(Q35:Q39) -> 0 | R41: 0 | T41: =SUM(T35:T39) -> 0 | U41: 0 | W41: =SUM(W35:W39) -> 0 | X41: 0 | Z41: =SUM(Z35:Z39) -> 0 | AA41: 0 | AC41: =SUM(AC35:AC39) -> 0 | AD41: 0 | AF41: =SUM(AF35:AF39) -> 0 | AG41: 0 | AI41: =SUM(AI35:AI39) -> 0 | AJ41: 0
A44: Provincial Rate Protection | F44: =F41 -> 0 | I44: =I41 -> 0 | L44: =L41 -> 0 | O44: =O41 -> 0 | R44: =R41 -> 0 | U44: =U41 -> 0 | X44: =X41 -> 0 | AA44: =AA41 -> 0 | AD44: =AD41 -> 0 | AG44: =AG41 -> 0 | AJ44: =AJ41 -> 0
A46: Monthly Amount Paid by IESO | F46: =F44/12 -> 0 | I46: =I44/12 -> 0 | L46: =L44/12 -> 0 | O46: =O44/12 -> 0 | R46: =R44/12 -> 0 | U46: =U44/12 -> 0 | X46: =X44/12 -> 0 | AA46: =AA44/12 -> 0 | AD46: =AD44/12 -> 0 | AG46: =AG44/12 -> 0 | AJ46: =AJ44/12 -> 0
A48: Note 1: The distributor should follow the regulatory accounting set out in the Accounting Procedure Handbook Guidance FAQs issued in March 2015. Q10 of the APH FAQs states that: “For approved eligible investments as defined under O.Reg. 330/09 under the OEB Act, a variance account will continue to be used for the purpose of recording variances between the revenue requirement based on actual costs of approved eligible investments and the revenue received from the IESO.” The answer for Q10 provides the accounting guidance for this variance account: “Distributors that have included eligible investments to connect qualifying facilities in their DS plans are to establish the variance Account 1533 Renewable Generation Connection Funding Adder Deferral Account, Sub-account Provincial Rate Protection Payment Variances following OEB approval for investments forecast to enter service beyond the test year for purposes of implementing rate protection pursuant to O.Reg. 330/09. The purpose of this variance account is to track the variance between the distributor’s revenue requirement associated with the portion of the actual capital and/or operating costs that are eligible for rate protection, as incurred by the distributor for eligible renewable enabling and expansion investments, and the rate protection payments collected from the IESO.” The answer further provides the journal entries to record the variances. Distributors should follow the instructions in the answer for recording the journal entries in the variance account 1533.
A50: Note 2: For the Test Year, Costs and Revenues of the Direct Benefit are to be included in the test year applicant Rate Base and Revenues.
A52: PILs Calculation | T52: Test Year
E53: =G17-1 -> 2016 | H53: =G17 -> 2017 | K53: =J17 -> 2018 | N53: =M17 -> 2019 | Q53: =P17 -> 2020 | T53: =S17 -> 2021 | W53: =V17 -> 2022 | Z53: =Y17 -> 2023 | AC53: =AB17 -> 2024 | AF53: =AE17 -> 2025 | AI53: =AH17 -> 2026
A54: Income Tax | E54: Direct Benefit | F54: Provincial | H54: Direct Benefit | I54: Provincial | K54: Direct Benefit | L54: Provincial | N54: Direct Benefit | O54: Provincial | Q54: Direct Benefit | R54: Provincial | T54: Direct Benefit | U54: Provincial | W54: Direct Benefit | X54: Provincial | Z54: Direct Benefit | AA54: Provincial | AC54: Direct Benefit | AD54: Provincial | AF54: Direct Benefit | AG54: Provincial | AI54: Direct Benefit | AJ54: Provincial
AB55: Total | AE55: Total | AH55: Total
A56: Net Income - ROE on Rate Base | E56: =E34 -> 0 | F56: =F34 -> 0 | H56: =H34 -> 0 | I56: =I34 -> 0 | K56: =K34 -> 0 | L56: =L34 -> 0 | N56: =N34 -> 0 | O56: =O34 -> 0 | Q56: =Q34 -> 0 | R56: =R34 -> 0 | T56: =T34 -> 0 | U56: =U34 -> 0 | W56: =W34 -> 0 | X56: =X34 -> 0 | Z56: =Z34 -> 0 | AA56: =AA34 -> 0 | AC56: =AC34 -> 0 | AD56: =AD34 -> 0 | AF56: =AF34 -> 0 | AG56: =AG34 -> 0 | AI56: =AI34 -> 0 | AJ56: =AJ34 -> 0
A57: Amortization (6% DB and 94% P) | E57: =E38 -> 0 | F57: =F38 -> 0 | H57: =H38 -> 0 | I57: =I38 -> 0 | K57: =K38 -> 0 | L57: =L38 -> 0 | N57: =N38 -> 0 | O57: =O38 -> 0 | Q57: =Q38 -> 0 | R57: =R38 -> 0 | T57: =T38 -> 0 | U57: =U38 -> 0 | W57: =W38 -> 0 | X57: =X38 -> 0 | Z57: =Z38 -> 0 | AA57: =AA38 -> 0 | AC57: =AC38 -> 0 | AD57: =AD38 -> 0 | AF57: =AF38 -> 0 | AG57: =AG38 -> 0 | AI57: =AI38 -> 0 | AJ57: =AJ38 -> 0
A58: CCA (6% DB and 94% P) | E58: =-E95*$E$19 -> 0 | F58: =-E95*$F$19 -> 0 | H58: =-F95*$E$19 -> 0 | I58: =-F95*$F$19 -> 0 | K58: =-G95*$E$19 -> 0 | L58: =-G95*$F$19 -> 0 | N58: =-H95*$E$19 -> 0 | O58: =-H95*$F$19 -> 0 | Q58: =-I95*$E$19 -> 0 | R58: =-I95*$F$19 -> 0 | T58: =-J95*$E$19 -> 0 | U58: =-J95*$F$19 -> 0 | W58: =-K95*$E$19 -> 0 | X58: =-K95*$F$19 -> 0 | Z58: =-L95*$E$19 -> 0 | AA58: =-L95*$F$19 -> 0 | AC58: =-M95*$E$19 -> 0 | AD58: =-M95*$F$19 -> 0 | AF58: =-N95*$E$19 -> 0 | AG58: =-N95*$F$19 -> 0 | AI58: =-Q95*$E$19 -> 0 | AJ58: =-Q95*$F$19 -> 0
A59: Taxable income | E59: =SUM(E56:E58) -> 0 | F59: =SUM(F56:F58) -> 0 | H59: =SUM(H56:H58) -> 0 | I59: 0 | K59: =SUM(K56:K58) -> 0 | L59: 0 | N59: =SUM(N56:N58) -> 0 | O59: 0 | Q59: =SUM(Q56:Q58) -> 0 | R59: 0 | T59: =SUM(T56:T58) -> 0 | U59: 0 | W59: =SUM(W56:W58) -> 0 | X59: 0 | Z59: =SUM(Z56:Z58) -> 0 | AA59: =SUM(AA56:AA58) -> 0 | AC59: =SUM(AC56:AC58) -> 0 | AD59: =SUM(AD56:AD58) -> 0 | AF59: =SUM(AF56:AF58) -> 0 | AG59: =SUM(AG56:AG58) -> 0 | AI59: =SUM(AI56:AI58) -> 0 | AJ59: =SUM(AJ56:AJ58) -> 0
B60: =B27 -> 2015 | C60: =C27 -> 2021
A61: Tax Rate (to be entered) | E61: =IF(AND(E$53>=$B$60, E$53<$C$60),$B$61,$C$61) -> 0 | F61: =IF(AND(E$53>=$B$60, E$53<$C$60),$B$61,$C$61) -> 0 | H61: =IF(AND(H$53>=$B$60, H$53<$C$60),$B$61,$C$61) -> 0 | I61: =IF(AND(H$53>=$B$60, H$53<$C$60),$B$61,$C$61) -> 0 | K61: =IF(AND(K$53>=$B$60, K$53<$C$60),$B$61,$C$61) -> 0 | L61: =IF(AND(K$53>=$B$60, K$53<$C$60),$B$61,$C$61) -> 0 | N61: =IF(AND(N$53>=$B$60, N$53<$C$60),$B$61,$C$61) -> 0 | O61: =IF(AND(N$53>=$B$60, N$53<$C$60),$B$61,$C$61) -> 0 | Q61: =IF(AND(Q$53>=$B$60, Q$53<$C$60),$B$61,$C$61) -> 0 | R61: =IF(AND(Q$53>=$B$60, Q$53<$C$60),$B$61,$C$61) -> 0 | T61: =IF(AND(T$53>=$B$60, T$53<$C$60),$B$61,$C$61) -> 0 | U61: =IF(AND(T$53>=$B$60, T$53<$C$60),$B$61,$C$61) -> 0 | W61: =IF(AND(W$53>=$B$60, W$53<$C$60),$B$61,$C$61) -> 0 | X61: =IF(AND(W$53>=$B$60, W$53<$C$60),$B$61,$C$61) -> 0 | Z61: =IF(AND(Z$53>=$B$60, Z$53<$C$60),$B$61,$C$61) -> 0 | AA61: =IF(AND(Z$53>=$B$60, Z$53<$C$60),$B$61,$C$61) -> 0 | AC61: =IF(AND(AC$53>=$B$60, AC$53<$C$60),$B$61,$C$61) -> 0 | AD61: =IF(AND(AC$53>=$B$60, AC$53<$C$60),$B$61,$C$61) -> 0 | AF61: =IF(AND(AF$53>=$B$60, AF$53<$C$60),$B$61,$C$61) -> 0 | AG61: =IF(AND(AF$53>=$B$60, AF$53<$C$60),$B$61,$C$61) -> 0 | AI61: =IF(AND(AI$53>=$B$60, AI$53<$C$60),$B$61,$C$61) -> 0 | AJ61: =IF(AND(AI$53>=$B$60, AI$53<$C$60),$B$61,$C$61) -> 0
A63: Income Taxes Payable | E63: =E59*E61 -> 0 | F63: =F59*F61 -> 0 | H63: =H59*H61 -> 0 | I63: =I59*I61 -> 0 | K63: =K59*K61 -> 0 | L63: =L59*L61 -> 0 | N63: =N59*N61 -> 0 | O63: =O59*O61 -> 0 | Q63: =Q59*Q61 -> 0 | R63: =R59*R61 -> 0 | T63: =T59*T61 -> 0 | U63: =U59*U61 -> 0 | W63: =W59*W61 -> 0 | X63: =X59*X61 -> 0 | Z63: =Z59*Z61 -> 0 | AA63: =AA59*AA61 -> 0 | AC63: =AC59*AC61 -> 0 | AD63: =AD59*AD61 -> 0 | AF63: =AF59*AF61 -> 0 | AG63: =AG59*AG61 -> 0 | AI63: =AI59*AI61 -> 0 | AJ63: =AJ59*AJ61 -> 0
A64: Gross Up
A65: Income Taxes Payable | E65: =E63/(1-E61) -> 0 | F65: =F63/(1-F61) -> 0 | H65: =H63/(1-H61) -> 0 | I65: =I63/(1-I61) -> 0 | K65: =K63/(1-K61) -> 0 | L65: =L63/(1-L61) -> 0 | N65: =N63/(1-N61) -> 0 | O65: =O63/(1-O61) -> 0 | Q65: =Q63/(1-Q61) -> 0 | R65: =R63/(1-R61) -> 0 | T65: =T63/(1-T61) -> 0 | U65: =U63/(1-U61) -> 0 | W65: =W63/(1-W61) -> 0 | X65: =X63/(1-X61) -> 0 | Z65: =Z63/(1-Z61) -> 0 | AA65: =AA63/(1-AA61) -> 0 | AC65: =AC63/(1-AC61) -> 0 | AD65: =AD63/(1-AD61) -> 0 | AF65: =AF63/(1-AF61) -> 0 | AG65: =AG63/(1-AG61) -> 0 | AI65: =AI63/(1-AI61) -> 0 | AJ65: =AJ63/(1-AJ61) -> 0
A66: Grossed Up PILs | E66: =+E65 -> 0 | F66: =+F65 -> 0 | H66: =+H65 -> 0 | I66: =+I65 -> 0 | K66: =+K65 -> 0 | L66: 0 | N66: =+N65 -> 0 | O66: 0 | Q66: =+Q65 -> 0 | R66: 0 | T66: =+T65 -> 0 | U66: 0 | W66: =+W65 -> 0 | X66: 0 | Z66: =+Z65 -> 0 | AA66: 0 | AC66: =+AC65 -> 0 | AD66: 0 | AF66: =+AF65 -> 0 | AG66: 0 | AI66: =+AI65 -> 0 | AJ66: 0
J68: Test Year
E69: =F69-1 -> 2016 | F69: =G69-1 -> 2017 | G69: =H69-1 -> 2018 | H69: =I69-1 -> 2019 | I69: =J69-1 -> 2020 | J69: ='LDC Info'!E24 -> 2021 | K69: =J69+1 -> 2022 | L69: =K69+1 -> 2023 | M69: =L69+1 -> 2024 | N69: =M69+1 -> 2025 | O69: =N69+1 -> 2026
A70: Net Fixed Assets
A71: Enter applicable amortization in years: | B71: 40
A72: Opening Gross Fixed Assets | F72: =E74 -> 0 | G72: 0 | H72: 0 | I72: 0 | J72: 0 | K72: 0 | L72: 0 | M72: 0 | N72: 0 | O72: 0
A73: Capital Additions | E73: ='App.2-FA Proposed REG Invest.'!C62 -> 0 | F73: ='App.2-FA Proposed REG Invest.'!D62 -> 0 | G73: ='App.2-FA Proposed REG Invest.'!E62 -> 0 | H73: ='App.2-FA Proposed REG Invest.'!F62 -> 0 | I73: ='App.2-FA Proposed REG Invest.'!G62 -> 0 | J73: ='App.2-FA Proposed REG Invest.'!H62 -> 0 | K73: ='App.2-FA Proposed REG Invest.'!I62 -> 0 | L73: ='App.2-FA Proposed REG Invest.'!J62 -> 0 | M73: ='App.2-FA Proposed REG Invest.'!K62 -> 0 | N73: ='App.2-FA Proposed REG Invest.'!L62 -> 0 | O73: ='App.2-FA Proposed REG Invest.'!M62 -> 0
A74: Closing Gross Fixed Assets | E74: =SUM(E72:E73) -> 0 | F74: 0 | G74: 0 | H74: 0 | I74: 0 | J74: 0 | K74: 0 | L74: 0 | M74: 0 | N74: 0 | O74: =SUM(O72:O73) -> 0
A76: Opening Accumulated Amortization | F76: =+E79 -> 0 | G76: =+F79 -> 0 | H76: 0 | I76: 0 | J76: 0 | K76: 0 | L76: 0 | M76: 0 | N76: 0 | O76: 0
A77: Current Year Amortization (before additions) | E77: =IF(ISERROR(E72/$B$71), 0, E72/$B$71) -> 0 | F77: =IF(ISERROR(F72/$B$71), 0, F72/$B$71) -> 0 | G77: 0 | H77: 0 | I77: 0 | J77: 0 | K77: 0 | L77: 0 | M77: 0 | N77: 0 | O77: =IF(ISERROR(O72/$B$71), 0, O72/$B$71) -> 0
A78: Capital Additions Amortization (half year) | E78: =E73/$B$71/2 -> 0 | F78: =F73/$B$71/2 -> 0 | G78: 0 | H78: 0 | I78: 0 | J78: 0 | K78: 0 | L78: 0 | M78: 0 | N78: 0 | O78: =O73/$B$71/2 -> 0
A79: Closing Accumulated Amortization | E79: =SUM(E76+E77+E78) -> 0 | F79: 0 | G79: 0 | H79: 0 | I79: 0 | J79: 0 | K79: 0 | L79: 0 | M79: 0 | N79: 0 | O79: =SUM(O76+O77+O78) -> 0
A81: Opening Net Fixed Assets | E81: =E72-E76 -> 0 | F81: 0 | G81: 0 | H81: 0 | I81: 0 | J81: 0 | K81: 0 | L81: 0 | M81: 0 | N81: 0 | O81: =O72-O76 -> 0
A82: Closing Net Fixed Assets | E82: =E74-E79 -> 0 | F82: 0 | G82: 0 | H82: 0 | I82: 0 | J82: 0 | K82: 0 | L82: 0 | M82: 0 | N82: 0 | O82: =O74-O79 -> 0
A83: Average Net Fixed Assets | E83: =SUM(E81:E82)/2 -> 0 | F83: 0 | G83: 0 | H83: 0 | I83: 0 | J83: 0 | K83: 0 | L83: 0 | M83: 0 | N83: 0 | O83: =SUM(O81:O82)/2 -> 0
A85: UCC for PILs Calculation | J85: Test Year
E86: =E69 -> 2016 | F86: =F69 -> 2017 | G86: =G69 -> 2018 | H86: 2019 | I86: 2020 | J86: 2021 | K86: 2022 | L86: 2023 | M86: 2024 | N86: 2025 | O86: =O69 -> 2026
A88: Opening UCC | E88: =E72 -> 0 | F88: =E96 -> 0 | G88: 0 | H88: 0 | I88: 0 | J88: 0 | K88: 0 | L88: 0 | M88: 0 | N88: 0 | O88: 0
A89: Capital Additions | E89: =E73 -> 0 | F89: 0 | G89: 0 | H89: 0 | I89: 0 | J89: 0 | K89: 0 | L89: 0 | M89: 0 | N89: 0 | O89: =O73 -> 0
A90: UCC Before Half Year Rule | E90: =SUM(E88:E89) -> 0 | F90: 0 | G90: 0 | H90: 0 | I90: 0 | J90: 0 | K90: 0 | L90: 0 | M90: 0 | N90: 0 | O90: =SUM(O88:O89) -> 0
A91: Capital Additions (half year) | E91: =E89/2 -> 0 | F91: 0 | G91: 0 | H91: 0 | I91: 0 | J91: 0 | K91: 0 | L91: 0 | M91: 0 | N91: 0 | O91: =O89/2 -> 0
A92: Reduced UCC | E92: =E90-E91 -> 0 | F92: 0 | G92: 0 | H92: 0 | I92: 0 | J92: 0 | K92: 0 | L92: 0 | M92: 0 | N92: 0 | O92: =O90-O91 -> 0
A93: CCA Rate Class (to be entered)
A94: CCA Rate (to be entered)
A95: CCA | E95: =E92*$B$94 -> 0 | F95: =F92*$B$94 -> 0 | G95: 0 | H95: 0 | I95: 0 | J95: 0 | K95: 0 | L95: 0 | M95: 0 | N95: 0 | O95: =O92*$B$94 -> 0
A96: Closing UCC | E96: =E90-E95 -> 0 | F96: 0 | G96: 0 | H96: 0 | I96: 0 | J96: 0 | K96: 0 | L96: 0 | M96: 0 | N96: 0 | O96: =O90-O95 -> 0

Sheet App.2-FC Calc of REG Expansion
R1: File Number: | S1: 0
R2: Exhibit:
R3: Tab:
A4: TO BE UPDATED AT DRAFT RATE ORDER STAGE | R4: Schedule:
R5: Page:
R7: Date:
A9: Appendix 2-FC
A10: Calculation of Renewable Generation Connection Direct Benefits/Provincial Amount: Renewable Expansion Investments
A12: This table will calculate the distributor/provincial shares of the investments entered in Part B of Appendix 2-FA.
A13: Enter values in green shaded cells: WCA percentage, debt percentages, interest rates, kWh, tax rates, amortization period, CCA Class and percentage.
A14: For historical investments, enter these variables that were approved in your last cost of service test year. For 2021 and beyond, enter variables as in the application.
A15: Rate Riders related to the direct benefit portion of the renewable investments are not calculated for the Test Year as these assets and costs are already in the distributor's rate base/revenue requirement.
S16: Test Year
D17: =G17-1 -> 2016 | G17: =J17-1 -> 2017 | J17: =M17-1 -> 2018 | M17: =P17-1 -> 2019 | P17: =S17-1 -> 2020 | S17: ='LDC Info'!$E$24 -> 2021 | V17: =S17+1 -> 2022 | Y17: =V17+1 -> 2023 | Z17: 2016 | AB17: =Y17+1 -> 2024 | AE17: =AB17+1 -> 2025 | AH17: =AE17+1 -> 2026
E18: Direct Benefit | F18: Provincial | H18: Direct Benefit | I18: Provincial | K18: Direct Benefit | L18: Provincial | N18: Direct Benefit | O18: Provincial | Q18: Direct Benefit | R18: Provincial | T18: Direct Benefit | U18: Provincial | W18: Direct Benefit | X18: Provincial | Z18: Direct Benefit | AA18: Provincial | AC18: Direct Benefit | AD18: Provincial | AF18: Direct Benefit | AG18: Provincial | AI18: Direct Benefit | AJ18: Provincial
D19: Total | E19: 0.17 | F19: 0.83 | G19: Total | H19: 0.17 | I19: 0.83 | J19: Total | K19: 0.17 | L19: 0.83 | M19: Total | N19: 0.17 | O19: 0.83 | P19: Total | Q19: 0.17 | R19: 0.83 | S19: Total | T19: 0.17 | U19: 0.83 | V19: Total | W19: 0.17 | X19: 0.83 | Y19: Total | Z19: 0.17 | AA19: 0.83 | AB19: Total | AC19: 0.17 | AD19: 0.83 | AE19: Total | AF19: 0.17 | AG19: 0.83 | AH19: Total | AI19: 0.17 | AJ19: 0.83
A20: Net Fixed Assets (average) | D20: =E83 -> 0 | E20: =D20*E19 -> 0 | F20: =D20*F19 -> 0 | G20: =F83 -> 0 | H20: =G20*H19 -> 0 | I20: =G20*I19 -> 0 | J20: =G83 -> 0 | K20: =J20*K19 -> 0 | L20: =J20*L19 -> 0 | M20: =H83 -> 0 | N20: =M20*N19 -> 0 | O20: =M20*O19 -> 0 | P20: =I83 -> 0 | Q20: =P20*Q19 -> 0 | R20: =P20*R19 -> 0 | S20: =J83 -> 0 | T20: =S20*T19 -> 0 | U20: =S20*U19 -> 0 | V20: =K83 -> 0 | W20: =V20*W19 -> 0 | X20: =V20*X19 -> 0 | Y20: =L83 -> 0 | Z20: =Y20*Z19 -> 0 | AA20: =Y20*AA19 -> 0 | AB20: =M83 -> 0 | AC20: =AB20*AC19 -> 0 | AD20: =AB20*AD19 -> 0 | AE20: =N83 -> 0 | AF20: =AE20*AF19 -> 0 | AG20: =AE20*AG19 -> 0 | AH20: =O83 -> 0 | AI20: =AH20*AI19 -> 0 | AJ20: =AH20*AJ19 -> 0
A21: Incremental OM&A (on-going, N/A for Provincial Recovery) | D21: 0 | E21: =D21*E19 -> 0 | F21: =D21*F19 -> 0 | G21: 0 | H21: =G21*H19 -> 0 | I21: =G21*I19 -> 0 | J21: 0 | K21: =J21*K19 -> 0 | L21: =J21*L19 -> 0 | M21: 0 | N21: =M21*N19 -> 0 | O21: =M21*O19 -> 0 | P21: 0 | Q21: =P21*Q19 -> 0 | R21: =P21*R19 -> 0 | S21: 0 | T21: =S21*T19 -> 0 | U21: =S21*U19 -> 0 | V21: 0 | W21: =V21*W19 -> 0 | X21: =V21*X19 -> 0 | Y21: 0 | Z21: =Y21*Z19 -> 0 | AA21: =Y21*AA19 -> 0 | AB21: 0 | AC21: =AB21*AC19 -> 0 | AD21: =AB21*AD19 -> 0 | AE21: 0 | AF21: =AE21*AF19 -> 0 | AG21: =AE21*AG19 -> 0 | AH21: 0 | AI21: =AH21*AI19 -> 0 | AJ21: =AH21*AJ19 -> 0
A22: Incremental OM&A (start-up, applicable for Provincial Recovery) | D22: 0 | E22: =D22*E19 -> 0 | F22: =D22*F19 -> 0 | G22: 0 | H22: =G22*H19 -> 0 | I22: =G22*I19 -> 0 | J22: 0 | K22: =J22*K19 -> 0 | L22: =J22*L19 -> 0 | M22: 0 | N22: =M22*N19 -> 0 | O22: =M22*O19 -> 0 | P22: 0 | Q22: =P22*Q19 -> 0 | R22: =P22*R19 -> 0 | S22: 0 | T22: =S22*T19 -> 0 | U22: =S22*U19 -> 0 | V22: 0 | W22: =V22*W19 -> 0 | X22: =V22*X19 -> 0 | Y22: 0 | Z22: =Y22*Z19 -> 0 | AA22: =Y22*AA19 -> 0 | AB22: 0 | AC22: =AB22*AC19 -> 0 | AD22: =AB22*AD19 -> 0 | AE22: 0 | AF22: =AE22*AF19 -> 0 | AG22: =AE22*AG19 -> 0 | AH22: 0 | AI22: =AH22*AI19 -> 0 | AJ22: =AH22*AJ19 -> 0
A23: Rebasing Year vs. Test Year | B23: ='LDC Info'!E28 -> 2015 | C23: ='LDC Info'!E24 -> 2021
A24: Allowance for Working Capital (enter rate) | E24: =IF(AND(D$17>=$B$23, D$17<$C$23),(E21+E22)*$B$24,(E21+E22)*$C$24) -> 0 | F24: =IF(AND(D$17>=$B$23, D$17<$C$23),(F22)*$B$24,(F22)*$C$24) -> 0 | H24: =IF(AND(G$17>=$B$23, G$17<$C$23),(H21+H22)*$B$24,(H21+H22)*$C$24) -> 0 | I24: =IF(AND(G$17>=$B$23, G$17<$C$23),(I22)*$B$24,(I22)*$C$24) -> 0 | K24: =IF(AND(J$17>=$B$23, J$17<$C$23),(K21+K22)*$B$24,(K21+K22)*$C$24) -> 0 | L24: =IF(AND(J$17>=$B$23, J$17<$C$23),(L22)*$B$24,(L22)*$C$24) -> 0 | N24: =IF(AND(M$17>=$B$23, M$17<$C$23),(N21+N22)*$B$24,(N21+N22)*$C$24) -> 0 | O24: =IF(AND(M$17>=$B$23, M$17<$C$23),(O22)*$B$24,(O22)*$C$24) -> 0 | Q24: =IF(AND(P$17>=$B$23, P$17<$C$23),(Q21+Q22)*$B$24,(Q21+Q22)*$C$24) -> 0 | R24: =IF(AND(P$17>=$B$23, P$17<$C$23),(R22)*$B$24,(R22)*$C$24) -> 0 | T24: =IF(AND(S$17>=$B$23, S$17<$C$23),(T21+T22)*$B$24,(T21+T22)*$C$24) -> 0 | U24: =IF(AND(S$17>=$B$23, S$17<$C$23),(U22)*$B$24,(U22)*$C$24) -> 0 | W24: =IF(AND(V$17>=$B$23, V$17<$C$23),(W21+W22)*$B$24,(W21+W22)*$C$24) -> 0 | X24: =IF(AND(V$17>=$B$23, V$17<$C$23),(X22)*$B$24,(X22)*$C$24) -> 0 | Z24: =IF(AND(Y$17>=$B$23, Y$17<$C$23),(Z21+Z22)*$B$24,(Z21+Z22)*$C$24) -> 0 | AA24: =IF(AND(Y$17>=$B$23, Y$17<$C$23),(AA22)*$B$24,(AA22)*$C$24) -> 0 | AC24: =IF(AND(AB$17>=$B$23, AB$17<$C$23),(AC21+AC22)*$B$24,(AC21+AC22)*$C$24) -> 0 | AD24: =IF(AND(AB$17>=$B$23, AB$17<$C$23),(AD22)*$B$24,(AD22)*$C$24) -> 0 | AF24: =IF(AND(AE$17>=$B$23, AE$17<$C$23),(AF21+AF22)*$B$24,(AF21+AF22)*$C$24) -> 0 | AG24: =IF(AND(AE$17>=$B$23, AE$17<$C$23),(AG22)*$B$24,(AG22)*$C$24) -> 0 | AI24: =IF(AND(AH$17>=$B$23, AH$17<$C$23),(AI21+AI22)*$B$24,(AI21+AI22)*$C$24) -> 0 | AJ24: =IF(AND(AH$17>=$B$23, AH$17<$C$23),(AJ22)*$B$24,(AJ22)*$C$24) -> 0
A25: Rate Base | E25: =SUM(E20+E24) -> 0 | F25: =SUM(F20+F24) -> 0 | H25: =SUM(H20+H24) -> 0 | I25: =SUM(I20+I24) -> 0 | K25: =SUM(K20+K24) -> 0 | L25: =SUM(L20+L24) -> 0 | N25: =SUM(N20+N24) -> 0 | O25: =SUM(O20+O24) -> 0 | Q25: =SUM(Q20+Q24) -> 0 | R25: =SUM(R20+R24) -> 0 | T25: =SUM(T20+T24) -> 0 | U25: =SUM(U20+U24) -> 0 | W25: =SUM(W20+W24) -> 0 | X25: =SUM(X20+X24) -> 0 | Z25: =SUM(Z20+Z24) -> 0 | AA25: =SUM(AA20+AA24) -> 0 | AC25: =SUM(AC20+AC24) -> 0 | AD25: =SUM(AD20+AD24) -> 0 | AF25: =SUM(AF20+AF24) -> 0 | AG25: =SUM(AG20+AG24) -> 0 | AI25: =SUM(AI20+AI24) -> 0 | AJ25: =SUM(AJ20+AJ24) -> 0
B27: =B23 -> 2015 | C27: =C23 -> 2021
A28: Deemed ST Debt | B28: 0.04 | C28: 0.04 | E28: =E25*$B$28 -> 0 | F28: =F25*$B$28 -> 0 | H28: =H25*$B$28 -> 0 | I28: =I25*$B$28 -> 0 | K28: =K25*$B$28 -> 0 | L28: =L25*$B$28 -> 0 | N28: =N25*$B$28 -> 0 | O28: =O25*$B$28 -> 0 | Q28: =Q25*$B$28 -> 0 | R28: =R25*$B$28 -> 0 | T28: =T25*$C$28 -> 0 | U28: =U25*$C$28 -> 0 | W28: =W25*$C$28 -> 0 | X28: =X25*$C$28 -> 0 | Z28: =Z25*$C$28 -> 0 | AA28: =AA25*$C$28 -> 0 | AC28: =AC25*$C$28 -> 0 | AD28: =AD25*$C$28 -> 0 | AF28: =AF25*$C$28 -> 0 | AG28: =AG25*$C$28 -> 0 | AI28: =AI25*$C$28 -> 0 | AJ28: =AJ25*$C$28 -> 0
A29: Deemed LT Debt | B29: 0.56 | C29: 0.56 | E29: =E25*$B$29 -> 0 | F29: =F25*$B$29 -> 0 | H29: =H25*$B$29 -> 0 | I29: =I25*$B$29 -> 0 | K29: =K25*$B$29 -> 0 | L29: =L25*$B$29 -> 0 | N29: =N25*$B$29 -> 0 | O29: =O25*$B$29 -> 0 | Q29: =Q25*$B$29 -> 0 | R29: =R25*$B$29 -> 0 | T29: =T25*$C$29 -> 0 | U29: =U25*$C$29 -> 0 | W29: =W25*$C$29 -> 0 | X29: =X25*$C$29 -> 0 | Z29: =Z25*$C$29 -> 0 | AA29: =AA25*$C$29 -> 0 | AC29: =AC25*$C$29 -> 0 | AD29: =AD25*$C$29 -> 0 | AF29: =AF25*$C$29 -> 0 | AG29: =AG25*$C$29 -> 0 | AI29: =AI25*$C$29 -> 0 | AJ29: =AJ25*$C$29 -> 0
A30: Deemed Equity | B30: 0.4 | C30: 0.4 | E30: =E25*$B$30 -> 0 | F30: =F25*$B$30 -> 0 | H30: =H25*$B$30 -> 0 | I30: =I25*$B$30 -> 0 | K30: =K25*$B$30 -> 0 | L30: =L25*$B$30 -> 0 | N30: =N25*$B$30 -> 0 | O30: =O25*$B$30 -> 0 | Q30: =Q25*$B$30 -> 0 | R30: =R25*$B$30 -> 0 | T30: =T25*$C$30 -> 0 | U30: =U25*$C$30 -> 0 | W30: =W25*$C$30 -> 0 | X30: =X25*$C$30 -> 0 | Z30: =Z25*$C$30 -> 0 | AA30: =AA25*$C$30 -> 0 | AC30: =AC25*$C$30 -> 0 | AD30: =AD25*$C$30 -> 0 | AF30: =AF25*$C$30 -> 0 | AG30: =AG25*$C$30 -> 0 | AI30: =AI25*$C$30 -> 0 | AJ30: =AJ25*$C$30 -> 0
A32: ST Interest (enter rate) | E32: =E28*$B32 -> 0 | F32: 0 | H32: 0 | I32: 0 | K32: 0 | L32: 0 | N32: 0 | O32: 0 | Q32: 0 | R32: 0 | T32: =T28*$C32 -> 0 | U32: 0 | W32: =W28*$C32 -> 0 | X32: 0 | Z32: =Z28*$C32 -> 0 | AA32: 0 | AC32: =AC28*$C32 -> 0 | AD32: 0 | AF32: =AF28*$C32 -> 0 | AG32: 0 | AI32: =AI28*$C32 -> 0 | AJ32: 0
A33: LT Interest (enter rate) | E33: 0 | F33: 0 | H33: 0 | I33: 0 | K33: 0 | L33: 0 | N33: 0 | O33: 0 | Q33: 0 | R33: 0 | T33: 0 | U33: 0 | W33: 0 | X33: 0 | Z33: 0 | AA33: 0 | AC33: 0 | AD33: 0 | AF33: 0 | AG33: 0 | AI33: =AI29*$C33 -> 0 | AJ33: 0
A34: Return on Equity (enter rate) | E34: 0 | F34: 0 | H34: 0 | I34: 0 | K34: 0 | L34: 0 | N34: 0 | O34: 0 | Q34: 0 | R34: 0 | T34: 0 | U34: 0 | W34: 0 | X34: 0 | Z34: 0 | AA34: 0 | AC34: 0 | AD34: 0 | AF34: 0 | AG34: 0 | AI34: =AI30*$C34 -> 0 | AJ34: 0
A35: Cost of Capital Total | E35: =SUM(E32:E34) -> 0 | F35: =SUM(F32:F34) -> 0 | H35: =SUM(H32:H34) -> 0 | I35: =SUM(I32:I34) -> 0 | K35: =SUM(K32:K34) -> 0 | L35: =SUM(L32:L34) -> 0 | N35: =SUM(N32:N34) -> 0 | O35: =SUM(O32:O34) -> 0 | Q35: =SUM(Q32:Q34) -> 0 | R35: =SUM(R32:R34) -> 0 | T35: =SUM(T32:T34) -> 0 | U35: =SUM(U32:U34) -> 0 | W35: =SUM(W32:W34) -> 0 | X35: =SUM(X32:X34) -> 0 | Z35: =SUM(Z32:Z34) -> 0 | AA35: =SUM(AA32:AA34) -> 0 | AC35: =SUM(AC32:AC34) -> 0 | AD35: =SUM(AD32:AD34) -> 0 | AF35: =SUM(AF32:AF34) -> 0 | AG35: =SUM(AG32:AG34) -> 0 | AI35: =SUM(AI32:AI34) -> 0 | AJ35: =SUM(AJ32:AJ34) -> 0
A37: OM&A | E37: =E21+E22 -> 0 | F37: =F22 -> 0 | H37: =H21+H22 -> 0 | I37: =I22 -> 0 | K37: =K21+K22 -> 0 | L37: =L22 -> 0 | N37: =N21+N22 -> 0 | O37: =O22 -> 0 | Q37: =Q21+Q22 -> 0 | R37: =R22 -> 0 | T37: =T21+T22 -> 0 | U37: =U22 -> 0 | W37: =W21+W22 -> 0 | X37: =X22 -> 0 | Z37: =Z21+Z22 -> 0 | AA37: =AA22 -> 0 | AC37: =AC21+AC22 -> 0 | AD37: =AD22 -> 0 | AF37: =AF21+AF22 -> 0 | AG37: =AG22 -> 0 | AI37: =AI21+AI22 -> 0 | AJ37: =AJ22 -> 0
A38: Amortization | D38: =+E77+E78 -> 0 | E38: =D38*E$19 -> 0 | F38: =D38*F$19 -> 0 | G38: =+F77+F78 -> 0 | H38: =G38*H$19 -> 0 | I38: =G38*I$19 -> 0 | J38: =+G77+G78 -> 0 | K38: =J38*K$19 -> 0 | L38: =J38*L$19 -> 0 | M38: =+H77+H78 -> 0 | N38: =M38*N$19 -> 0 | O38: =M38*O$19 -> 0 | P38: =+I77+I78 -> 0 | Q38: =P38*Q$19 -> 0 | R38: =P38*R$19 -> 0 | S38: =+J77+J78 -> 0 | T38: =S38*T$19 -> 0 | U38: =S38*U$19 -> 0 | V38: =+K77+K78 -> 0 | W38: =V38*W$19 -> 0 | X38: =V38*X$19 -> 0 | Y38: =+L77+L78 -> 0 | Z38: =Y38*Z$19 -> 0 | AA38: =Y38*AA$19 -> 0 | AB38: =+M77+M78 -> 0 | AC38: =AB38*AC$19 -> 0 | AD38: =AB38*AD$19 -> 0 | AE38: =+N77+N78 -> 0 | AF38: =AE38*AF$19 -> 0 | AG38: =AE38*AG$19 -> 0 | AH38: =+O77+O78 -> 0 | AI38: =AH38*AI$19 -> 0 | AJ38: =AH38*AJ$19 -> 0
A39: Grossed-up PILs | E39: =+E66 -> 0 | F39: =+F66 -> 0 | H39: =+H66 -> 0 | I39: =+I66 -> 0 | K39: =+K66 -> 0 | L39: =+L66 -> 0 | N39: =+N66 -> 0 | O39: =+O66 -> 0 | Q39: =+Q66 -> 0 | R39: =+R66 -> 0 | T39: =+T66 -> 0 | U39: =+U66 -> 0 | W39: =+W66 -> 0 | X39: =+X66 -> 0 | Z39: =+Z66 -> 0 | AA39: =+AA66 -> 0 | AC39: =+AC66 -> 0 | AD39: =+AD66 -> 0 | AF39: =+AF66 -> 0 | AG39: =+AG66 -> 0 | AI39: =+AI66 -> 0 | AJ39: =+AJ66 -> 0
A41: Revenue Requirement | E41: =SUM(E35:E39) -> 0 | F41: =SUM(F35:F39) -> 0 | H41: =SUM(H35:H39) -> 0 | I41: 0 | K41: =SUM(K35:K39) -> 0 | L41: 0 | N41: =SUM(N35:N39) -> 0 | O41: 0 | Q41: =SUM(Q35:Q39) -> 0 | R41: 0 | T41: =SUM(T35:T39) -> 0 | U41: 0 | W41: =SUM(W35:W39) -> 0 | X41: 0 | Z41: =SUM(Z35:Z39) -> 0 | AA41: 0 | AC41: =SUM(AC35:AC39) -> 0 | AD41: 0 | AF41: =SUM(AF35:AF39) -> 0 | AG41: 0 | AI41: =SUM(AI35:AI39) -> 0 | AJ41: 0
A44: Provincial Rate Protection | F44: =F41 -> 0 | I44: =I41 -> 0 | L44: =L41 -> 0 | O44: =O41 -> 0 | R44: =R41 -> 0 | U44: =U41 -> 0 | X44: =X41 -> 0 | AA44: =AA41 -> 0 | AD44: =AD41 -> 0 | AG44: =AG41 -> 0 | AJ44: =AJ41 -> 0
A46: Monthly Amount Paid by IESO | F46: =F44/12 -> 0 | I46: =I44/12 -> 0 | L46: =L44/12 -> 0 | O46: =O44/12 -> 0 | R46: =R44/12 -> 0 | U46: =U44/12 -> 0 | X46: =X44/12 -> 0 | AA46: =AA44/12 -> 0 | AD46: =AD44/12 -> 0 | AG46: =AG44/12 -> 0 | AJ46: =AJ44/12 -> 0
A48: Note 1: The distributor should follow the regulatory accounting set out in the Accounting Procedure Handbook Guidance FAQs issued in March 2015. Q10 of the APH FAQs states that: “For approved eligible investments as defined under O.Reg. 330/09 under the OEB Act, a variance account will continue to be used for the purpose of recording variances between the revenue requirement based on actual costs of approved eligible investments and the revenue received from the IESO.” The answer for Q10 provides the accounting guidance for this variance account: “Distributors that have included eligible investments to connect qualifying facilities in their DS plans are to establish the variance Account 1533 Renewable Generation Connection Funding Adder Deferral Account, Sub-account Provincial Rate Protection Payment Variances following OEB approval for investments forecast to enter service beyond the test year for purposes of implementing rate protection pursuant to O.Reg. 330/09. The purpose of this variance account is to track the variance between the distributor’s revenue requirement associated with the portion of the actual capital and/or operating costs that are eligible for rate protection, as incurred by the distributor for eligible renewable enabling and expansion investments, and the rate protection payments collected from the IESO.” The answer further provides the journal entries to record the variances. Distributors should follow the instructions in the answer for recording the journal entries in the variance account 1533.
A50: Note 2: For the Test Year, Costs and Revenues of the Direct Benefit are to be included in the test year applicant Rate Base and Revenues.
A52: PILs Calculation | T52: Test Year
E53: =G17-1 -> 2016 | H53: =G17 -> 2017 | K53: =J17 -> 2018 | N53: =M17 -> 2019 | Q53: =P17 -> 2020 | T53: =S17 -> 2021 | W53: =V17 -> 2022 | Z53: =Y17 -> 2023 | AC53: =AB17 -> 2024 | AF53: =AE17 -> 2025 | AI53: =AH17 -> 2026
A54: Income Tax | E54: Direct Benefit | F54: Provincial | H54: Direct Benefit | I54: Provincial | K54: Direct Benefit | L54: Provincial | N54: Direct Benefit | O54: Provincial | Q54: Direct Benefit | R54: Provincial | T54: Direct Benefit | U54: Provincial | W54: Direct Benefit | X54: Provincial | Z54: Direct Benefit | AA54: Provincial | AC54: Direct Benefit | AD54: Provincial | AF54: Direct Benefit | AG54: Provincial | AI54: Direct Benefit | AJ54: Provincial
AB55: Total | AE55: Total | AH55: Total
A56: Net Income - ROE on Rate Base | E56: =E34 -> 0 | F56: =F34 -> 0 | H56: =H34 -> 0 | I56: =I34 -> 0 | K56: =K34 -> 0 | L56: =L34 -> 0 | N56: =N34 -> 0 | O56: =O34 -> 0 | Q56: =Q34 -> 0 | R56: =R34 -> 0 | T56: =T34 -> 0 | U56: =U34 -> 0 | W56: =W34 -> 0 | X56: =X34 -> 0 | Z56: =Z34 -> 0 | AA56: =AA34 -> 0 | AC56: =AC34 -> 0 | AD56: =AD34 -> 0 | AF56: =AF34 -> 0 | AG56: =AG34 -> 0 | AI56: =AI34 -> 0 | AJ56: =AJ34 -> 0
A57: Amortization (6% DB and 94% P) | E57: =E38 -> 0 | F57: =F38 -> 0 | H57: =H38 -> 0 | I57: =I38 -> 0 | K57: =K38 -> 0 | L57: =L38 -> 0 | N57: =N38 -> 0 | O57: =O38 -> 0 | Q57: =Q38 -> 0 | R57: =R38 -> 0 | T57: =T38 -> 0 | U57: =U38 -> 0 | W57: =W38 -> 0 | X57: =X38 -> 0 | Z57: =Z38 -> 0 | AA57: =AA38 -> 0 | AC57: =AC38 -> 0 | AD57: =AD38 -> 0 | AF57: =AF38 -> 0 | AG57: =AG38 -> 0 | AI57: =AI38 -> 0 | AJ57: =AJ38 -> 0
A58: CCA (6% DB and 94% P) | E58: =-E95*$E$19 -> 0 | F58: =-E95*$F$19 -> 0 | H58: =-F95*$E$19 -> 0 | I58: =-F95*$F$19 -> 0 | K58: =-G95*$E$19 -> 0 | L58: =-G95*$F$19 -> 0 | N58: =-H95*$E$19 -> 0 | O58: =-H95*$F$19 -> 0 | Q58: =-I95*$E$19 -> 0 | R58: =-I95*$F$19 -> 0 | T58: =-J95*$E$19 -> 0 | U58: =-J95*$F$19 -> 0 | W58: =-K95*$E$19 -> 0 | X58: =-K95*$F$19 -> 0 | Z58: =-L95*$E$19 -> 0 | AA58: =-L95*$F$19 -> 0 | AC58: =-M95*$E$19 -> 0 | AD58: =-M95*$F$19 -> 0 | AF58: =-N95*$E$19 -> 0 | AG58: =-N95*$F$19 -> 0 | AI58: =-Q95*$E$19 -> 0 | AJ58: =-Q95*$F$19 -> 0
A59: Taxable income | E59: =SUM(E56:E58) -> 0 | F59: =SUM(F56:F58) -> 0 | H59: =SUM(H56:H58) -> 0 | I59: 0 | K59: =SUM(K56:K58) -> 0 | L59: 0 | N59: =SUM(N56:N58) -> 0 | O59: 0 | Q59: =SUM(Q56:Q58) -> 0 | R59: 0 | T59: =SUM(T56:T58) -> 0 | U59: 0 | W59: =SUM(W56:W58) -> 0 | X59: 0 | Z59: =SUM(Z56:Z58) -> 0 | AA59: =SUM(AA56:AA58) -> 0 | AC59: =SUM(AC56:AC58) -> 0 | AD59: =SUM(AD56:AD58) -> 0 | AF59: =SUM(AF56:AF58) -> 0 | AG59: =SUM(AG56:AG58) -> 0 | AI59: =SUM(AI56:AI58) -> 0 | AJ59: =SUM(AJ56:AJ58) -> 0
B60: =B27 -> 2015 | C60: =C27 -> 2021
A61: Tax Rate (to be entered) | E61: =IF(AND(E$53>=$B$60, E$53<$C$60),$B$61,$C$61) -> 0 | F61: =IF(AND(E$53>=$B$60, E$53<$C$60),$B$61,$C$61) -> 0 | H61: =IF(AND(H$53>=$B$60, H$53<$C$60),$B$61,$C$61) -> 0 | I61: =IF(AND(H$53>=$B$60, H$53<$C$60),$B$61,$C$61) -> 0 | K61: =IF(AND(K$53>=$B$60, K$53<$C$60),$B$61,$C$61) -> 0 | L61: =IF(AND(K$53>=$B$60, K$53<$C$60),$B$61,$C$61) -> 0 | N61: =IF(AND(N$53>=$B$60, N$53<$C$60),$B$61,$C$61) -> 0 | O61: =IF(AND(N$53>=$B$60, N$53<$C$60),$B$61,$C$61) -> 0 | Q61: =IF(AND(Q$53>=$B$60, Q$53<$C$60),$B$61,$C$61) -> 0 | R61: =IF(AND(Q$53>=$B$60, Q$53<$C$60),$B$61,$C$61) -> 0 | T61: =IF(AND(T$53>=$B$60, T$53<$C$60),$B$61,$C$61) -> 0 | U61: =IF(AND(T$53>=$B$60, T$53<$C$60),$B$61,$C$61) -> 0 | W61: =IF(AND(W$53>=$B$60, W$53<$C$60),$B$61,$C$61) -> 0 | X61: =IF(AND(W$53>=$B$60, W$53<$C$60),$B$61,$C$61) -> 0 | Z61: =IF(AND(Z$53>=$B$60, Z$53<$C$60),$B$61,$C$61) -> 0 | AA61: =IF(AND(Z$53>=$B$60, Z$53<$C$60),$B$61,$C$61) -> 0 | AC61: =IF(AND(AC$53>=$B$60, AC$53<$C$60),$B$61,$C$61) -> 0 | AD61: =IF(AND(AC$53>=$B$60, AC$53<$C$60),$B$61,$C$61) -> 0 | AF61: =IF(AND(AF$53>=$B$60, AF$53<$C$60),$B$61,$C$61) -> 0 | AG61: =IF(AND(AF$53>=$B$60, AF$53<$C$60),$B$61,$C$61) -> 0 | AI61: =IF(AND(AI$53>=$B$60, AI$53<$C$60),$B$61,$C$61) -> 0 | AJ61: =IF(AND(AI$53>=$B$60, AI$53<$C$60),$B$61,$C$61) -> 0
A63: Income Taxes Payable | E63: =E59*E61 -> 0 | F63: =F59*F61 -> 0 | H63: =H59*H61 -> 0 | I63: =I59*I61 -> 0 | K63: =K59*K61 -> 0 | L63: =L59*L61 -> 0 | N63: =N59*N61 -> 0 | O63: =O59*O61 -> 0 | Q63: =Q59*Q61 -> 0 | R63: =R59*R61 -> 0 | T63: =T59*T61 -> 0 | U63: =U59*U61 -> 0 | W63: =W59*W61 -> 0 | X63: =X59*X61 -> 0 | Z63: =Z59*Z61 -> 0 | AA63: =AA59*AA61 -> 0 | AC63: =AC59*AC61 -> 0 | AD63: =AD59*AD61 -> 0 | AF63: =AF59*AF61 -> 0 | AG63: =AG59*AG61 -> 0 | AI63: =AI59*AI61 -> 0 | AJ63: =AJ59*AJ61 -> 0
A64: Gross Up
A65: Income Taxes Payable | E65: =E63/(1-E61) -> 0 | F65: =F63/(1-F61) -> 0 | H65: =H63/(1-H61) -> 0 | I65: =I63/(1-I61) -> 0 | K65: =K63/(1-K61) -> 0 | L65: =L63/(1-L61) -> 0 | N65: =N63/(1-N61) -> 0 | O65: =O63/(1-O61) -> 0 | Q65: =Q63/(1-Q61) -> 0 | R65: =R63/(1-R61) -> 0 | T65: =T63/(1-T61) -> 0 | U65: =U63/(1-U61) -> 0 | W65: =W63/(1-W61) -> 0 | X65: =X63/(1-X61) -> 0 | Z65: =Z63/(1-Z61) -> 0 | AA65: =AA63/(1-AA61) -> 0 | AC65: =AC63/(1-AC61) -> 0 | AD65: =AD63/(1-AD61) -> 0 | AF65: =AF63/(1-AF61) -> 0 | AG65: =AG63/(1-AG61) -> 0 | AI65: =AI63/(1-AI61) -> 0 | AJ65: =AJ63/(1-AJ61) -> 0
A66: Grossed Up PILs | E66: =+E65 -> 0 | F66: =+F65 -> 0 | H66: =+H65 -> 0 | I66: =+I65 -> 0 | K66: =+K65 -> 0 | L66: 0 | N66: =+N65 -> 0 | O66: 0 | Q66: =+Q65 -> 0 | R66: 0 | T66: =+T65 -> 0 | U66: 0 | W66: =+W65 -> 0 | X66: 0 | Z66: =+Z65 -> 0 | AA66: 0 | AC66: =+AC65 -> 0 | AD66: 0 | AF66: =+AF65 -> 0 | AG66: 0 | AI66: =+AI65 -> 0 | AJ66: 0
J68: Test Year
E69: =F69-1 -> 2016 | F69: =G69-1 -> 2017 | G69: =H69-1 -> 2018 | H69: =I69-1 -> 2019 | I69: =J69-1 -> 2020 | J69: ='LDC Info'!E24 -> 2021 | K69: =J69+1 -> 2022 | L69: =K69+1 -> 2023 | M69: =L69+1 -> 2024 | N69: =M69+1 -> 2025 | O69: =N69+1 -> 2026
A70: Net Fixed Assets
A71: Enter applicable amortization in years: | B71: 40
A72: Opening Gross Fixed Assets | F72: =E74 -> 0 | G72: 0 | H72: 0 | I72: 0 | J72: 0 | K72: 0 | L72: 0 | M72: 0 | N72: 0 | O72: 0
A73: Capital Additions | E73: ='App.2-FA Proposed REG Invest.'!C99 -> 0 | F73: ='App.2-FA Proposed REG Invest.'!D99 -> 0 | G73: ='App.2-FA Proposed REG Invest.'!E99 -> 0 | H73: ='App.2-FA Proposed REG Invest.'!F99 -> 0 | I73: ='App.2-FA Proposed REG Invest.'!G99 -> 0 | J73: ='App.2-FA Proposed REG Invest.'!H99 -> 0 | K73: ='App.2-FA Proposed REG Invest.'!I99 -> 0 | L73: ='App.2-FA Proposed REG Invest.'!J99 -> 0 | M73: ='App.2-FA Proposed REG Invest.'!K99 -> 0 | N73: ='App.2-FA Proposed REG Invest.'!L99 -> 0 | O73: ='App.2-FA Proposed REG Invest.'!M99 -> 0
A74: Closing Gross Fixed Assets | E74: =SUM(E72:E73) -> 0 | F74: 0 | G74: 0 | H74: 0 | I74: 0 | J74: 0 | K74: 0 | L74: 0 | M74: 0 | N74: 0 | O74: =SUM(O72:O73) -> 0
A76: Opening Accumulated Amortization | E76: 0 | F76: =+E79 -> 0 | G76: =+F79 -> 0 | H76: 0 | I76: 0 | J76: 0 | K76: 0 | L76: 0 | M76: 0 | N76: 0 | O76: 0
A77: Current Year Amortization (before additions) | E77: =IF(ISERROR(E72/$B$71), 0, E72/$B$71) -> 0 | F77: =IF(ISERROR(F72/$B$71), 0, F72/$B$71) -> 0 | G77: 0 | H77: 0 | I77: 0 | J77: 0 | K77: 0 | L77: 0 | M77: 0 | N77: 0 | O77: =IF(ISERROR(O72/$B$71), 0, O72/$B$71) -> 0
A78: Capital Additions Amortization (half year) | E78: =E73/$B$71/2 -> 0 | F78: =F73/$B$71/2 -> 0 | G78: 0 | H78: 0 | I78: 0 | J78: 0 | K78: 0 | L78: 0 | M78: 0 | N78: 0 | O78: =O73/$B$71/2 -> 0
A79: Closing Accumulated Amortization | E79: =SUM(E76+E77+E78) -> 0 | F79: 0 | G79: 0 | H79: 0 | I79: 0 | J79: 0 | K79: 0 | L79: 0 | M79: 0 | N79: 0 | O79: =SUM(O76+O77+O78) -> 0
A81: Opening Net Fixed Assets | E81: =E72-E76 -> 0 | F81: 0 | G81: 0 | H81: 0 | I81: 0 | J81: 0 | K81: 0 | L81: 0 | M81: 0 | N81: 0 | O81: =O72-O76 -> 0
A82: Closing Net Fixed Assets | E82: =E74-E79 -> 0 | F82: 0 | G82: 0 | H82: 0 | I82: 0 | J82: 0 | K82: 0 | L82: 0 | M82: 0 | N82: 0 | O82: =O74-O79 -> 0
A83: Average Net Fixed Assets | E83: =SUM(E81:E82)/2 -> 0 | F83: 0 | G83: 0 | H83: 0 | I83: 0 | J83: 0 | K83: 0 | L83: 0 | M83: 0 | N83: 0 | O83: =SUM(O81:O82)/2 -> 0
A85: UCC for PILs Calculation | J85: =J68 -> Test Year
E86: =E69 -> 2016 | F86: =F69 -> 2017 | G86: =G69 -> 2018 | H86: 2019 | I86: 2020 | J86: 2021 | K86: 2022 | L86: 2023 | M86: 2024 | N86: 2025 | O86: =O69 -> 2026
A88: Opening UCC | E88: =E72 -> 0 | F88: =E96 -> 0 | G88: 0 | H88: 0 | I88: 0 | J88: 0 | K88: 0 | L88: 0 | M88: 0 | N88: 0 | O88: 0
A89: Capital Additions | E89: =E73 -> 0 | F89: 0 | G89: 0 | H89: 0 | I89: 0 | J89: 0 | K89: 0 | L89: 0 | M89: 0 | N89: 0 | O89: =O73 -> 0
A90: UCC Before Half Year Rule | E90: =SUM(E88:E89) -> 0 | F90: 0 | G90: 0 | H90: 0 | I90: 0 | J90: 0 | K90: 0 | L90: 0 | M90: 0 | N90: 0 | O90: =SUM(O88:O89) -> 0
A91: Capital Additions (half year) | E91: =E89/2 -> 0 | F91: 0 | G91: 0 | H91: 0 | I91: 0 | J91: 0 | K91: 0 | L91: 0 | M91: 0 | N91: 0 | O91: =O89/2 -> 0
A92: Reduced UCC | E92: =E90-E91 -> 0 | F92: 0 | G92: 0 | H92: 0 | I92: 0 | J92: 0 | K92: 0 | L92: 0 | M92: 0 | N92: 0 | O92: =O90-O91 -> 0
A93: CCA Rate Class (to be entered)
A94: CCA Rate (to be entered)
A95: CCA | E95: =E92*$B$94 -> 0 | F95: =F92*$B$94 -> 0 | G95: 0 | H95: 0 | I95: 0 | J95: 0 | K95: 0 | L95: 0 | M95: 0 | N95: 0 | O95: =O92*$B$94 -> 0
A96: Closing UCC | E96: =E90-E95 -> 0 | F96: 0 | G96: 0 | H96: 0 | I96: 0 | J96: 0 | K96: 0 | L96: 0 | M96: 0 | N96: 0 | O96: =O90-O95 -> 0

Sheet App.2-G SQI
M1: File Number: | O1: =EBNUMBER -> EB-2020-0048
M2: Exhibit:
M3: Tab:
M4: Schedule:
M5: Page:
M7: Date:
A9: Appendix 2-G
A10: Service Reliability and Quality Indicators
A13: Service Reliability
A15: Index | B15: Including outages caused by loss of supply | G15: Excluding outages caused by loss of supply | L15: Excluding Major Event Days
B16: =TestYear-6 -> 2015 | C16: =TestYear-5 -> 2016 | D16: =TestYear-4 -> 2017 | E16: =TestYear-3 -> 2018 | F16: =TestYear-2 -> 2019 | G16: =B16 -> 2015 | H16: 2016 | I16: 2017 | J16: 2018 | K16: 2019 | L16: 2015 | M16: 2016 | N16: 2017 | O16: 2018 | P16: 2019
A17: SAIDI | B17: 1.35 | C17: 2.61 | D17: 0.75 | E17: 1.96 | F17: 0.98 | G17: 1.21 | H17: 2.61 | I17: 0.73 | J17: 1.95 | K17: 0.98 | L17: 1.21 | M17: 2.61 | N17: 0.73 | O17: 1.34 | P17: 0.98
A18: SAIFI | B18: 2.01 | C18: 2.08 | D18: 1.18 | E18: 1.71 | F18: 1.09 | G18: 1.27 | H18: 2.06 | I18: 0.98 | J18: 1.64 | K18: 1.09 | L18: 1.27 | M18: 2.06 | N18: 0.98 | O18: 1.29 | P18: 1.09
A20: 5 Year Historical Average
A21: SAIDI | F21: =IF(ISERROR(AVERAGE(B17:F17)), "", AVERAGE(B17:F17)) -> 1.53 | K21: =IF(ISERROR(AVERAGE(G17:K17)), "", AVERAGE(G17:K17)) -> 1.496 | P21: =IF(ISERROR(AVERAGE(L17:P17)), "", AVERAGE(L17:P17)) -> 1.374
A22: SAIFI | F22: =IF(ISERROR(AVERAGE(B18:F18)), "", AVERAGE(B18:F18)) -> 1.614 | K22: =IF(ISERROR(AVERAGE(G18:K18)), "", AVERAGE(G18:K18)) -> 1.408 | P22: =IF(ISERROR(AVERAGE(L18:P18)), "", AVERAGE(L18:P18)) -> 1.338
A24: SAIDI = System Average Interruption Duration Index
A25: SAIFI = System Average Interruption Frequency Index
A27: Service Quality
A29: Indicator | E29: OEB Minimum Standard | G29: =B16 -> 2015 | H29: =C16 -> 2016 | I29: =D16 -> 2017 | J29: =E16 -> 2018 | K29: =F16 -> 2019
A30: Low Voltage Connections | E30: 0.9 | G30: 0.954 | H30: 0.926 | I30: 0.9947 | J30: 0.9978 | K30: 1
A31: High Voltage Connections | E31: 0.9 | G31: 1 | H31: 0 | I31: 0 | J31: 0 | K31: 0
A32: Telephone Accessibility | E32: 0.65 | G32: 0.702 | H32: 0.737 | I32: 0.9052 | J32: 0.901 | K32: 0.9413
A33: Appointments Met | E33: 0.9 | G33: 0.996 | H33: 1 | I33: 0.9853 | J33: 1 | K33: 1
A34: Written Response to Enquires | E34: 0.8 | G34: 1 | H34: 0.995 | I34: 0.9991 | J34: 0.9998 | K34: 1
A35: Emergency Urban Response | E35: 0.8 | G35: 1 | H35: 1 | I35: 1 | J35: 1 | K35: 0.9855
A36: Emergency Rural Response | E36: 0.8 | G36: 1 | H36: 1 | I36: 1 | J36: 1 | K36: 1
A37: Telephone Call Abandon Rate | E37: 0.1 | G37: 0.018 | H37: 0.013 | I37: 0.0042 | J37: 0.0043 | K37: 0.0023
A38: Appointment Scheduling | E38: 0.9 | G38: 1 | H38: 1 | I38: 0.9278 | J38: 0.975 | K38: 0.925
A39: Rescheduling a Missed Appointment | E39: 1 | G39: 0 | H39: 0 | I39: 1 | J39: 1 | K39: 1
A40: Reconnection Performance Standard | E40: 0.85 | G40: 1 | H40: 1 | I40: 0.9982 | J40: 1 | K40: 1

Sheet App.2-H_Other_Oper_Rev
K1: File Number: | L1: =EBNUMBER -> EB-2020-0048
K2: Exhibit:
K3: Tab:
A4: TO BE UPDATED AT THE DRAFT RATE ORDER STAGE | K4: Schedule:
K5: Page:
K7: Date:
A9: Appendix 2-H
A10: Other Operating Revenue
A12: USoA # | B12: USoA Description | C12: =D13 - 1 &" Actual"&CHAR(178) -> 2012 Actual² | D12: 2013 Actual² | E12: 2014 Actual² | F12: 2015 Actual² | G12: =H13 - 1 &" Actual"&CHAR(178) -> 2016 Actual² | H12: =I13 - 1 &" Actual"&CHAR(178) -> 2017 Actual² | I12: =I13 & " Actual" & CHAR(178) -> 2018 Actual² | J12: =J13& " Actual" -> 2019 Actual | K12: Bridge Year | L12: Test Year | N12: CGAAP
C13: =D13-1 -> 2012 | D13: =E13-1 -> 2013 | E13: =F13-1 -> 2014 | F13: =G13-1 -> 2015 | G13: =H13-1 -> 2016 | H13: =I13-1 -> 2017 | I13: =J13-1 -> 2018 | J13: 2019 | K13: =BridgeYear -> 2020 | L13: =TestYear -> 2021
B14: Reporting Basis | F14: MIFRS | G14: MIFRS | H14: MIFRS | I14: MIFRS | J14: MIFRS | K14: MIFRS | L14: MIFRS | N14: CGAAP
A15: 4235 | B15: Specific Service Charges | F15: 938847.68 | G15: 1077943.4 | H15: 696833.08 | I15: 719469.74 | J15: 469443.41 | K15: 483894.3844 | L15: 483270.9186
A16: 4225 | B16: Late Payment Charges | F16: 285462.28 | G16: 326017.82 | H16: 308614.15 | I16: 254142.12 | J16: 247469.53 | K16: 253938.4379 | L16: 257472.9613
A17: 4082 | B17: Retail Services Revenues | F17: 0 | G17: 0 | H17: 0 | I17: 0 | J17: 0 | K17: 0 | L17: 0
A18: 4210 | B18: Rent from Electric Property | F18: 183585.94 | G18: 184007.15 | H18: 183912.82 | I18: 194696.59 | J18: 293619.59 | K18: 200287.8384 | L18: 345505.2
A19: 4084 | B19: Service Transaction Requests (STR) Revenues | F19: 992 | G19: 770.25 | H19: 365 | I19: 256.75 | J19: 493.5 | K19: 0 | L19: 0
A20: 4325 | B20: Revenues from Merchandise, Jobbing, Etc. | F20: 153070.28 | G20: 48352.63 | H20: 185118.81 | I20: 175830.55 | J20: 182826.28 | K20: 191174.1559 | L20: 191174.1559
A21: 4330 | B21: Costs and Expenses of Merchandising, Jobbing, Etc | F21: -134452.19 | G21: -67996.96 | H21: -203663.01 | I21: -118522.86 | J21: -199582.36 | K21: -190404.891 | L21: -190404.891
A22: 4355 | B22: Gain on Disposition of Utility and Other Property | F22: 500 | G22: 7875 | H22: -73591.09 | I22: 33661 | J22: 10399.66 | K22: 0 | L22: 0
A23: 4360 | B23: Loss on Disposition of Utility and Other Property | F23: -106535 | G23: -429437 | H23: -439947 | I23: -386552.33 | J23: 189483.32 | K23: -277875 | L23: -277875
A24: 4375 | B24: Revenues from Non-Utility Operations | F24: 1588922.97 | G24: 3208616.41 | H24: 2851178.74 | I24: 2918149.27 | J24: 3483340.27 | K24: 2987.717523 | L24: 2987.717523
A25: 4380 | B25: Expenses of Non-Utility Operations | F25: -1454654.85 | G25: -2932675.82 | H25: -2706242.19 | I25: -2371941.5 | J25: -3481513.22 | K25: 0 | L25: 0
A26: 4390 | B26: Miscellaneous Non-Operating Income | F26: 154246.35 | G26: 122787.74 | H26: 205677.19 | I26: 189620.77 | J26: 145804.48 | K26: 149788.332 | L26: 149788.332
A27: 4405 | B27: Interest and Dividend Income | F27: 190831.56 | G27: 145297.53 | H27: 159458.09 | I27: 168839.79 | J27: 131552.65 | K27: 74430.9 | L27: 74430.9
A28: 4245 | B28: Government Assistance Directly Credited to Income | H28: 0 | I28: 0 | J28: 0 | K28: 21756 | L28: 66213
A29: 4086 | B29: SSS Administration Revenue | F29: 164503.1 | G29: 175179.25 | H29: 181223.41 | I29: 189855.47 | J29: 195617.56 | K29: 189781.6404 | L29: 197417.5295
A53: Specific Service Charges | C53: =C15 -> 0 | D53: 0 | E53: 0 | F53: 938847.68 | G53: 1077943.4 | H53: 696833.08 | I53: 719469.74 | J53: 469443.41 | K53: 483894.3844 | L53: 483270.9186 | N53: =N15 -> 0
A54: Late Payment Charges | C54: =C16 -> 0 | D54: 0 | E54: 0 | F54: 285462.28 | G54: 326017.82 | H54: 308614.15 | I54: 254142.12 | J54: 247469.53 | K54: 253938.4379 | L54: 257472.9613 | N54: =N16 -> 0
A55: Other Operating Revenues | F55: =F18+F28 -> 183585.94 | G55: =G18+G28 -> 184007.15 | H55: 183912.82 | I55: 194696.59 | J55: 293619.59 | K55: 222043.8384 | L55: 411718.2
A56: Other Income or Deductions | F56: =SUM(F19:F27)+F29 -> 557424.22 | G56: =SUM(G19:G27)+G29 -> 278769.03 | H56: 159577.95 | I56: 799196.91 | J56: 658422.14 | K56: 139882.8548 | L56: 147518.7439
A57: Total | C57: =SUM(C53:C56) -> 0 | D57: =SUM(D53:D56) -> 0 | E57: =SUM(E53:E56) -> 0 | F57: =SUM(F53:F56) -> 1965320.12 | G57: =SUM(G53:G56) -> 1866737.4 | H57: 1348938 | I57: 1967505.36 | J57: 1668954.67 | K57: 1099759.516 | L57: 1299980.824 | N57: =SUM(N53:N56) -> 0
A59: Description Account(s)
A60: Specific Service Charges: 4235
A61: Late Payment Charges: 4225
A62: Other Distribution Revenues: 4082, 4084, 4090, 4205, 4210, 4215, 4220, 4230, 4240, 4245
A63: Other Income and Expenses: 4305, 4310, 4315, 4320, 4325, 4330, 4335, 4340, 4345, 4350, 4355, 4357, 4360, 4362, 4365, 4370, 4375, 4380, 4385, 4390, 4395, 4398, 4405, 4410, 4415, 4420
A66: Note: Add all applicable accounts listed above to the table and include all relevant information.
A68: Account Breakdown Details
A70: For each "Other Operating Revenue" and "Other Income or Deductions" Account, a detailed breakdown of the account components is required. See the example below for Account 4405, Interest and Dividend Income. Tables for the detailed breakdowns will be generated after cell B89 is filled in.
A73: Example: Account 4405 - Interest and Dividend Income
C74: =C12 -> 2012 Actual² | D74: 2013 Actual² | E74: 2014 Actual² | F74: 2015 Actual² | G74: 2016 Actual² | H74: 2017 Actual² | I74: 2018 Actual² | J74: 2019 Actual | K74: Bridge Year | L74: Test Year | N74: =N12 -> CGAAP
C75: =C13 -> 2012 | D75: 2013 | E75: 2014 | F75: 2015 | G75: 2016 | H75: 2017 | I75: 2018 | J75: =J13 -> 2019 | K75: =K13 -> 2020 | L75: =L13 -> 2021 | N75: =N13 -> 0
A76: Reporting Basis | C76: =IF(C14=0, "", C14) ->  | F76: MIFRS | G76: MIFRS | H76: MIFRS | I76: MIFRS | J76: MIFRS | K76: MIFRS | L76: MIFRS | N76: =IF(N14=0, "", N14) -> CGAAP
A77: Short-term Investment Interest
A78: Bank Deposit Interest
A79: Miscellaneous Interest Revenue
A80: etc.1
A83: Total | C83: =SUM(C77:C82) -> 0 | D83: 0 | E83: 0 | F83: 0 | G83: 0 | H83: 0 | I83: 0 | J83: 0 | K83: 0 | L83: 0 | N83: =SUM(N77:N82) -> 0
A86: Notes:
A87: 1 | B87: List and specify any other interest revenue.
A88: 2 | B88: For applicants rebasing under IFRS for the first time, in the transition year (2014) to IFRS, the applicant is to present information in both MIFRS and CGAAP. In column N, present CGAAP transition year information.
B89: 7 | C89: Enter the number of "Other Operating Revenue" and "Other Income or Deductions" Accounts that require a detailed breakdown of the account components.
A93: 4235 - Specific Service Charges
C94: =C$12 -> 2012 Actual² | D94: 2013 Actual² | E94: 2014 Actual² | F94: 2015 Actual² | G94: 2016 Actual² | H94: 2017 Actual² | I94: 2018 Actual² | J94: 2019 Actual | K94: Bridge Year | L94: Test Year | N94: =N$12 -> CGAAP
C95: =C$13 -> 2012 | D95: 2013 | E95: 2014 | F95: 2015 | G95: 2016 | H95: 2017 | I95: 2018 | J95: 2019 | K95: 2020 | L95: 2021 | N95: =N$13 -> 0
A96: Reporting Basis | C96: =IF(C34=0, "", C34) ->  | N96: =IF(N$14=0, "", N$14) -> CGAAP
A97: Collection Charge | F97: 501317 | G97: 606809 | H97: 288867 | I97: 51096 | J97: 27596.1 | K97: 39837.49925 | L97: 40391.99023
A98: Set up Charge | F98: 261450 | G98: 287490 | H98: 290002 | I98: 284790 | J98: 258344.4 | K98: 274959.1922 | L98: 278786.2998
A99: Enhancement Revenue | F99: 55730 | G99: 73821 | H99: 31985 | I99: 272290 | J99: 64583.57 | K99: 52874.25014 | L99: 52874.25014
A100: Reconnect Charge | F100: 62145 | G100: 60430 | H100: 42700 | I100: 71757 | J100: 68460 | K100: 70984.18561 | L100: 71972.20171
A101: Retail Charges | F101: 45896 | G101: 40594 | H101: 34004 | I101: 28165 | J101: 38278.25 | K101: 33636.57752 | L101: 27488.25214
A102: Other | F102: 12311 | G102: 8803 | H102: 9275 | I102: 11371 | J102: 12181.09 | K102: 11602.67969 | L102: 11757.92463
A105: Total | C105: =SUM(C97:C104) -> 0 | D105: 0 | E105: 0 | F105: 938849 | G105: 1077947 | H105: 696833 | I105: 719469 | J105: 469443.41 | K105: 483894.3844 | L105: 483270.9186 | N105: =SUM(N97:N104) -> 0
A107: 4225 - Late Payment Charges
C108: =C$12 -> 2012 Actual² | D108: 2013 Actual² | E108: 2014 Actual² | F108: 2015 Actual² | G108: 2016 Actual² | H108: 2017 Actual² | I108: 2018 Actual² | J108: 2019 Actual | K108: Bridge Year | L108: Test Year | N108: =N$12 -> CGAAP
C109: =C$13 -> 2012 | D109: 2013 | E109: 2014 | F109: 2015 | G109: 2016 | H109: 2017 | I109: 2018 | J109: 2019 | K109: 2020 | L109: 2021 | N109: =N$13 -> 0
A110: Reporting Basis | C110: =IF(C48=0, "", C48) ->  | N110: =IF(N$14=0, "", N$14) -> CGAAP
A111: Residential | F111: 222738 | G111: 254062 | H111: 236778 | I111: 207368 | J111: 200878.16 | K111: 206672.6659 | L111: 209549.3055
A112: Other | F112: 62724 | G112: 71954 | H112: 71837 | I112: 46774 | J112: 46591.37 | K112: 47265.772 | L112: 47923.65578
A119: Total | C119: =SUM(C111:C118) -> 0 | D119: =SUM(D111:D118) -> 0 | E119: =SUM(E111:E118) -> 0 | F119: =SUM(F111:F118) -> 285462 | G119: =SUM(G111:G118) -> 326016 | H119: =SUM(H111:H118) -> 308615 | I119: =SUM(I111:I118) -> 254142 | J119: =SUM(J111:J118) -> 247469.53 | K119: =SUM(K111:K118) -> 253938.4379 | L119: =SUM(L111:L118) -> 257472.9613 | N119: =SUM(N111:N118) -> 0
A121: 4210 - Rent from Electric Property
C122: =C$12 -> 2012 Actual² | D122: 2013 Actual² | E122: 2014 Actual² | F122: 2015 Actual² | G122: 2016 Actual² | H122: 2017 Actual² | I122: 2018 Actual² | J122: 2019 Actual | K122: Bridge Year | L122: Test Year | N122: =N$12 -> CGAAP
C123: =C$13 -> 2012 | D123: 2013 | E123: 2014 | F123: 2015 | G123: 2016 | H123: 2017 | I123: 2018 | J123: 2019 | K123: 2020 | L123: 2021 | N123: =N$13 -> 0
A124: Reporting Basis | C124: =IF(C62=0, "", C62) ->  | N124: =IF(N$14=0, "", N$14) -> CGAAP
A125: Pole Rental - OPUCS | F125: 27356.4 | G125: 27356.4 | H125: 27356.4 | I125: 29694.24 | J125: 53970.31 | K125: 55049.7162 | L125: 55875.46194
A126: Duct Rental - OPUCS | F126: 22952.38 | G126: 23143.12 | H126: 23588.18 | I126: 24096.82 | J126: 25365.6 | K126: 25365.6 | L126: 25365.6
A127: Pole Rental - Non-Affiliates | F127: 133277.22 | G127: 133507.48 | H127: 132968.42 | I127: 140905.94 | J127: 214283.68 | K127: 119872.5222 | L127: 264264.1381
A133: Total | C133: =SUM(C125:C132) -> 0 | D133: =SUM(D125:D132) -> 0 | E133: =SUM(E125:E132) -> 0 | F133: =SUM(F125:F132) -> 183586 | G133: =SUM(G125:G132) -> 184007 | H133: =SUM(H125:H132) -> 183913 | I133: =SUM(I125:I132) -> 194697 | J133: =SUM(J125:J132) -> 293619.59 | K133: =SUM(K125:K132) -> 200287.8384 | L133: =SUM(L125:L132) -> 345505.2 | N133: =SUM(N125:N132) -> 0
A135: 4375 - Revenues from Non-Utility Operations
C136: =C$12 -> 2012 Actual² | D136: 2013 Actual² | E136: 2014 Actual² | F136: 2015 Actual² | G136: 2016 Actual² | H136: 2017 Actual² | I136: 2018 Actual² | J136: 2019 Actual | K136: Bridge Year | L136: Test Year | N136: =N$12 -> CGAAP
C137: =C$13 -> 2012 | D137: 2013 | E137: 2014 | F137: 2015 | G137: 2016 | H137: 2017 | I137: 2018 | J137: 2019 | K137: 2020 | L137: 2021 | N137: =N$13 -> 0
A138: Reporting Basis | C138: =IF(C76=0, "", C76) ->  | F138: MIFRS | G138: MIFRS | H138: MIFRS | I138: MIFRS | J138: MIFRS | K138: MIFRS | L138: MIFRS | N138: =IF(N$14=0, "", N$14) -> CGAAP
A139: IESO/OEB RPP Pilot Project | H139: 1378750 | I139: 0 | J139: 2757689
A140: CDM | F140: 1582741.27 | G140: 3111414.88 | H140: 1468384.57 | I140: 2903611.27 | J140: 722758.63
A141: Other miscellaneous costs | F141: 6181.7 | G141: 97201.53 | H141: 4044.17 | I141: 14538 | J141: 2892.64 | K141: 2987.717523 | L141: 2987.717523
